Workbook

Sheet iaith - language (hidden)
A1: 1 | K1: 1 | L1: Cymraeg/Welsh
L2: Saesneg/English
L3: Dewiswch os gwelwch yn dda / Please select
A4: =IF('iaith - language'!$K$1=3,"", IF('iaith - language'!$K$1=2,VLOOKUP(A1,Text!$A$2:$C$366,2,0),VLOOKUP(A1,Text!$A$2:$C$366,3,0))) -> Proses wirio data Cylch 1 - data i'w defnyddio ar gyfer Setliad 2026-27
A6: Dewiswch iaith / Choose your preferred language:

Sheet Text (hidden)
B1: English | C1: Welsh
A2: 1 | B2: Round 1 Data verification process - data for use in the 2026-27 Settlement | C2: Proses wirio data Cylch 1 - data i'w defnyddio ar gyfer Setliad 2026-27
A3: 2 | B3: Round 1 data verification process | C3: Proses gwiriad data cylch 1
A4: 3 | B4: Please select your authority name: | C4: Dewiswch enw eich awdurdod:
A5: 4 | B5: Pupils at Independent schools | C5: Disgyblion mewn ysgolion annibynnol
A6: 5 | B6: You are requested to notify us of any pupils educated in independent schools for pupils without statements of special educational need (excluding special schools) | C6: Gofynnir ichi roi gwybod inni am unrhyw ddisgyblion sy'n cael eu haddysgu mewn ysgolion annibynnol ar gyfer disgyblion nad ydynt ar ddatganiad anghenion addysgol arbennig (ac eithrio ysgolion arbennig)
A7: 6 | B7: for whom your authority pays full tuition fees as recorded on line 1.3.5 on the Section 52 outturn return. This information should be provided in respect of the position at April 2024. | C7: y mae eich awdurdod yn talu ffïoedd dysgu llawn ar eu cyfer, fel sydd wedi'i gofnodi ar llinell 1.3.5 o adroddiad alldro Adran 52. Dylid darparu'r wybodaeth hon ar gyfer y sefyllfa fel yr oedd ym mis Ebrill 2024.
A8: 7 | B8: These pupils are directly credited in the SSAs and it is therefore very important that this information is provided to ensure the accuracy of the calculations. | C8: Rhoddir credyd yn uniongyrchol ar gyfer y disgyblion hyn yn yr Asesiadau o Wariant Safonol, felly mae'n bwysig iawn fod yr wybodaeth hon yn cael ei darparu er mwyn sicrhau bod y cyfrifiadau'n gywir.
A9: 8 | B9: Please provide the figures to us in the table below. Note that it will be assumed that there are no such pupils unless otherwise indicated. | C9: Darparwch y ffigurau inni yn y tabl isod. Sylwch y cymerir yn ganiataol nad oes disgyblion o'r fath os na ddywedir yn wahanol.
A10: 9 | B10: Data set | C10: Set ddata
A11: 10 | B11: Pupils in N2 or reception year groups in nursery or primary schools | C11: Disgyblion mewn grwpiau blwyddyn meithrin 2 neu flwyddyn derbyn mewn ysgolion meithrin neu gynradd
A12: 11 | B12: Primary school pupils in year groups 1 and above | C12: Disgyblion ysgol gynradd yng ngrwpiau blwyddyn 1 ac uwch
A13: 12 | B13: Secondary school pupils in year groups 10 and 11 | C13: Disgyblion ysgol uwchradd yng ngrwpiau blwyddyn 10 ac 11
A14: 13 | B14: Secondary school pupils in year groups 7-11 | C14: Disgyblion ysgol uwchradd yng ngrwpiau blwyddyn 7-11
A15: 14 | B15: Secondary school pupils in year groups 12-14 | C15: Disgyblion ysgol uwchradd yng ngrwpiau blwyddyn 12-14
A16: 15 | B16: The non-financial data originally sourced by Local Authorities is used to calculate Standard Spending Assessments within the Local Government Settlement. | C16: Defnyddir y data heb fod yn ariannol, a gasglwyd yn wreiddiol gan Awdurdodau Lleol, i gyfrifo Asesiadau o Wariant Safonol (SSAs) yn y Setliad Llywodraeth Leol.
A17: 16 | B17: This data has already been through various quality assurance and validation processes prior to its publication. | C17: Mae'r data hyn eisoes wedi bod drwy amryw o brosesau sicrhau ansawdd a gwirio cyn iddynt gael eu cyhoeddi.
A18: 17 | B18: The purpose of the data verification exercise is not to re-visit published estimates where the changes are minor. This process is to ensure that any significant errors or revisions to the non-financial data are identified prior to the publication of the Local Government Settlement. | C18: Ni ddylid defnyddio’r broses wirio hon i roi sylw i amcangyfrifon sydd wedi eu cyhoeddi os yw’r newidiadau dan sylw yn rhai mân. Yn hytrach, nod y broses yw sicrhau bod unrhyw gamgymeriadau sylweddol yn y data heb fod yn ariannol, neu newidiadau o bwys iddynt, yn cael eu nodi cyn cyhoeddi'r Setliad Llywodraeth Leol.
A19: 18 | B19: Query form for comments on data | C19: Ffurflen ymholiadau ar gyfer sylwadau ar y data
A20: 19 | B20: Topic area | C20: Pwnc
A21: 20 | B21: Data point | C21: Pwynt data
A22: 21 | B22: Verification figure | C22: Ffigur gwiriad
A23: 22 | B23: Data Repository | C23: Ystorfa Ddata
A24: 23 | B24: Updated Figure | C24: Ffigur diwygiedig
A25: 24 | B25: Only if agreed by data repository | C25: Dim ond os cytunwyd gan yr ystorfa ddata
A26: 25 | B26: Comments/Queries | C26: Sylwadau/Ymholiadau
A27: 26 | B27: If you have agreed an update to your published data with the relevant data repository, please provide details here | C27: Os ydych chi wedi cael cytundeb yr ystorfa ddata berthnasol i ddiwygio eich data cyhoeddedig, rhowch fanylion
A28: 27 | B28: Local Government Finance Policy and Sustainability Division, Welsh Government | C28: Yr Is-adran Polisi Cyllid Llywodraeth Leol a Chynaliadwyedd, Llywodraeth Cymru
A29: 28 | B29: Please return by email to: | C29: I'w ddychwelyd drwy e-bost i:
A30: 29 | B30: Welsh Government | C30: Llywodraeth Cymru
A31: 30 | B31: For queries please contact: | C31: Os oes gennych ymholiadau, cysylltwch â:
A32: 31 | B32: For detailed descriptions on the data in this spreadsheet please see the data note document for round 1 verification on the website: | C32: Mae disgrifiadau manwl o'r data yn y daenlen hon i'w cael yn y ddogfen nodiadau ar y data ar gyfer gwiriad cylch 1, sydd ar gael ar y wefan.
A33: 32 | B33: https://gov.wales/topics/localgovernment/finandfunding/settlement/local-gov-verification-settlement-2022-23/?lang=en | C33: https://llyw.cymru/topics/localgovernment/finandfunding/settlement/local-gov-verification-settlement-2022-23/?skip=1&lang=cy
A34: 33 | B34: Notes: | C34: Nodiadau:
A35: 34 | B35: 1 This data set is taken as a 3 year average in the settlement. | C35: 1 Caiff y set ddata hon ei chymryd fel cyfartaledd 3 blynedd yn y setliad.
A36: 35 | B36: 2 The dataset 'Private Sector Dwelling Stock' was removed from the Revenue Support Grant settlement calculations, although is included within the General Capital Funding (GCF) formulae | C36: 2 Cafodd y set ddata 'Stoc Anheddau'r Sector Preifat' ei hepgor o'r cyfrifiadau ar gyfer y setliad Grant Cynnal Refeniw, ond mae wedi ei chynnwys yn y fformiwlâu ar gyfer Cyllid Cyfalaf Cyffredinol
A37: 36 | B37: 3 This data was not used in 2012-13 | C37: 3 Ni ddefnyddiwyd y data hyn yn 2012-13
B38: Data - English | C38: Data - Welsh
A39: 38 | B39: PLANNING APPLICATIONS | C39: CEISIADAU CYNLLUNIO
A40: 39 | B40: TAX CREDIT CLAIMANTS | C40: HAWLWYR CREDYD TRETH
A41: 40 | B41: ROADS DATA | C41: DATA FFYRDD
A42: 41 | B42: TRAFFIC FLOW | C42: LLIF TRAFFIG
A43: 42 | B43: PRIVATE SECTOR DWELLING STOCK | C43: STOC ANHEDDAU'R SECTOR PREIFAT
A44: 43 | B44: LAND AREA | C44: ARWYNEBEDD TIR
A45: 44 | B45: POPULATION DATA | C45: DATA POBLOGAETH
A46: 45 | B46: POPULATION ESTIMATES DATA | C46: DATA AMCANGYFRIFON POBLOGAETH
A47: 46 | B47: HOUSING DATA - GCF | C47: DATA TAI - CYLLID CYFALAF CYFFREDINOL
A48: 47 | B48: LAND DRAINAGE PRECEPTS | C48: PRAESEPTAU DRAENIO TIR
A49: 48 | B49: LENGTH OF PROTECTED COASTLINE | C49: HYD YR ARFORDIR A WARCHODIR
A50: 49 | B50: FARMS | C50: FFERMYDD
A51: 50 | B51: HOMELESSNESS DATA | C51: DATA DIGARTREFEDD
A52: 51 | B52: Planning Applications Received | C52: Ceisiadau Cynllunio a Gafwyd
A53: 52 | B53: Dependent children in out of work families | C53: Plant dibynnol mewn teuluoedd di-waith
A54: 53 | B54: A County road length (km) | C54: Hyd ffyrdd A y sir (km)
A55: 54 | B55: Built-up A County road length (km) | C55: Hyd ffyrdd A y sir, adeiledig (km)
A56: 55 | B56: B and C road length (km) | C56: Hyd ffyrdd B ac C (km)
A57: 56 | B57: Built-up B and C road length (km) | C57: Hyd ffyrdd B ac C, adeiledig (km)
A58: 57 | B58: Minor surfaced road length (km) | C58: Hyd is-ffyrdd â wyneb caled (km)
A59: 58 | B59: Built-up minor surfaced road length (km) | C59: Hyd is-ffyrdd â wyneb caled, adeiledig (km)
A60: 59 | B60: Traffic flow (vehicles) | C60: Llif traffig (cerbydau)
A61: 60 | B61: Total Homelessness Decisions | C61: Cyfanswm Penderfyniadau Digartrefedd
A62: 61 | B62: Private sector dwelling stock | C62: Stoc anheddau'r sector preifat
A63: 62 | B63: Land area (hectares) | C63: Arwynebedd tir (hectarau)
A64: 63 | B64: Motor vehicle traffic on all principal roads | C64: Traffig cerbydau modur ar yr holl prf ffyrdd
A65: 64 | B65: Owner-occupied, privately rented, intermediate and other tenures | C65: Yn eiddo i berchen-feddianwyr, wedi'u rhentu'n breifat, deiliadaeth ganolradd a deiliadaethau eraill
A66: 65 | B66: Area in hectares | C66: Arwynebedd mewn hectarau
A67: 66 | B67: Total population | C67: Cyfanswm y boblogaeth
A68: 67 | B68: Total population | C68: Cyfanswm y boblogaeth
A69: 68 | B69: Population aged 3 | C69: Poblogaeth 3 oed
A70: 69 | B70: Population aged 3 to 11 | C70: Poblogaeth 3 i 11 oed
A71: 70 | B71: Population aged 3 to 16 | C71: Poblogaeth 3 i 16 oed
A72: 71 | B72: Population aged 11 to 15 | C72: Poblogaeth 11 i 15 oed
A73: 72 | B73: Population aged 11 to 20 | C73: Poblogaeth 11 i 20 oed
A74: 73 | B74: Population aged 16 and over | C74: Poblogaeth 16 oed a throsodd
A75: 74 | B75: Population aged 16 to 18 | C75: Poblogaeth 16 i 18 oed
A76: 75 | B76: Population aged 0 to 17 | C76: Poblogaeth 0 i 17 oed
A77: 76 | B77: Population aged 18 to 64 | C77: Poblogaeth 18 i 64 oed
A78: 77 | B78: Population aged 18 and over | C78: Poblogaeth 18 oed a throsodd
A79: 78 | B79: Population aged under 60 | C79: Poblogaeth o dan 60 oed
A80: 79 | B80: Population aged 60 and over | C80: Poblogaeth 60 oed a throsodd
A81: 80 | B81: Population aged 85 and over | C81: Poblogaeth 85 oed a throsodd
A82: 81 | B82: Working age population (16-65M/F) | C82: Poblogaeth oedran gweithio (16-65G/B)
A83: 82 | B83: Mid-Year Population Estimates all ages | C83: Amcangyfrifon Poblogaeth Ganol Blwyddyn, pob oed
A84: 83 | B84: Mid-Year Population Estimates aged 18 and over | C84: Amcangyfrifon Poblogaeth Ganol Blwyddyn, 18 oed a throsodd
A85: 84 | B85: Mid-Year Population Estimates aged 65 and over | C85: Amcangyfrifon Poblogaeth Ganol Blwyddyn, 65 oed a throsodd
A86: 85 | B86: Amount spent on mandatory Disabled Facilities Grants completed by area (£s) | C86: Swm a wariwyd ar grantiau cyfleusterau i'r anabl wedi'u cwblhau (£s)
A87: 86 | B87: Amount spent on DFGs completed (£s) | C87: Swm a wariwyd ar grantiau cyfleusterau i'r anabl wedi'u cwblhau (£s)
A88: 87 | B88: Special levies by Internal Drainage Boards | C88: Ardollau arbennig gan Fyrddau Draenio Mewnol
A89: 88 | B89: Length (km) | C89: Hyd (km)
A90: 89 | B90: Number of economically active farms | C90: Nifer y ffermydd economaidd weithgar
A91: 90 | B91: Land Drainage Precepts | C91: Praeseptau Draenio Tir
A92: 91 | B92: Length of protected coastline | C92: Hyd yr arfordir a warchodir
A93: 92 | B93: Number of Farms | C93: Nifer y Ffermydd
A94: 93 | B94: HM Revenue & Customs | C94: Cyllid a Thollau EM
A95: 143 | B95: Total street lighting units | C95: Cyfanswm yr unedau goleuadau stryd
A96: 144 | B96: TRADING PREMISES | C96: EIDDO MASNACHU
A97: 145 | B97: Number of Trading Premises | C97: Nifer yr Eiddo Masnachu
A98: 146 | B98: FOOD PREMISES | C98: EIDDO BWYD
A99: 147 | B99: Number of Food Premises | C99: Nifer yr Eiddo Bwyd
A100: 148 | B100: MORTALITY DATA | C100: DATA MARWOLAETHAU
A101: 149 | B101: Registered number of deaths | C101: Nifer y marwolaethau wedi'u cofrestru
A102: 150 | B102: COUNCIL TAX REDUCTION SCHEMES (CTRS) DATA | C102: DATA CYNLLUNIAU GOSTYNGIADAU'R DRETH GYNGOR
A103: 151 | B103: CTRS Caseload | C103: Llwyth achosion Cynlluniau Gostyngiadau'r Dreth Gyngor
A104: 152 | B104: CTRS Expenditure | C104: Gwariant Cynlluniau Gostyngiadau'r Dreth Gyngor
A105: 152.5 | B105: Covid-19 CTRS support | C105: Cefnogaeth CTRS Covid-19
A106: 153 | B106: Valuation Office Agency (VOA) | C106: Asiantaeth y Swyddfa Brisio
A107: 154 | B107: STREET LIGHTING UNITS | C107: UNEDAU GOLEUADAU STRYD
A108: 158 | B108: Office for National Statistics (ONS) | C108: Y Swyddfa Ystadegau Gwladol
A109: 159 | B109: SHIPS ARRIVING AT PORTS | C109: LLONGAU SY'N CYRRAEDD PORTHLADDOEDD
A110: 160 | B110: Number of ships arriving at ports | C110: Nifer y llongau sy'n cyrraedd porthladdoedd
A111: 161 | B111: TOURISM DATA | C111: DATA TWRISTIAETH
A112: 162 | B112: Tourist nights (thousands) inc AirBnb | C112: Nosweithiau twristiaid (miloedd) gan gynnwys AirBnb
A113: 163 | B113: Tourist days (thousands) | C113: Diwrnodau twristiaid (miloedd)
A114: 164 | B114: Scarborough Tourism Economic Activity Monitor (STEAM) | C114: Scarborough Tourism Economic Activity Monitor (STEAM)
A115: 165 | B115: UNEMPLOYMENT BENEFIT CLAIMANT COUNT DATA | C115: DATA AR GANRAN YR HAWLWYR BUDD-DAL DIWEITHDRA
A116: 166 | B116: Numbers of claimants | C116: Nifer yr hawlwyr
A117: 178 | B117: HOUSING BENEFIT CLAIMANTS | C117: NIFER YR HAWLWYR BUDD-DAL TAI
A118: 179 | B118: BENEFITS CLAIMANTS DATA | C118: DATA AR HAWLWYR BUDD-DALIADAU
A119: 192 | B119: Claimant Count Data | C119: Data Hawlwyr Budd-dal
A120: 193 | B120: Housing Benefit Claimants | C120: Nifer Yr Hawlwyr Budd-dal Tai
A121: 194 | B121: Number of Income Support Claimants, aged 18-64 | C121: Nifer yr Hawlwyr Cymhorthdal Incwm, 18-64 oed
A122: 195 | B122: Number of Income Based Jobseeker’s Allowance Recipients, aged 18-64 | C122: Nifer y Derbynwyr Lwfans Ceisio Swydd ar Sail Incwm, 18-64 oed
A123: 196 | B123: Number of Pension Credit Claimants, aged 18-64 | C123: Nifer yr hawlwyr Credyd Pensiwn, 18-64 oed
A124: 197 | B124: Number of people on Universal Credit (not in employment) aged 18-64 | C124: Nifer y rhai sydd yn derbyn Credyd Cynhwysol (ddim mewn cyflogaeth) 18-64 oed
A125: 198 | B125: Total number of Income Support Claimants | C125: Cyfanswm yr Hawlwyr Cymhorthdal Incwm
A126: 199 | B126: Total number of Income Based Jobseeker’s Allowance Recipients | C126: Cyfanswm y Derbynwyr Lwfans Ceisio Swydd ar Sail Incwm
A127: 200 | B127: Total number of Pension Credit Claimants | C127: Cyfanswm Hawlwyr Credyd Pensiwn
A128: 201 | B128: Total number of people on Universal Credit (not in employment) | C128: Cyfanswm y rhai sy’n derbyn Credyd Cynhwysol (ddim mewn cyflogaeth)
A129: 202 | B129: Number of Severe Disablement Allowance Claimants aged 18-64 | C129: Nifer yr Hawlwyr Lwfans Anabledd Difrifol, 18-64 oed
A130: 203 | B130: Number of Disability Living Allowance Claimants aged 18-64 | C130: Nifer yr Hawlwyr Lwfans Byw i'r Anabl, 18-64 oed | E130: To use | F130: 1
A131: 204 | B131: Number of Personal Independence Payment Claimants aged 18-64 | C131: Nifer yr Hawlwyr Taliad Annibyniaeth Bersonol sydd yn 18-64 oed | D131: 2 | E131: =IF('iaith - language'!$K$1=2,Text!B142,Text!C142) -> Dewiswch / Select
A132: 205 | B132: Pension Credit (PC) claimants aged 65+ | C132: Hawlwyr Credyd Pensiwn, 65 oed a hŷn | D132: 3 | E132: =IF('iaith - language'!$K$1=2,Text!B143,Text!C143) -> Sir Ynys Môn
A133: 206 | B133: Total Income Support (IS), Job Seekers Allowance (JSA) and Pension Credit (PC) claimants | C133: Cyfanswn yr hawlwyr Cymhorthdal Incwm, Lwfans Ceisio Gwaith, a Chredyd Pensiwn | D133: 4 | E133: =IF('iaith - language'!$K$1=2,Text!B144,Text!C144) -> Gwynedd
A134: 207 | B134: Severe Disablement Allowence (SDA) and Disability Living Allowence (DLA) claimants aged 18-64 | C134: Pobl (18-64) sy'n hawlio Lwfans Anabledd Difrifol a Lwfans Byw i'r Anabl | D134: 5 | E134: =IF('iaith - language'!$K$1=2,Text!B145,Text!C145) -> Conwy
A135: 208 | B135: Department for Work and Pensions (DWP) | C135: Yr Adran Gwaith a Phensiynau (DWP) | D135: 6 | E135: =IF('iaith - language'!$K$1=2,Text!B146,Text!C146) -> Sir Ddinbych
A136: 209 | B136: NOMIS official labour market statistics | C136: NOMIS ystadegau swyddogol y farchnad lafur | D136: 7 | E136: =IF('iaith - language'!$K$1=2,Text!B147,Text!C147) -> Sir y Fflint
A137: 210 | B137: NOMIS official labour market statistics and Department for Work and Pensions (DWP) | C137: NOMIS ystadegau swyddogol y farchnad lafur a Yr Adran Gwaith a Phensiynau (DWP) | D137: 8 | E137: =IF('iaith - language'!$K$1=2,Text!B148,Text!C148) -> Wrecsam
A138: 271 | B138: LGFPSettlement@Gov.Wales | C138: LGFPSettlement@Llyw.Cymru | D138: 9 | E138: =IF('iaith - language'!$K$1=2,Text!B149,Text!C149) -> Powys
A139: 272 | B139: Maritime and shipping statistics, Department for Transport | C139: Ystadegau morol a llongau, Yr Adran Drafnidiaeth | D139: 10 | E139: =IF('iaith - language'!$K$1=2,Text!B150,Text!C150) -> Sir Ceredigion
A140: 273 | B140: *Data not submitted | C140: *Data heb ei gyflwyno | D140: 11 | E140: =IF('iaith - language'!$K$1=2,Text!B151,Text!C151) -> Sir Benfro
B141: LA name English | C141: LA name Welsh | D141: 12 | E141: =IF('iaith - language'!$K$1=2,Text!B152,Text!C152) -> Sir Gaerfyrddin
A142: 116 | B142: Please select | C142: Dewiswch / Select | D142: 13 | E142: =IF('iaith - language'!$K$1=2,Text!B153,Text!C153) -> Abertawe
A143: 117 | B143: Isle of Anglesey | C143: Sir Ynys Môn | D143: 14 | E143: =IF('iaith - language'!$K$1=2,Text!B154,Text!C154) -> Castell-nedd Port Talbot
A144: 118 | B144: Gwynedd | C144: Gwynedd | D144: 15 | E144: =IF('iaith - language'!$K$1=2,Text!B155,Text!C155) -> Pen-y-bont ar Ogwr
A145: 119 | B145: Conwy | C145: Conwy | D145: 16 | E145: =IF('iaith - language'!$K$1=2,Text!B156,Text!C156) -> Bro Morgannwg
A146: 120 | B146: Denbighshire | C146: Sir Ddinbych | D146: 17 | E146: =IF('iaith - language'!$K$1=2,Text!B157,Text!C157) -> Rhondda Cynon Taf
A147: 121 | B147: Flintshire | C147: Sir y Fflint | D147: 18 | E147: =IF('iaith - language'!$K$1=2,Text!B158,Text!C158) -> Merthyr Tudful
A148: 122 | B148: Wrexham | C148: Wrecsam | D148: 19 | E148: =IF('iaith - language'!$K$1=2,Text!B159,Text!C159) -> Caerffili
A149: 123 | B149: Powys | C149: Powys | D149: 20 | E149: =IF('iaith - language'!$K$1=2,Text!B160,Text!C160) -> Blaenau Gwent
A150: 124 | B150: Ceredigion | C150: Sir Ceredigion | D150: 21 | E150: =IF('iaith - language'!$K$1=2,Text!B161,Text!C161) -> Torfaen
A151: 125 | B151: Pembrokeshire | C151: Sir Benfro | D151: 22 | E151: =IF('iaith - language'!$K$1=2,Text!B162,Text!C162) -> Sir Fynwy
A152: 126 | B152: Carmarthenshire | C152: Sir Gaerfyrddin | D152: 23 | E152: =IF('iaith - language'!$K$1=2,Text!B163,Text!C163) -> Casnewydd
A153: 127 | B153: Swansea | C153: Abertawe | D153: 24 | E153: =IF('iaith - language'!$K$1=2,Text!B164,Text!C164) -> Caerdydd
A154: 128 | B154: Neath Port Talbot | C154: Castell-nedd Port Talbot | E154: =IF('iaith - language'!$K$1=2,Text!B165,Text!C165) -> Cyfanswm AU
A155: 129 | B155: Bridgend | C155: Pen-y-bont ar Ogwr
A156: 130 | B156: The Vale of Glamorgan | C156: Bro Morgannwg
A157: 131 | B157: Rhondda Cynon Taf | C157: Rhondda Cynon Taf
A158: 132 | B158: Merthyr Tydfil | C158: Merthyr Tudful
A159: 133 | B159: Caerphilly | C159: Caerffili
A160: 134 | B160: Blaenau Gwent | C160: Blaenau Gwent
A161: 135 | B161: Torfaen | C161: Torfaen
A162: 136 | B162: Monmouthshire | C162: Sir Fynwy
A163: 137 | B163: Newport | C163: Casnewydd
A164: 138 | B164: Cardiff | C164: Caerdydd
A165: 139 | B165: UA Total | C165: Cyfanswm AU
A166: 140 | B166: 1 The dataset 'Private Sector Dwelling Stock' was removed from the Revenue Support Grant settlement calculations, although is included within the General Capital Funding (GCF) formulae | C166: 1 Cafodd y set ddata 'Stoc Anheddau'r Sector Preifat' ei hepgor o'r cyfrifiadau ar gyfer y setliad Grant Cynnal Refeniw, ond mae wedi ei chynnwys yn y fformiwlâu ar gyfer Cyllid Cyfalaf Cyffredinol
A167: 141 | B167: .. The data item is not available | C167: .. Nid yw'r eitem ddata yma ar gael
A168: 142 | B168: Please note the published mid-year population have been dif
A169: 271.5 | B169: Council tax stock of properties | C169: Stoc eiddo treth cyngor
A170: 274 | B170: Valuation Office Agency (VOA) | C170: Asiantaeth y Swyddfa Brisio
A171: 600 | B171: Round 1 Data verification process - data for use in the 2026-27 Settlement | C171: Proses wirio data Cylch 1 - data i'w defnyddio ar gyfer Setliad 2026-27
A172: 601 | B172: June 2021 | C172: Mehefin 2021
A173: 602 | B173: September 2021 | C173: Medi 2021
A174: 603 | B174: December 2021 | C174: Rhagfyr 2021
A175: 604 | B175: March 2022 | C175: Mawrth 2022
A176: 605 | B176: May 2022 | C176: Mai 2022
A177: 606 | B177: April 2022 | C177: Ebrill 2022
A178: 607 | B178: October 2021 | C178: Hydref 2021
A179: 608 | B179: November 2021 | C179: Tachwedd 2021
A180: 609 | B180: December 2021 | C180: Rhagfyr 2021
A181: 610 | B181: January 2022 | C181: Ionawr 2022
A182: 611 | B182: February 2022 | C182: Chwefror 2022
A183: 612 | B183: June 2022 | C183: Mehefin 2022
A184: 613 | B184: July 2022 | C184: Gorffennaf 2022
A185: 614 | B185: August 2022 | C185: Awst 2022
A186: 615 | B186: May 2021 | C186: Mai 2021
A187: 616 | B187: August 2021 | C187: Awst 2021
A188: 300 | B188: Data used in the 2022-23 Settlement - for information purposes only | C188: Data a ddefnyddiwyd yn Setliad 2022-23 – er gwybodaeth yn unig
A189: 301 | B189: June 2020 | C189: Mehefin 2020
A190: 302 | B190: September 2020 | C190: Medi 2020
A191: 303 | B191: December 2020 | C191: Rhagfyr 2020
A192: 304 | B192: March 2021 | C192: Mawrth 2021
A193: 305 | B193: May 2021 | C193: Mai 2021
A194: 306 | B194: April 2021 | C194: Ebrill 2021
A195: 307 | B195: October 2020 | C195: Hydref 2020
A196: 308 | B196: November 2020 | C196: Tachwedd 2020
A197: 309 | B197: December 2020 | C197: Rhagfyr 2020
A198: 310 | B198: January 2021 | C198: Ionawr 2021
A199: 311 | B199: February 2021 | C199: Chwefror 2021
A200: 312 | B200: June 2021 | C200: Mehefin 2021
... 42 more rows

Sheet queryformround1
A1: 2 | C1: =IF('iaith - language'!K1=2,VLOOKUP(A1,Text!A3:C316,2),VLOOKUP(A1,Text!A3:C318,3)) -> Proses gwiriad data cylch 1
A3: 3 | C3: =IF('iaith - language'!K1=2,VLOOKUP(A3,Text!A3:C316,2),VLOOKUP(A3,Text!A3:C318,3)) -> Dewiswch enw eich awdurdod:
A6: 15 | C6: =IF('iaith - language'!K1=2,VLOOKUP(A6,Text!A3:C316,2),VLOOKUP(A6,Text!A3:C318,3)) -> Defnyddir y data heb fod yn ariannol, a gasglwyd yn wreiddiol gan Awdurdodau Lleol, i gyfrifo Asesiadau o Wariant Safonol (SSAs) yn y Setliad Llywodraeth Leol.
A7: 16 | C7: =IF('iaith - language'!K1=2,VLOOKUP(A7,Text!A3:C316,2),VLOOKUP(A7,Text!A3:C318,3)) -> Mae'r data hyn eisoes wedi bod drwy amryw o brosesau sicrhau ansawdd a gwirio cyn iddynt gael eu cyhoeddi.
A8: 17 | C8: =IF('iaith - language'!K1=2,VLOOKUP(A8,Text!A3:C316,2),VLOOKUP(A8,Text!A3:C318,3)) -> Ni ddylid defnyddio’r broses wirio hon i roi sylw i amcangyfrifon sydd wedi eu cyhoeddi os yw’r newidiadau dan sylw yn rhai mân. Yn hytrach, nod y broses yw sicrhau bod unrhyw gamgymeriadau sylweddol yn y data heb fod yn ariannol, neu newidiadau o bwys iddynt, yn cael eu nodi cyn cyhoeddi'r Setliad Llywodraeth Leol.
A10: 18 | C10: =IF('iaith - language'!$K$1=2,VLOOKUP(A10,Text!$A$3:$C$402,2,0),VLOOKUP(A10,Text!$A$3:$C$402,3,0)) -> Ffurflen ymholiadau ar gyfer sylwadau ar y data
E12: 20 | F12: 21 | G12: 22 | H12: 23 | I12: 25
A13: 19 | C13: =IF('iaith - language'!$K$1=2,VLOOKUP(A13,Text!$A$3:$C$402,2,0),VLOOKUP(A13,Text!$A$3:$C$402,3,0)) -> Pwnc | D13: =IF('iaith - language'!$K$1=2,VLOOKUP(A14,Text!$A$3:$C$402,2,0),VLOOKUP(#REF!,Text!$A$3:$C$402,3,0)) ->  | E13: =IF('iaith - language'!$K$1=2,VLOOKUP(E12,Text!$A$3:$C$402,2,0),VLOOKUP(E12,Text!$A$3:$C$402,3,0)) -> Pwynt data | F13: =IF('iaith - language'!$K$1=2,VLOOKUP(F12,Text!$A$3:$C$402,2,0),VLOOKUP(F12,Text!$A$3:$C$402,3,0)) -> Ffigur gwiriad | G13: =IF('iaith - language'!K1=2,VLOOKUP(G12,Text!A3:C316,2),VLOOKUP(G12,Text!A3:C318,3)) -> Ystorfa Ddata | H13: =IF('iaith - language'!K1=2,VLOOKUP(H12,Text!A3:C316,2),VLOOKUP(H12,Text!A3:C318,3)) -> Ffigur diwygiedig | I13: =IF('iaith - language'!K1=2,VLOOKUP(I12,Text!A3:C316,2),VLOOKUP(I12,Text!A3:C318,3)) -> Sylwadau/Ymholiadau | J13: 24
A14: 9 | H14: =IF('iaith - language'!K1=2,VLOOKUP(J13,Text!A3:C316,2),VLOOKUP(J13,Text!A3:C318,3)) -> Dim ond os cytunwyd gan yr ystorfa ddata | I14: =IF('iaith - language'!K1=2,VLOOKUP(J14,Text!A3:C316,2),VLOOKUP(J14,Text!A3:C318,3)) -> Os ydych chi wedi cael cytundeb yr ystorfa ddata berthnasol i ddiwygio eich data cyhoeddedig, rhowch fanylion | J14: 26
A15: 38 | B15: 51 | C15: =IF('iaith - language'!$K$1=2,VLOOKUP(A15,Text!$A$3:$C$402,2,0),VLOOKUP(A15,Text!$A$3:$C$402,3,0)) -> CEISIADAU CYNLLUNIO | D15: =IF('iaith - language'!$K$1=2,VLOOKUP(B15,Text!$A$3:$C$402,2,0),VLOOKUP(B15,Text!$A$3:$C$402,3,0)) -> Ceisiadau Cynllunio a Gafwyd | E15: ='2026-27 Settlement data'!D7 -> 2024-06-01 | F15: =VLOOKUP(Text!$F$130,'2026-27 Settlement data'!$B$9:$DG$30,$K15,FALSE) ->  | G15: =IF('iaith - language'!K1=2,VLOOKUP(A17,Text!A3:C316,2),VLOOKUP(A17,Text!A3:C318,3)) -> Llywodraeth Cymru | J15: 109 | K15: 3
E16: ='2026-27 Settlement data'!E7 -> 2024-09-01 | F16: =VLOOKUP(Text!$F$130,'2026-27 Settlement data'!$B$9:$DG$30,$K16,FALSE) ->  | J16: 110 | K16: 4
A17: 29 | E17: ='2026-27 Settlement data'!F7 -> 2024-12-01 | F17: =VLOOKUP(Text!$F$130,'2026-27 Settlement data'!$B$9:$DG$30,$K17,FALSE) ->  | J17: 111 | K17: 5
E18: ='2026-27 Settlement data'!G7 -> 2025-03-01 | F18: =VLOOKUP(Text!$F$130,'2026-27 Settlement data'!$B$9:$DG$30,$K18,FALSE) ->  | J18: 112 | K18: 6
A19: 42 | B19: 64 | C19: =IF('iaith - language'!$K$1=2,VLOOKUP(A19,Text!$A$3:$C$402,2,0),VLOOKUP(A19,Text!$A$3:$C$402,3,0)) -> STOC ANHEDDAU'R SECTOR PREIFAT | D19: =IF('iaith - language'!$K$1=2,VLOOKUP(B19,Text!$A$3:$C$402,2,0),VLOOKUP(B19,Text!$A$3:$C$402,3,0)) -> Yn eiddo i berchen-feddianwyr, wedi'u rhentu'n breifat, deiliadaeth ganolradd a deiliadaethau eraill | E19: =VLOOKUP(0,#REF!,K19,FALSE) ->  | F19: =VLOOKUP(Text!$F$130,#REF!,$K19,FALSE) ->  | G19: =IF('iaith - language'!K1=2,VLOOKUP(A17,Text!A3:C316,2),VLOOKUP(A17,Text!A3:C318,3)) -> Llywodraeth Cymru | I19: Do not verify | K19: =K18+1 -> 7
A20: 43 | B20: 65 | C20: =IF('iaith - language'!$K$1=2,VLOOKUP(A20,Text!$A$3:$C$402,2,0),VLOOKUP(A20,Text!$A$3:$C$402,3,0)) -> ARWYNEBEDD TIR | D20: =IF('iaith - language'!$K$1=2,VLOOKUP(B20,Text!$A$3:$C$402,2,0),VLOOKUP(B20,Text!$A$3:$C$402,3,0)) -> Arwynebedd mewn hectarau | E20: ='2026-27 Settlement data'!I7 -> 2024-05-01 | F20: =VLOOKUP(Text!$F$130,'2026-27 Settlement data'!$B$9:$DG$30,$K20,FALSE) ->  | G20: =IF('iaith - language'!K1=2,VLOOKUP(A17,Text!A3:C316,2),VLOOKUP(A17,Text!A3:C318,3)) -> Llywodraeth Cymru | J20: 113 | K20: =K19+1 -> 8
A21: 44 | B21: 66 | C21: =IF('iaith - language'!$K$1=2,VLOOKUP(A21,Text!$A$3:$C$402,2,0),VLOOKUP(A21,Text!$A$3:$C$402,3,0)) -> DATA POBLOGAETH | D21: =IF('iaith - language'!$K$1=2,VLOOKUP(B21,Text!$A$3:$C$402,2,0),VLOOKUP(B21,Text!$A$3:$C$402,3,0)) -> Cyfanswm y boblogaeth | E21: ='2026-27 Settlement data'!J7 -> 2024 | F21: =VLOOKUP(Text!$F$130,'2026-27 Settlement data'!$B$9:$DG$30,$K21,FALSE) ->  | G21: =IF('iaith - language'!K1=2,VLOOKUP(A17,Text!A3:C316,2),VLOOKUP(A17,Text!A3:C318,3)) -> Llywodraeth Cymru | J21: 99 | K21: =K20+1 -> 9
B22: 68 | D22: =IF('iaith - language'!$K$1=2,VLOOKUP(B22,Text!$A$3:$C$402,2,0),VLOOKUP(B22,Text!$A$3:$C$402,3,0)) -> Poblogaeth 3 oed | E22: ='2026-27 Settlement data'!K7 -> 2024 | F22: =VLOOKUP(Text!$F$130,'2026-27 Settlement data'!$B$9:$DG$30,$K22,FALSE) ->  | K22: 10
B23: 69 | D23: =IF('iaith - language'!$K$1=2,VLOOKUP(B23,Text!$A$3:$C$402,2,0),VLOOKUP(B23,Text!$A$3:$C$402,3,0)) -> Poblogaeth 3 i 11 oed | E23: ='2026-27 Settlement data'!L7 -> 2024 | F23: =VLOOKUP(Text!$F$130,'2026-27 Settlement data'!$B$9:$DG$30,$K23,FALSE) ->  | K23: 11
B24: 70 | D24: =IF('iaith - language'!$K$1=2,VLOOKUP(B24,Text!$A$3:$C$402,2,0),VLOOKUP(B24,Text!$A$3:$C$402,3,0)) -> Poblogaeth 3 i 16 oed | E24: ='2026-27 Settlement data'!M7 -> 2024 | F24: =VLOOKUP(Text!$F$130,'2026-27 Settlement data'!$B$9:$DG$30,$K24,FALSE) ->  | K24: 12
B25: 71 | D25: =IF('iaith - language'!$K$1=2,VLOOKUP(B25,Text!$A$3:$C$402,2,0),VLOOKUP(B25,Text!$A$3:$C$402,3,0)) -> Poblogaeth 11 i 15 oed | E25: ='2026-27 Settlement data'!N7 -> 2024 | F25: =VLOOKUP(Text!$F$130,'2026-27 Settlement data'!$B$9:$DG$30,$K25,FALSE) ->  | K25: 13
B26: 72 | D26: =IF('iaith - language'!$K$1=2,VLOOKUP(B26,Text!$A$3:$C$402,2,0),VLOOKUP(B26,Text!$A$3:$C$402,3,0)) -> Poblogaeth 11 i 20 oed | E26: ='2026-27 Settlement data'!O7 -> 2024 | F26: =VLOOKUP(Text!$F$130,'2026-27 Settlement data'!$B$9:$DG$30,$K26,FALSE) ->  | K26: 14
B27: 73 | D27: =IF('iaith - language'!$K$1=2,VLOOKUP(B27,Text!$A$3:$C$402,2,0),VLOOKUP(B27,Text!$A$3:$C$402,3,0)) -> Poblogaeth 16 oed a throsodd | E27: ='2026-27 Settlement data'!P7 -> 2024 | F27: =VLOOKUP(Text!$F$130,'2026-27 Settlement data'!$B$9:$DG$30,$K27,FALSE) ->  | K27: 15
B28: 74 | D28: =IF('iaith - language'!$K$1=2,VLOOKUP(B28,Text!$A$3:$C$402,2,0),VLOOKUP(B28,Text!$A$3:$C$402,3,0)) -> Poblogaeth 16 i 18 oed | E28: ='2026-27 Settlement data'!Q7 -> 2024 | F28: =VLOOKUP(Text!$F$130,'2026-27 Settlement data'!$B$9:$DG$30,$K28,FALSE) ->  | K28: 16
B29: 75 | D29: =IF('iaith - language'!$K$1=2,VLOOKUP(B29,Text!$A$3:$C$402,2,0),VLOOKUP(B29,Text!$A$3:$C$402,3,0)) -> Poblogaeth 0 i 17 oed | E29: ='2026-27 Settlement data'!R7 -> 2024 | F29: =VLOOKUP(Text!$F$130,'2026-27 Settlement data'!$B$9:$DG$30,$K29,FALSE) ->  | K29: 17
B30: 76 | D30: =IF('iaith - language'!$K$1=2,VLOOKUP(B30,Text!$A$3:$C$402,2,0),VLOOKUP(B30,Text!$A$3:$C$402,3,0)) -> Poblogaeth 18 i 64 oed | E30: ='2026-27 Settlement data'!S7 -> 2024 | F30: =VLOOKUP(Text!$F$130,'2026-27 Settlement data'!$B$9:$DG$30,$K30,FALSE) ->  | K30: 18
B31: 77 | D31: =IF('iaith - language'!$K$1=2,VLOOKUP(B31,Text!$A$3:$C$402,2,0),VLOOKUP(B31,Text!$A$3:$C$402,3,0)) -> Poblogaeth 18 oed a throsodd | E31: ='2026-27 Settlement data'!T7 -> 2024 | F31: =VLOOKUP(Text!$F$130,'2026-27 Settlement data'!$B$9:$DG$30,$K31,FALSE) ->  | K31: 19
B32: 78 | D32: =IF('iaith - language'!$K$1=2,VLOOKUP(B32,Text!$A$3:$C$402,2,0),VLOOKUP(B32,Text!$A$3:$C$402,3,0)) -> Poblogaeth o dan 60 oed | E32: ='2026-27 Settlement data'!U7 -> 2024 | F32: =VLOOKUP(Text!$F$130,'2026-27 Settlement data'!$B$9:$DG$30,$K32,FALSE) ->  | K32: 20
B33: 79 | D33: =IF('iaith - language'!$K$1=2,VLOOKUP(B33,Text!$A$3:$C$402,2,0),VLOOKUP(B33,Text!$A$3:$C$402,3,0)) -> Poblogaeth 60 oed a throsodd | E33: ='2026-27 Settlement data'!V7 -> 2024 | F33: =VLOOKUP(Text!$F$130,'2026-27 Settlement data'!$B$9:$DG$30,$K33,FALSE) ->  | K33: 21
B34: 80 | D34: =IF('iaith - language'!$K$1=2,VLOOKUP(B34,Text!$A$3:$C$402,2,0),VLOOKUP(B34,Text!$A$3:$C$402,3,0)) -> Poblogaeth 85 oed a throsodd | E34: ='2026-27 Settlement data'!W7 -> 2024 | F34: =VLOOKUP(Text!$F$130,'2026-27 Settlement data'!$B$9:$DG$30,$K34,FALSE) ->  | K34: 22
B35: 81 | D35: =IF('iaith - language'!$K$1=2,VLOOKUP(B35,Text!$A$3:$C$402,2,0),VLOOKUP(B35,Text!$A$3:$C$402,3,0)) -> Poblogaeth oedran gweithio (16-65G/B) | E35: ='2026-27 Settlement data'!X7 -> 2024 | F35: =VLOOKUP(Text!$F$130,'2026-27 Settlement data'!$B$9:$DG$30,$K35,FALSE) ->  | K35: 23
A36: 45 | B36: 82 | C36: =IF('iaith - language'!$K$1=2,VLOOKUP(A36,Text!$A$3:$C$402,2,0),VLOOKUP(A36,Text!$A$3:$C$402,3,0)) -> DATA AMCANGYFRIFON POBLOGAETH | D36: =IF('iaith - language'!$K$1=2,VLOOKUP(B36,Text!$A$3:$C$402,2,0),VLOOKUP(B36,Text!$A$3:$C$402,3,0)) -> Amcangyfrifon Poblogaeth Ganol Blwyddyn, pob oed | E36: ='2026-27 Settlement data'!N18 -> 1930-10-13 | F36: =VLOOKUP(Text!$F$130,'2026-27 Settlement data'!$B$9:$DG$30,$K36,FALSE) ->  | G36: =IF('iaith - language'!K1=2,VLOOKUP(A17,Text!A3:C316,2),VLOOKUP(A17,Text!A3:C318,3)) -> Llywodraeth Cymru | K36: 24
B37: 83 | D37: =IF('iaith - language'!$K$1=2,VLOOKUP(B37,Text!$A$3:$C$402,2,0),VLOOKUP(B37,Text!$A$3:$C$402,3,0)) -> Amcangyfrifon Poblogaeth Ganol Blwyddyn, 18 oed a throsodd | E37: ='2026-27 Settlement data'!N19 -> 1939-06-01 | F37: =VLOOKUP(Text!$F$130,'2026-27 Settlement data'!$B$9:$DG$30,$K37,FALSE) ->  | K37: 25
B38: 84 | D38: =IF('iaith - language'!$K$1=2,VLOOKUP(B38,Text!$A$3:$C$402,2,0),VLOOKUP(B38,Text!$A$3:$C$402,3,0)) -> Amcangyfrifon Poblogaeth Ganol Blwyddyn, 65 oed a throsodd | E38: ='2026-27 Settlement data'!N20 -> 1923-04-29 | F38: =VLOOKUP(Text!$F$130,'2026-27 Settlement data'!$B$9:$DG$30,$K38,FALSE) ->  | K38: 26
A39: 46 | B39: 85 | C39: =IF('iaith - language'!$K$1=2,VLOOKUP(A39,Text!$A$3:$C$402,2,0),VLOOKUP(A39,Text!$A$3:$C$402,3,0)) -> DATA TAI - CYLLID CYFALAF CYFFREDINOL | D39: =IF('iaith - language'!$K$1=2,VLOOKUP(B39,Text!$A$3:$C$402,2,0),VLOOKUP(B39,Text!$A$3:$C$402,3,0)) -> Swm a wariwyd ar grantiau cyfleusterau i'r anabl wedi'u cwblhau (£s) | E39: ='2026-27 Settlement data'!N21 -> 1924-03-19 | F39: =VLOOKUP(Text!$F$130,'2026-27 Settlement data'!$B$9:$DG$30,$K39,FALSE) ->  | G39: =IF('iaith - language'!$K$1=2,VLOOKUP(J39,Text!$A$4:$C$198,2,FALSE),VLOOKUP(J39,Text!$A$4:$C$198,3,FALSE)) -> Llywodraeth Cymru | I39: Do not verify | J39: 29 | K39: 27
A40: 47 | B40: 87 | C40: =IF('iaith - language'!$K$1=2,VLOOKUP(A40,Text!$A$3:$C$402,2,0),VLOOKUP(A40,Text!$A$3:$C$402,3,0)) -> PRAESEPTAU DRAENIO TIR | D40: =IF('iaith - language'!$K$1=2,VLOOKUP(B40,Text!$A$3:$C$402,2,0),VLOOKUP(B40,Text!$A$3:$C$402,3,0)) -> Ardollau arbennig gan Fyrddau Draenio Mewnol | E40: ='2026-27 Settlement data'!N22 -> 1923-09-16 | F40: =VLOOKUP(Text!$F$130,'2026-27 Settlement data'!$B$9:$DG$30,$K40,FALSE) ->  | G40: =IF('iaith - language'!$K$1=2,VLOOKUP(J40,Text!$A$4:$C$198,2,FALSE),VLOOKUP(J40,Text!$A$4:$C$198,3,FALSE)) -> Llywodraeth Cymru | J40: 29 | K40: 28
A41: 48 | B41: 88 | C41: =IF('iaith - language'!$K$1=2,VLOOKUP(A41,Text!$A$3:$C$402,2,0),VLOOKUP(A41,Text!$A$3:$C$402,3,0)) -> HYD YR ARFORDIR A WARCHODIR | D41: =IF('iaith - language'!$K$1=2,VLOOKUP(B41,Text!$A$3:$C$402,2,0),VLOOKUP(B41,Text!$A$3:$C$402,3,0)) -> Hyd (km) | E41: ='2026-27 Settlement data'!N23 -> 1940-09-18 | F41: =VLOOKUP(Text!$F$130,'2026-27 Settlement data'!$B$9:$DG$30,$K41,FALSE) ->  | G41: =IF('iaith - language'!$K$1=2,VLOOKUP(J41,Text!$A$4:$C$198,2,FALSE),VLOOKUP(J41,Text!$A$4:$C$198,3,FALSE)) -> Llywodraeth Cymru | J41: 29 | K41: 29
A42: 49 | B42: 89 | C42: =IF('iaith - language'!$K$1=2,VLOOKUP(A42,Text!$A$3:$C$402,2,0),VLOOKUP(A42,Text!$A$3:$C$402,3,0)) -> FFERMYDD | D42: =IF('iaith - language'!$K$1=2,VLOOKUP(B42,Text!$A$3:$C$402,2,0),VLOOKUP(B42,Text!$A$3:$C$402,3,0)) -> Nifer y ffermydd economaidd weithgar | E42: ='2026-27 Settlement data'!N24 -> 1910-01-04 | F42: =VLOOKUP(Text!$F$130,'2026-27 Settlement data'!$B$9:$DG$30,$K42,FALSE) ->  | G42: =IF('iaith - language'!$K$1=2,VLOOKUP(J42,Text!$A$4:$C$198,2,FALSE),VLOOKUP(J42,Text!$A$4:$C$198,3,FALSE)) -> Llywodraeth Cymru | J42: 29 | K42: 30
A43: 144 | B43: 145 | C43: =IF('iaith - language'!$K$1=2,VLOOKUP(A43,Text!$A$3:$C$402,2,0),VLOOKUP(A43,Text!$A$3:$C$402,3,0)) -> EIDDO MASNACHU | D43: =IF('iaith - language'!$K$1=2,VLOOKUP(B43,Text!$A$3:$C$402,2,0),VLOOKUP(B43,Text!$A$3:$C$402,3,0)) -> Nifer yr Eiddo Masnachu | E43: ='2026-27 Settlement data'!N25 -> 1929-12-01 | F43: =VLOOKUP(Text!$F$130,'2026-27 Settlement data'!$B$9:$DG$30,$K43,FALSE) ->  | G43: =IF('iaith - language'!$K$1=2,VLOOKUP(J44,Text!$A$4:$C$198,2,FALSE),VLOOKUP(J44,Text!$A$4:$C$198,3,FALSE)) -> Asiantaeth y Swyddfa Brisio | J43: 115 | K43: 31
A44: 146 | B44: 147 | C44: =IF('iaith - language'!$K$1=2,VLOOKUP(A44,Text!$A$3:$C$402,2,0),VLOOKUP(A44,Text!$A$3:$C$402,3,0)) -> EIDDO BWYD | D44: =IF('iaith - language'!$K$1=2,VLOOKUP(B44,Text!$A$3:$C$402,2,0),VLOOKUP(B44,Text!$A$3:$C$402,3,0)) -> Nifer yr Eiddo Bwyd | E44: ='2026-27 Settlement data'!N26 -> 1910-11-24 | F44: =VLOOKUP(Text!$F$130,'2026-27 Settlement data'!$B$9:$DG$30,$K44,FALSE) ->  | G44: =IF('iaith - language'!$K$1=2,VLOOKUP(J44,Text!$A$4:$C$198,2,FALSE),VLOOKUP(J44,Text!$A$4:$C$198,3,FALSE)) -> Asiantaeth y Swyddfa Brisio | J44: 153 | K44: 32
A45: 154 | B45: 143 | C45: =IF('iaith - language'!$K$1=2,VLOOKUP(A45,Text!$A$3:$C$402,2,0),VLOOKUP(A45,Text!$A$3:$C$402,3,0)) -> UNEDAU GOLEUADAU STRYD | D45: =IF('iaith - language'!$K$1=2,VLOOKUP(B45,Text!$A$3:$C$402,2,0),VLOOKUP(B45,Text!$A$3:$C$402,3,0)) -> Cyfanswm yr unedau goleuadau stryd | E45: ='2026-27 Settlement data'!AH7 -> 2025-04-01 | F45: =VLOOKUP(Text!$F$130,'2026-27 Settlement data'!$B$9:$DG$30,$K45,FALSE) ->  | G45: =IF('iaith - language'!$K$1=2,VLOOKUP(J45,Text!$A$4:$C$198,2,FALSE),VLOOKUP(J45,Text!$A$4:$C$198,3,FALSE)) -> Llywodraeth Cymru | J45: 29 | K45: 33
A46: 148 | B46: 149 | C46: =IF('iaith - language'!$K$1=2,VLOOKUP(A46,Text!$A$3:$C$402,2,0),VLOOKUP(A46,Text!$A$3:$C$402,3,0)) -> DATA MARWOLAETHAU | D46: =IF('iaith - language'!$K$1=2,VLOOKUP(B46,Text!$A$3:$C$402,2,0),VLOOKUP(B46,Text!$A$3:$C$402,3,0)) -> Nifer y marwolaethau wedi'u cofrestru | E46: ='2026-27 Settlement data'!AI7 -> 2024 | F46: =VLOOKUP(Text!$F$130,'2026-27 Settlement data'!$B$9:$DG$30,$K46,FALSE) ->  | G46: =IF('iaith - language'!$K$1=2,VLOOKUP(J46,Text!$A$4:$C$198,2,FALSE),VLOOKUP(J46,Text!$A$4:$C$198,3,FALSE)) -> Y Swyddfa Ystadegau Gwladol | J46: 158 | K46: 34
A47: 150 | B47: 151 | C47: =IF('iaith - language'!$K$1=2,VLOOKUP(A47,Text!$A$3:$C$402,2,0),VLOOKUP(A47,Text!$A$3:$C$402,3,0)) -> DATA CYNLLUNIAU GOSTYNGIADAU'R DRETH GYNGOR | D47: =IF('iaith - language'!$K$1=2,VLOOKUP(B47,Text!$A$3:$C$402,2,0),VLOOKUP(B47,Text!$A$3:$C$402,3,0)) -> Llwyth achosion Cynlluniau Gostyngiadau'r Dreth Gyngor | E47: ='2026-27 Settlement data'!AJ7 -> 2023-24 | F47: =VLOOKUP(Text!$F$130,'2026-27 Settlement data'!$B$9:$DG$30,$K47,FALSE) ->  | G47: =IF('iaith - language'!$K$1=2,VLOOKUP(J47,Text!$A$4:$C$198,2,FALSE),VLOOKUP(J47,Text!$A$4:$C$198,3,FALSE)) -> Llywodraeth Cymru | J47: 29 | K47: 35
B48: 152 | D48: =IF('iaith - language'!$K$1=2,VLOOKUP(B48,Text!$A$3:$C$402,2,0),VLOOKUP(B48,Text!$A$3:$C$402,3,0)) -> Gwariant Cynlluniau Gostyngiadau'r Dreth Gyngor | E48: ='2026-27 Settlement data'!AK7 -> 2023-24 | F48: =VLOOKUP(Text!$F$130,'2026-27 Settlement data'!$B$9:$DG$30,$K48,FALSE) ->  | K48: 36
B49: 152.5 | D49: =IF('iaith - language'!$K$1=2,VLOOKUP(B49,Text!$A$3:$C$402,2,0),VLOOKUP(B49,Text!$A$3:$C$402,3,0)) -> Cefnogaeth CTRS Covid-19 | E49: =VLOOKUP(0,#REF!,K49,FALSE) ->  | F49: =VLOOKUP(Text!$F$130,#REF!,$K49,FALSE) ->  | K49: 37
A50: 159 | B50: 160 | C50: =IF('iaith - language'!$K$1=2,VLOOKUP(A50,Text!$A$3:$C$402,2,0),VLOOKUP(A50,Text!$A$3:$C$402,3,0)) -> LLONGAU SY'N CYRRAEDD PORTHLADDOEDD | D50: =IF('iaith - language'!$K$1=2,VLOOKUP(B50,Text!$A$3:$C$402,2,0),VLOOKUP(B50,Text!$A$3:$C$402,3,0)) -> Nifer y llongau sy'n cyrraedd porthladdoedd | E50: ='2026-27 Settlement data'!AM7 -> 2024 | F50: =VLOOKUP(Text!$F$130,'2026-27 Settlement data'!$B$9:$DG$30,$K50,FALSE) ->  | G50: =IF('iaith - language'!$K$1=2,VLOOKUP(J50,Text!$A$4:$C$558,2,FALSE),VLOOKUP(J50,Text!$A$4:$C$558,3,FALSE)) -> Ystadegau morol a llongau, Yr Adran Drafnidiaeth | J50: 272 | K50: 38
A51: 161 | B51: 162 | C51: =IF('iaith - language'!$K$1=2,VLOOKUP(A51,Text!$A$3:$C$402,2,0),VLOOKUP(A51,Text!$A$3:$C$402,3,0)) -> DATA TWRISTIAETH | D51: =IF('iaith - language'!$K$1=2,VLOOKUP(B51,Text!$A$3:$C$402,2,0),VLOOKUP(B51,Text!$A$3:$C$402,3,0)) -> Nosweithiau twristiaid (miloedd) gan gynnwys AirBnb | E51: =VLOOKUP(0,#REF!,K51,FALSE) ->  | F51: =VLOOKUP(Text!$F$130,'2026-27 Settlement data'!$B$9:$DG$30,$K51,FALSE) ->  | G51: =IF('iaith - language'!$K$1=2,VLOOKUP(J51,Text!$A$4:$C$198,2,FALSE),VLOOKUP(J51,Text!$A$4:$C$198,3,FALSE)) -> Scarborough Tourism Economic Activity Monitor (STEAM) | J51: 164 | K51: 39
B52: 163 | D52: =IF('iaith - language'!$K$1=2,VLOOKUP(B52,Text!$A$3:$C$402,2,0),VLOOKUP(B52,Text!$A$3:$C$402,3,0)) -> Diwrnodau twristiaid (miloedd) | E52: =VLOOKUP(0,#REF!,K52,FALSE) ->  | F52: =VLOOKUP(Text!$F$130,'2026-27 Settlement data'!$B$9:$DG$30,$K52,FALSE) ->  | K52: 40
A53: 165 | B53: 166 | C53: =IF('iaith - language'!$K$1=2,VLOOKUP(A53,Text!$A$3:$C$402,2,0),VLOOKUP(A53,Text!$A$3:$C$402,3,0)) -> DATA AR GANRAN YR HAWLWYR BUDD-DAL DIWEITHDRA | D53: =IF('iaith - language'!$K$1=2,VLOOKUP(B53,Text!$A$3:$C$402,2,0),VLOOKUP(B53,Text!$A$3:$C$402,3,0)) -> Nifer yr hawlwyr | E53: ='2026-27 Settlement data'!AP7 -> 2024-10-01 | F53: =VLOOKUP(Text!$F$130,'2026-27 Settlement data'!$B$9:$DG$30,$K53,FALSE) ->  | G53: =IF('iaith - language'!$K$1=2,VLOOKUP(B54,Text!$A$4:$C$198,2,FALSE),VLOOKUP(B54,Text!$A$4:$C$198,3,FALSE)) -> NOMIS ystadegau swyddogol y farchnad lafur | J53: 167 | K53: 41
B54: 209 | E54: ='2026-27 Settlement data'!AQ7 -> 2024-11-01 | F54: =VLOOKUP(Text!$F$130,'2026-27 Settlement data'!$B$9:$DG$30,$K54,FALSE) ->  | J54: =J53+1 -> 168 | K54: 42
E55: ='2026-27 Settlement data'!AR7 -> 2024-12-01 | F55: =VLOOKUP(Text!$F$130,'2026-27 Settlement data'!$B$9:$DG$30,$K55,FALSE) ->  | J55: 169 | K55: 43
E56: ='2026-27 Settlement data'!AS7 -> 2025-01-01 | F56: =VLOOKUP(Text!$F$130,'2026-27 Settlement data'!$B$9:$DG$30,$K56,FALSE) ->  | J56: 170 | K56: 44
E57: ='2026-27 Settlement data'!AT7 -> 2025-02-01 | F57: =VLOOKUP(Text!$F$130,'2026-27 Settlement data'!$B$9:$DG$30,$K57,FALSE) ->  | J57: 171 | K57: 45
E58: ='2026-27 Settlement data'!AU7 -> 2025-03-01 | F58: =VLOOKUP(Text!$F$130,'2026-27 Settlement data'!$B$9:$DG$30,$K58,FALSE) ->  | J58: 172 | K58: 46
E59: ='2026-27 Settlement data'!AV7 -> 2025-04-01 | F59: =VLOOKUP(Text!$F$130,'2026-27 Settlement data'!$B$9:$DG$30,$K59,FALSE) ->  | J59: 173 | K59: 47
E60: ='2026-27 Settlement data'!AW7 -> 2025-05-01 | F60: =VLOOKUP(Text!$F$130,'2026-27 Settlement data'!$B$9:$DG$30,$K60,FALSE) ->  | J60: 174 | K60: 48
E61: ='2026-27 Settlement data'!AX7 -> 2025-06-01 | F61: =VLOOKUP(Text!$F$130,'2026-27 Settlement data'!$B$9:$DG$30,$K61,FALSE) ->  | J61: 175 | K61: 49
E62: ='2026-27 Settlement data'!AY7 -> 2025-07-01 | F62: =VLOOKUP(Text!$F$130,'2026-27 Settlement data'!$B$9:$DG$30,$K62,FALSE) ->  | J62: 176 | K62: 50
E63: ='2026-27 Settlement data'!AZ7 -> 2025-08-01 | F63: =VLOOKUP(Text!$F$130,'2026-27 Settlement data'!$B$9:$DG$30,$K63,FALSE) ->  | J63: 177 | K63: 51
A64: 179 | B64: 194 | C64: =IF('iaith - language'!$K$1=2,VLOOKUP(A64,Text!$A$3:$C$402,2,0),VLOOKUP(A64,Text!$A$3:$C$402,3,0)) -> DATA AR HAWLWYR BUDD-DALIADAU | D64: =IF('iaith - language'!$K$1=2,VLOOKUP(B64,Text!$A$3:$C$402,2,0),VLOOKUP(B64,Text!$A$3:$C$402,3,0)) -> Nifer yr Hawlwyr Cymhorthdal Incwm, 18-64 oed | E64: ='2026-27 Settlement data'!BA7 -> 2024-05-01 | F64: =VLOOKUP(Text!$F$130,'2026-27 Settlement data'!$B$9:$DG$30,$K64,FALSE) ->  | G64: =IF('iaith - language'!$K$1=2,VLOOKUP(B65,Text!$A$4:$C$198,2,FALSE),VLOOKUP(B65,Text!$A$4:$C$198,3,FALSE)) -> Yr Adran Gwaith a Phensiynau (DWP) | J64: 114 | K64: 52
B65: 208 | E65: ='2026-27 Settlement data'!BB7 -> 2024-08-01 | F65: =VLOOKUP(Text!$F$130,'2026-27 Settlement data'!$B$9:$DG$30,$K65,FALSE) ->  | J65: 182 | K65: 53
E66: ='2026-27 Settlement data'!BC7 -> 2024-11-01 | F66: =VLOOKUP(Text!$F$130,'2026-27 Settlement data'!$B$9:$DG$30,$K66,FALSE) ->  | J66: 185 | K66: 54
E67: ='2026-27 Settlement data'!BD7 -> 2025-02-01 | F67: =VLOOKUP(Text!$F$130,'2026-27 Settlement data'!$B$9:$DG$30,$K67,FALSE) ->  | J67: 188 | K67: 55
B68: 195 | D68: =IF('iaith - language'!$K$1=2,VLOOKUP(B68,Text!$A$3:$C$402,2,0),VLOOKUP(B68,Text!$A$3:$C$402,3,0)) -> Nifer y Derbynwyr Lwfans Ceisio Swydd ar Sail Incwm, 18-64 oed | E68: ='2026-27 Settlement data'!BE7 -> 2024-05-01 | F68: =VLOOKUP(Text!$F$130,'2026-27 Settlement data'!$B$9:$DG$30,$K68,FALSE) ->  | G68: =IF('iaith - language'!$K$1=2,VLOOKUP(B69,Text!$A$4:$C$198,2,FALSE),VLOOKUP(B69,Text!$A$4:$C$198,3,FALSE)) -> NOMIS ystadegau swyddogol y farchnad lafur | J68: 114 | K68: 56
B69: 209 | E69: ='2026-27 Settlement data'!BF7 -> 2024-08-01 | F69: =VLOOKUP(Text!$F$130,'2026-27 Settlement data'!$B$9:$DG$30,$K69,FALSE) ->  | J69: 182 | K69: 57
E70: ='2026-27 Settlement data'!BG7 -> 2024-11-01 | F70: =VLOOKUP(Text!$F$130,'2026-27 Settlement data'!$B$9:$DG$30,$K70,FALSE) ->  | J70: 185 | K70: 58
E71: ='2026-27 Settlement data'!BH7 -> 2025-02-01 | F71: =VLOOKUP(Text!$F$130,'2026-27 Settlement data'!$B$9:$DG$30,$K71,FALSE) ->  | J71: 188 | K71: 59
B72: 196 | D72: =IF('iaith - language'!$K$1=2,VLOOKUP(B72,Text!$A$3:$C$402,2,0),VLOOKUP(B72,Text!$A$3:$C$402,3,0)) -> Nifer yr hawlwyr Credyd Pensiwn, 18-64 oed | E72: ='2026-27 Settlement data'!BI7 -> 2024-05-01 | F72: =VLOOKUP(Text!$F$130,'2026-27 Settlement data'!$B$9:$DG$30,$K72,FALSE) ->  | G72: =IF('iaith - language'!$K$1=2,VLOOKUP(B73,Text!$A$4:$C$198,2,FALSE),VLOOKUP(B73,Text!$A$4:$C$198,3,FALSE)) -> Yr Adran Gwaith a Phensiynau (DWP) | J72: 114 | K72: 60
B73: 208 | E73: ='2026-27 Settlement data'!BJ7 -> 2024-08-01 | F73: =VLOOKUP(Text!$F$130,'2026-27 Settlement data'!$B$9:$DG$30,$K73,FALSE) ->  | J73: 182 | K73: 61
E74: ='2026-27 Settlement data'!BK7 -> 2024-11-01 | F74: =VLOOKUP(Text!$F$130,'2026-27 Settlement data'!$B$9:$DG$30,$K74,FALSE) ->  | J74: 185 | K74: 62
E75: ='2026-27 Settlement data'!BL7 -> 2025-02-01 | F75: =VLOOKUP(Text!$F$130,'2026-27 Settlement data'!$B$9:$DG$30,$K75,FALSE) ->  | J75: 188 | K75: 63
B76: 197 | D76: =IF('iaith - language'!$K$1=2,VLOOKUP(B76,Text!$A$3:$C$402,2,0),VLOOKUP(B76,Text!$A$3:$C$402,3,0)) -> Nifer y rhai sydd yn derbyn Credyd Cynhwysol (ddim mewn cyflogaeth) 18-64 oed | E76: ='2026-27 Settlement data'!BM7 -> 2024-05-01 | F76: =VLOOKUP(Text!$F$130,'2026-27 Settlement data'!$B$9:$DG$30,$K76,FALSE) ->  | G76: =IF('iaith - language'!$K$1=2,VLOOKUP(B77,Text!$A$4:$C$198,2,FALSE),VLOOKUP(B77,Text!$A$4:$C$198,3,FALSE)) -> Yr Adran Gwaith a Phensiynau (DWP) | J76: 114 | K76: 64
B77: 208 | E77: ='2026-27 Settlement data'!BN7 -> 2024-08-01 | F77: =VLOOKUP(Text!$F$130,'2026-27 Settlement data'!$B$9:$DG$30,$K77,FALSE) ->  | J77: 182 | K77: 65
E78: ='2026-27 Settlement data'!BO7 -> 2024-11-01 | F78: =VLOOKUP(Text!$F$130,'2026-27 Settlement data'!$B$9:$DG$30,$K78,FALSE) ->  | J78: 185 | K78: 66
E79: ='2026-27 Settlement data'!BP7 -> 2025-02-01 | F79: =VLOOKUP(Text!$F$130,'2026-27 Settlement data'!$B$9:$DG$30,$K79,FALSE) ->  | J79: 188 | K79: 67
B80: 198 | D80: =IF('iaith - language'!$K$1=2,VLOOKUP(B80,Text!$A$3:$C$402,2,0),VLOOKUP(B80,Text!$A$3:$C$402,3,0)) -> Cyfanswm yr Hawlwyr Cymhorthdal Incwm | E80: ='2026-27 Settlement data'!BQ7 -> 2024-05-01 | F80: =VLOOKUP(Text!$F$130,'2026-27 Settlement data'!$B$9:$DG$30,$K80,FALSE) ->  | G80: =IF('iaith - language'!$K$1=2,VLOOKUP(B81,Text!$A$4:$C$198,2,FALSE),VLOOKUP(B81,Text!$A$4:$C$198,3,FALSE)) -> Yr Adran Gwaith a Phensiynau (DWP) | J80: 114 | K80: 68
B81: 208 | E81: ='2026-27 Settlement data'!BR7 -> 2024-08-01 | F81: =VLOOKUP(Text!$F$130,'2026-27 Settlement data'!$B$9:$DG$30,$K81,FALSE) ->  | J81: 182 | K81: 69
E82: ='2026-27 Settlement data'!BS7 -> 2024-11-01 | F82: =VLOOKUP(Text!$F$130,'2026-27 Settlement data'!$B$9:$DG$30,$K82,FALSE) ->  | J82: 185 | K82: 70
E83: ='2026-27 Settlement data'!BT7 -> 2025-02-01 | F83: =VLOOKUP(Text!$F$130,'2026-27 Settlement data'!$B$9:$DG$30,$K83,FALSE) ->  | J83: 188 | K83: 71
B84: 199 | D84: =IF('iaith - language'!$K$1=2,VLOOKUP(B84,Text!$A$3:$C$402,2,0),VLOOKUP(B84,Text!$A$3:$C$402,3,0)) -> Cyfanswm y Derbynwyr Lwfans Ceisio Swydd ar Sail Incwm | E84: ='2026-27 Settlement data'!BU7 -> 2024-05-01 | F84: =VLOOKUP(Text!$F$130,'2026-27 Settlement data'!$B$9:$DG$30,$K84,FALSE) ->  | G84: =IF('iaith - language'!$K$1=2,VLOOKUP(B85,Text!$A$4:$C$198,2,FALSE),VLOOKUP(B85,Text!$A$4:$C$198,3,FALSE)) -> NOMIS ystadegau swyddogol y farchnad lafur | J84: 114 | K84: =K83+1 -> 72
B85: 209 | E85: ='2026-27 Settlement data'!BV7 -> 2024-08-01 | F85: =VLOOKUP(Text!$F$130,'2026-27 Settlement data'!$B$9:$DG$30,$K85,FALSE) ->  | J85: 182 | K85: 73
E86: ='2026-27 Settlement data'!BW7 -> 2024-11-01 | F86: =VLOOKUP(Text!$F$130,'2026-27 Settlement data'!$B$9:$DG$30,$K86,FALSE) ->  | J86: 185 | K86: 74
E87: ='2026-27 Settlement data'!BX7 -> 2025-02-01 | F87: =VLOOKUP(Text!$F$130,'2026-27 Settlement data'!$B$9:$DG$30,$K87,FALSE) ->  | J87: 188 | K87: 75
B88: 200 | D88: =IF('iaith - language'!$K$1=2,VLOOKUP(B88,Text!$A$3:$C$402,2,0),VLOOKUP(B88,Text!$A$3:$C$402,3,0)) -> Cyfanswm Hawlwyr Credyd Pensiwn | E88: ='2026-27 Settlement data'!BY7 -> 2024-05-01 | F88: =VLOOKUP(Text!$F$130,'2026-27 Settlement data'!$B$9:$DG$30,$K88,FALSE) ->  | G88: =IF('iaith - language'!$K$1=2,VLOOKUP(B89,Text!$A$4:$C$198,2,FALSE),VLOOKUP(B89,Text!$A$4:$C$198,3,FALSE)) -> Yr Adran Gwaith a Phensiynau (DWP) | J88: 114 | K88: 76
B89: 208 | E89: ='2026-27 Settlement data'!BZ7 -> 2024-08-01 | F89: =VLOOKUP(Text!$F$130,'2026-27 Settlement data'!$B$9:$DG$30,$K89,FALSE) ->  | J89: 182 | K89: 77
E90: ='2026-27 Settlement data'!CA7 -> 2024-11-01 | F90: =VLOOKUP(Text!$F$130,'2026-27 Settlement data'!$B$9:$DG$30,$K90,FALSE) ->  | J90: 185 | K90: 78
E91: ='2026-27 Settlement data'!CB7 -> 2025-02-01 | F91: =VLOOKUP(Text!$F$130,'2026-27 Settlement data'!$B$9:$DG$30,$K91,FALSE) ->  | J91: 188 | K91: 79
B92: 201 | D92: =IF('iaith - language'!$K$1=2,VLOOKUP(B92,Text!$A$3:$C$402,2,0),VLOOKUP(B92,Text!$A$3:$C$402,3,0)) -> Cyfanswm y rhai sy’n derbyn Credyd Cynhwysol (ddim mewn cyflogaeth) | E92: ='2026-27 Settlement data'!CC7 -> 2024-05-01 | F92: =VLOOKUP(Text!$F$130,'2026-27 Settlement data'!$B$9:$DG$30,$K92,FALSE) ->  | G92: =IF('iaith - language'!$K$1=2,VLOOKUP(B93,Text!$A$4:$C$198,2,FALSE),VLOOKUP(B93,Text!$A$4:$C$198,3,FALSE)) -> Yr Adran Gwaith a Phensiynau (DWP) | J92: 114 | K92: 80
B93: 208 | E93: ='2026-27 Settlement data'!CD7 -> 2024-08-01 | F93: =VLOOKUP(Text!$F$130,'2026-27 Settlement data'!$B$9:$DG$30,$K93,FALSE) ->  | J93: 182 | K93: 81
E94: ='2026-27 Settlement data'!CE7 -> 2024-11-01 | F94: =VLOOKUP(Text!$F$130,'2026-27 Settlement data'!$B$9:$DG$30,$K94,FALSE) ->  | J94: 185 | K94: 82
E95: ='2026-27 Settlement data'!CF7 -> 2025-02-01 | F95: =VLOOKUP(Text!$F$130,'2026-27 Settlement data'!$B$9:$DG$30,$K95,FALSE) ->  | J95: 188 | K95: 83
B96: 202 | D96: =IF('iaith - language'!$K$1=2,VLOOKUP(B96,Text!$A$3:$C$402,2,0),VLOOKUP(B96,Text!$A$3:$C$402,3,0)) -> Nifer yr Hawlwyr Lwfans Anabledd Difrifol, 18-64 oed | E96: ='2026-27 Settlement data'!CG7 -> 2024-05-01 | F96: =VLOOKUP(Text!$F$130,'2026-27 Settlement data'!$B$9:$DG$30,$K96,FALSE) ->  | G96: =IF('iaith - language'!$K$1=2,VLOOKUP(B97,Text!$A$4:$C$198,2,FALSE),VLOOKUP(B97,Text!$A$4:$C$198,3,FALSE)) -> Yr Adran Gwaith a Phensiynau (DWP) | J96: 114 | K96: 84
B97: 208 | E97: ='2026-27 Settlement data'!CH7 -> 2024-08-01 | F97: =VLOOKUP(Text!$F$130,'2026-27 Settlement data'!$B$9:$DG$30,$K97,FALSE) ->  | J97: 182 | K97: 85
E98: ='2026-27 Settlement data'!CI7 -> 2024-11-01 | F98: =VLOOKUP(Text!$F$130,'2026-27 Settlement data'!$B$9:$DG$30,$K98,FALSE) ->  | J98: 185 | K98: 86
E99: ='2026-27 Settlement data'!CJ7 -> 2025-02-01 | F99: =VLOOKUP(Text!$F$130,'2026-27 Settlement data'!$B$9:$DG$30,$K99,FALSE) ->  | J99: 188 | K99: 87
B100: 203 | D100: =IF('iaith - language'!$K$1=2,VLOOKUP(B100,Text!$A$3:$C$402,2,0),VLOOKUP(B100,Text!$A$3:$C$402,3,0)) -> Nifer yr Hawlwyr Lwfans Byw i'r Anabl, 18-64 oed | E100: ='2026-27 Settlement data'!CK7 -> 2024-05-01 | F100: =VLOOKUP(Text!$F$130,'2026-27 Settlement data'!$B$9:$DG$30,$K100,FALSE) ->  | G100: =IF('iaith - language'!$K$1=2,VLOOKUP(B101,Text!$A$4:$C$198,2,FALSE),VLOOKUP(B101,Text!$A$4:$C$198,3,FALSE)) -> Yr Adran Gwaith a Phensiynau (DWP) | J100: 114 | K100: 88
B101: 208 | E101: ='2026-27 Settlement data'!CL7 -> 2024-08-01 | F101: =VLOOKUP(Text!$F$130,'2026-27 Settlement data'!$B$9:$DG$30,$K101,FALSE) ->  | J101: 182 | K101: 89
E102: ='2026-27 Settlement data'!CM7 -> 2024-11-01 | F102: =VLOOKUP(Text!$F$130,'2026-27 Settlement data'!$B$9:$DG$30,$K102,FALSE) ->  | J102: 185 | K102: 90
E103: ='2026-27 Settlement data'!CN7 -> 2025-02-01 | F103: =VLOOKUP(Text!$F$130,'2026-27 Settlement data'!$B$9:$DG$30,$K103,FALSE) ->  | J103: 188 | K103: 91
B104: 204 | D104: =IF('iaith - language'!$K$1=2,VLOOKUP(B104,Text!$A$3:$C$402,2,0),VLOOKUP(B104,Text!$A$3:$C$402,3,0)) -> Nifer yr Hawlwyr Taliad Annibyniaeth Bersonol sydd yn 18-64 oed | E104: ='2026-27 Settlement data'!CO7 -> 2024-05-01 | F104: =VLOOKUP(Text!$F$130,'2026-27 Settlement data'!$B$9:$DG$30,$K104,FALSE) ->  | G104: =IF('iaith - language'!$K$1=2,VLOOKUP(B105,Text!$A$4:$C$198,2,FALSE),VLOOKUP(B105,Text!$A$4:$C$198,3,FALSE)) -> Yr Adran Gwaith a Phensiynau (DWP) | J104: 114 | K104: 92
B105: 208 | E105: ='2026-27 Settlement data'!CP7 -> 2024-08-01 | F105: =VLOOKUP(Text!$F$130,'2026-27 Settlement data'!$B$9:$DG$30,$K105,FALSE) ->  | J105: 182 | K105: 93
E106: ='2026-27 Settlement data'!CQ7 -> 2024-11-01 | F106: =VLOOKUP(Text!$F$130,'2026-27 Settlement data'!$B$9:$DG$30,$K106,FALSE) ->  | J106: 185 | K106: 94
E107: ='2026-27 Settlement data'!CR7 -> 2025-02-01 | F107: =VLOOKUP(Text!$F$130,'2026-27 Settlement data'!$B$9:$DG$30,$K107,FALSE) ->  | J107: 188 | K107: 95
B108: 205 | D108: =IF('iaith - language'!$K$1=2,VLOOKUP(B108,Text!$A$3:$C$402,2,0),VLOOKUP(B108,Text!$A$3:$C$402,3,0)) -> Hawlwyr Credyd Pensiwn, 65 oed a hŷn | E108: ='2026-27 Settlement data'!CS7 -> 2024-05-01 | F108: =VLOOKUP(Text!$F$130,'2026-27 Settlement data'!$B$9:$DG$30,$K108,FALSE) ->  | G108: =IF('iaith - language'!$K$1=2,VLOOKUP(B109,Text!$A$4:$C$198,2,FALSE),VLOOKUP(B109,Text!$A$4:$C$198,3,FALSE)) -> Yr Adran Gwaith a Phensiynau (DWP) | J108: 114 | K108: 96
B109: 208 | E109: ='2026-27 Settlement data'!CT7 -> 2024-08-01 | F109: =VLOOKUP(Text!$F$130,'2026-27 Settlement data'!$B$9:$DG$30,$K109,FALSE) ->  | J109: 182 | K109: 97
E110: ='2026-27 Settlement data'!CU7 -> 2024-11-01 | F110: =VLOOKUP(Text!$F$130,'2026-27 Settlement data'!$B$9:$DG$30,$K110,FALSE) ->  | J110: 185 | K110: 98
E111: ='2026-27 Settlement data'!CV7 -> 2025-02-01 | F111: =VLOOKUP(Text!$F$130,'2026-27 Settlement data'!$B$9:$DG$30,$K111,FALSE) ->  | J111: 188 | K111: 99
B112: 206 | D112: =IF('iaith - language'!$K$1=2,VLOOKUP(B112,Text!$A$3:$C$402,2,0),VLOOKUP(B112,Text!$A$3:$C$402,3,0)) -> Cyfanswn yr hawlwyr Cymhorthdal Incwm, Lwfans Ceisio Gwaith, a Chredyd Pensiwn | E112: ='2026-27 Settlement data'!CW7 -> 2024-05-01 | F112: =VLOOKUP(Text!$F$130,'2026-27 Settlement data'!$B$9:$DG$30,$K112,FALSE) ->  | G112: =IF('iaith - language'!$K$1=2,VLOOKUP(B113,Text!$A$4:$C$198,2,FALSE),VLOOKUP(B113,Text!$A$4:$C$198,3,FALSE)) -> NOMIS ystadegau swyddogol y farchnad lafur a Yr Adran Gwaith a Phensiynau (DWP) | J112: 114 | K112: 100
B113: 210 | E113: ='2026-27 Settlement data'!CX7 -> 2024-08-01 | F113: =VLOOKUP(Text!$F$130,'2026-27 Settlement data'!$B$9:$DG$30,$K113,FALSE) ->  | J113: 182 | K113: 101
E114: ='2026-27 Settlement data'!CY7 -> 2024-11-01 | F114: =VLOOKUP(Text!$F$130,'2026-27 Settlement data'!$B$9:$DG$30,$K114,FALSE) ->  | J114: 185 | K114: 102
E115: ='2026-27 Settlement data'!CZ7 -> 2025-02-01 | F115: =VLOOKUP(Text!$F$130,'2026-27 Settlement data'!$B$9:$DG$30,$K115,FALSE) ->  | J115: 188 | K115: 103
A116: 271.5 | B116: 274 | C116: =IF('iaith - language'!$K$1=2,VLOOKUP(A116,Text!$A$3:$C$402,2,0),VLOOKUP(A116,Text!$A$3:$C$402,3,0)) -> Stoc eiddo treth cyngor | D116: =IF('iaith - language'!$K$1=2,VLOOKUP(A116,Text!$A$3:$C$402, 2, 0),VLOOKUP(A116,Text!$A$3:$C$402, 3,0)) -> Stoc eiddo treth cyngor | E116: ='2026-27 Settlement data'!DA7 -> 2025-03-01 | F116: =VLOOKUP(Text!$F$130,'2026-27 Settlement data'!$B$9:$DG$30,$K116,FALSE) ->  | G116: =IF('iaith - language'!$K$1=2,VLOOKUP(B116,Text!$A$4:$C$198,2,FALSE),VLOOKUP(B116,Text!$A$4:$C$198,3,FALSE)) -> Asiantaeth y Swyddfa Brisio | J116: 115 | K116: 104
A117: 40 | B117: 53 | C117: =IF('iaith - language'!$K$1=2,VLOOKUP(A117,Text!$A$3:$C$402,2,0),VLOOKUP(A117,Text!$A$3:$C$402,3,0)) -> DATA FFYRDD | D117: =IF('iaith - language'!$K$1=2,VLOOKUP(A117,Text!$A$3:$C$402, 2, 0),VLOOKUP(A117,Text!$A$3:$C$402, 3,0)) -> DATA FFYRDD | E117: April 2024 | F117: =VLOOKUP(Text!$F$130,'2026-27 Settlement data'!$B$9:$DG$30,$K117,FALSE) ->  | G117: =IF('iaith - language'!$K$1=2,VLOOKUP(A118,Text!$A$4:$C$198,2,FALSE),VLOOKUP(A118,Text!$A$4:$C$198,3,FALSE)) -> Llywodraeth Cymru | K117: 105
A118: 29 | B118: 55 | D118: =IF('iaith - language'!$K$1=2,VLOOKUP(A118,Text!$A$3:$C$402, 2, 0),VLOOKUP(A118,Text!$A$3:$C$402, 3,0)) -> Llywodraeth Cymru | F118: =VLOOKUP(Text!$F$130,'2026-27 Settlement data'!$B$9:$DG$30,$K118,FALSE) ->  | K118: 106
B119: 57 | D119: =IF('iaith - language'!$K$1=2,VLOOKUP(A119,Text!$A$3:$C$402, 2, 0),VLOOKUP(A119,Text!$A$3:$C$402, 3,0)) ->  | F119: =VLOOKUP(Text!$F$130,'2026-27 Settlement data'!$B$9:$DG$30,$K119,FALSE) ->  | K119: 107
B120: 54 | D120: =IF('iaith - language'!$K$1=2,VLOOKUP(A120,Text!$A$3:$C$402, 2, 0),VLOOKUP(A120,Text!$A$3:$C$402, 3,0)) ->  | F120: =VLOOKUP(Text!$F$130,'2026-27 Settlement data'!$B$9:$DG$30,$K120,FALSE) ->  | K120: 108
B121: 56 | D121: =IF('iaith - language'!$K$1=2,VLOOKUP(A121,Text!$A$3:$C$402, 2, 0),VLOOKUP(A121,Text!$A$3:$C$402, 3,0)) ->  | F121: =VLOOKUP(Text!$F$130,'2026-27 Settlement data'!$B$9:$DG$30,$K121,FALSE) ->  | K121: 109
B122: 58 | D122: =IF('iaith - language'!$K$1=2,VLOOKUP(A122,Text!$A$3:$C$402, 2, 0),VLOOKUP(A122,Text!$A$3:$C$402, 3,0)) ->  | F122: =VLOOKUP(Text!$F$130,'2026-27 Settlement data'!$B$9:$DG$30,$K122,FALSE) ->  | K122: 110
A123: 700 | C123: Homelessness decisions | D123: =IF('iaith - language'!$K$1=2,VLOOKUP(A123,Text!$A$3:$C$402, 2, 0),VLOOKUP(A123,Text!$A$3:$C$402, 3,0)) -> Prevention of Homelessness by Area and Measure (Section 66) | E123: ='2026-27 Settlement data'!DH7 -> 2024-25 | F123: =VLOOKUP(Text!$F$130,'2026-27 Settlement data'!$B$9:$FG$30,$K123,FALSE) ->  | G123: Welsh Government | K123: 111
A124: 701 | D124: =IF('iaith - language'!$K$1=2,VLOOKUP(A124,Text!$A$3:$C$402, 2, 0),VLOOKUP(A124,Text!$A$3:$C$402, 3,0)) -> Number of outcomes - Eligible, homeless, subject to duty to help to secure (Section 73) | E124: ='2026-27 Settlement data'!DI7 -> 2024-25 | F124: =VLOOKUP(Text!$F$130,'2026-27 Settlement data'!$B$9:$FG$30,$K124,FALSE) ->  | K124: 112
A125: 702 | C125: Housing Benefit Data | D125: =IF('iaith - language'!$K$1=2,VLOOKUP(A125,Text!$A$3:$C$402, 2, 0),VLOOKUP(A125,Text!$A$3:$C$402, 3,0)) -> Cyfanswm nifer yr aelwydydd ar Gredyd Cynhwysol (gyda hawl i dai a derbyn taliad) | E125: ='2026-27 Settlement data'!DJ7 -> 2023-05-01 | F125: =VLOOKUP(Text!$F$130,'2026-27 Settlement data'!$B$9:$FG$30,$K125,FALSE) ->  | K125: 113
E126: ='2026-27 Settlement data'!DK7 -> 2023-06-01 | F126: =VLOOKUP(Text!$F$130,'2026-27 Settlement data'!$B$9:$FG$30,$K126,FALSE) ->  | K126: 114
E127: ='2026-27 Settlement data'!DL7 -> 2023-07-01 | F127: =VLOOKUP(Text!$F$130,'2026-27 Settlement data'!$B$9:$FG$30,$K127,FALSE) ->  | K127: 115
E128: ='2026-27 Settlement data'!DM7 -> 2023-08-01 | F128: =VLOOKUP(Text!$F$130,'2026-27 Settlement data'!$B$9:$FG$30,$K128,FALSE) ->  | K128: 116
E129: ='2026-27 Settlement data'!DN7 -> 2023-09-01 | F129: =VLOOKUP(Text!$F$130,'2026-27 Settlement data'!$B$9:$FG$30,$K129,FALSE) ->  | K129: 117
E130: ='2026-27 Settlement data'!DO7 -> 2023-10-01 | F130: =VLOOKUP(Text!$F$130,'2026-27 Settlement data'!$B$9:$FG$30,$K130,FALSE) ->  | K130: 118
E131: ='2026-27 Settlement data'!DP7 -> 2023-11-01 | F131: =VLOOKUP(Text!$F$130,'2026-27 Settlement data'!$B$9:$FG$30,$K131,FALSE) ->  | K131: 119
E132: ='2026-27 Settlement data'!DQ7 -> 2023-12-01 | F132: =VLOOKUP(Text!$F$130,'2026-27 Settlement data'!$B$9:$FG$30,$K132,FALSE) ->  | K132: 120
E133: ='2026-27 Settlement data'!DR7 -> 2024-01-01 | F133: =VLOOKUP(Text!$F$130,'2026-27 Settlement data'!$B$9:$FG$30,$K133,FALSE) ->  | K133: 121
E134: ='2026-27 Settlement data'!DS7 -> 2024-02-01 | F134: =VLOOKUP(Text!$F$130,'2026-27 Settlement data'!$B$9:$FG$30,$K134,FALSE) ->  | K134: 122
E135: ='2026-27 Settlement data'!DT7 -> 2024-03-01 | F135: =VLOOKUP(Text!$F$130,'2026-27 Settlement data'!$B$9:$FG$30,$K135,FALSE) ->  | K135: 123
E136: ='2026-27 Settlement data'!DU7 -> 2024-04-01 | F136: =VLOOKUP(Text!$F$130,'2026-27 Settlement data'!$B$9:$FG$30,$K136,FALSE) ->  | G136: Welsh Government | K136: 124
E137: ='2026-27 Settlement data'!DV7 -> 2024-05-01 | F137: =VLOOKUP(Text!$F$130,'2026-27 Settlement data'!$B$9:$FG$30,$K137,FALSE) ->  | K137: 125
E138: ='2026-27 Settlement data'!DW7 -> 2024-06-01 | F138: =VLOOKUP(Text!$F$130,'2026-27 Settlement data'!$B$9:$FG$30,$K138,FALSE) ->  | K138: 126
E139: ='2026-27 Settlement data'!DX7 -> 2024-07-01 | F139: =VLOOKUP(Text!$F$130,'2026-27 Settlement data'!$B$9:$FG$30,$K139,FALSE) ->  | K139: 127
E140: ='2026-27 Settlement data'!DY7 -> 2024-08-01 | F140: =VLOOKUP(Text!$F$130,'2026-27 Settlement data'!$B$9:$FG$30,$K140,FALSE) ->  | K140: 128
E141: ='2026-27 Settlement data'!DZ7 -> 2024-09-01 | F141: =VLOOKUP(Text!$F$130,'2026-27 Settlement data'!$B$9:$FG$30,$K141,FALSE) ->  | K141: 129
E142: ='2026-27 Settlement data'!EA7 -> 2024-10-01 | F142: =VLOOKUP(Text!$F$130,'2026-27 Settlement data'!$B$9:$FG$30,$K142,FALSE) ->  | K142: 130
E143: ='2026-27 Settlement data'!EB7 -> 2024-11-01 | F143: =VLOOKUP(Text!$F$130,'2026-27 Settlement data'!$B$9:$FG$30,$K143,FALSE) ->  | K143: 131
E144: ='2026-27 Settlement data'!EC7 -> 2024-12-01 | F144: =VLOOKUP(Text!$F$130,'2026-27 Settlement data'!$B$9:$FG$30,$K144,FALSE) ->  | K144: 132
E145: ='2026-27 Settlement data'!ED7 -> 2025-01-01 | F145: =VLOOKUP(Text!$F$130,'2026-27 Settlement data'!$B$9:$FG$30,$K145,FALSE) ->  | K145: 133
E146: ='2026-27 Settlement data'!EE7 -> 2025-02-01 | F146: =VLOOKUP(Text!$F$130,'2026-27 Settlement data'!$B$9:$FG$30,$K146,FALSE) ->  | K146: 134
E147: ='2026-27 Settlement data'!EF7 -> 2025-03-01 | F147: =VLOOKUP(Text!$F$130,'2026-27 Settlement data'!$B$9:$FG$30,$K147,FALSE) ->  | K147: 135
E148: ='2026-27 Settlement data'!EG7 -> 2025-04-01 | F148: =VLOOKUP(Text!$F$130,'2026-27 Settlement data'!$B$9:$FG$30,$K148,FALSE) ->  | K148: =K147+1 -> 136
E149: ='2026-27 Settlement data'!EH7 -> 2025-05-01 | F149: =VLOOKUP(Text!$F$130,'2026-27 Settlement data'!$B$9:$FG$30,$K149,FALSE) ->  | K149: 137
A150: 703 | D150: =IF('iaith - language'!$K$1=2,VLOOKUP(A150,Text!$A$3:$C$402, 2, 0),VLOOKUP(A150,Text!$A$3:$C$402, 3,0)) -> Cyfanswm nifer yr aelwydydd sy'n derbyn budd-dal tai | E150: 2023-05-01 | F150: =VLOOKUP(Text!$F$130,'2026-27 Settlement data'!$B$9:$FG$30,$K150,FALSE) ->  | K150: 138
E151: 2023-06-01 | F151: =VLOOKUP(Text!$F$130,'2026-27 Settlement data'!$B$9:$FG$30,$K151,FALSE) ->  | K151: 139
E152: 2023-07-01 | F152: =VLOOKUP(Text!$F$130,'2026-27 Settlement data'!$B$9:$FG$30,$K152,FALSE) ->  | K152: 140
E153: 2023-08-01 | F153: =VLOOKUP(Text!$F$130,'2026-27 Settlement data'!$B$9:$FG$30,$K153,FALSE) ->  | K153: 141
E154: 2023-09-01 | F154: =VLOOKUP(Text!$F$130,'2026-27 Settlement data'!$B$9:$FG$30,$K154,FALSE) ->  | K154: 142
E155: 2023-10-01 | F155: =VLOOKUP(Text!$F$130,'2026-27 Settlement data'!$B$9:$FG$30,$K155,FALSE) ->  | K155: 143
E156: 2023-11-01 | F156: =VLOOKUP(Text!$F$130,'2026-27 Settlement data'!$B$9:$FG$30,$K156,FALSE) ->  | K156: 144
E157: 2023-12-01 | F157: =VLOOKUP(Text!$F$130,'2026-27 Settlement data'!$B$9:$FG$30,$K157,FALSE) ->  | K157: 145
E158: 2024-01-01 | F158: =VLOOKUP(Text!$F$130,'2026-27 Settlement data'!$B$9:$FG$30,$K158,FALSE) ->  | K158: 146
E159: 2024-02-01 | F159: =VLOOKUP(Text!$F$130,'2026-27 Settlement data'!$B$9:$FG$30,$K159,FALSE) ->  | K159: 147
E160: 2024-03-01 | F160: =VLOOKUP(Text!$F$130,'2026-27 Settlement data'!$B$9:$FG$30,$K160,FALSE) ->  | K160: 148
E161: 2024-04-01 | F161: =VLOOKUP(Text!$F$130,'2026-27 Settlement data'!$B$9:$FG$30,$K161,FALSE) ->  | G161: Welsh Government | K161: 149
E162: 2024-05-01 | F162: =VLOOKUP(Text!$F$130,'2026-27 Settlement data'!$B$9:$FG$30,$K162,FALSE) ->  | K162: 150
E163: 2024-06-01 | F163: =VLOOKUP(Text!$F$130,'2026-27 Settlement data'!$B$9:$FG$30,$K163,FALSE) ->  | K163: 151
E164: 2024-07-01 | F164: =VLOOKUP(Text!$F$130,'2026-27 Settlement data'!$B$9:$FG$30,$K164,FALSE) ->  | K164: 152
E165: 2024-08-01 | F165: =VLOOKUP(Text!$F$130,'2026-27 Settlement data'!$B$9:$FG$30,$K165,FALSE) ->  | K165: 153
E166: 2024-09-01 | F166: =VLOOKUP(Text!$F$130,'2026-27 Settlement data'!$B$9:$FG$30,$K166,FALSE) ->  | K166: 154
E167: 2024-10-01 | F167: =VLOOKUP(Text!$F$130,'2026-27 Settlement data'!$B$9:$FG$30,$K167,FALSE) ->  | K167: 155
E168: 2024-11-01 | F168: =VLOOKUP(Text!$F$130,'2026-27 Settlement data'!$B$9:$FG$30,$K168,FALSE) ->  | K168: 156
E169: 2024-12-01 | F169: =VLOOKUP(Text!$F$130,'2026-27 Settlement data'!$B$9:$FG$30,$K169,FALSE) ->  | K169: 157
E170: 2025-01-01 | F170: =VLOOKUP(Text!$F$130,'2026-27 Settlement data'!$B$9:$FG$30,$K170,FALSE) ->  | K170: 158
E171: 2025-02-01 | F171: =VLOOKUP(Text!$F$130,'2026-27 Settlement data'!$B$9:$FG$30,$K171,FALSE) ->  | K171: 159
E172: 2025-03-01 | F172: =VLOOKUP(Text!$F$130,'2026-27 Settlement data'!$B$9:$FG$30,$K172,FALSE) ->  | K172: 160
E173: 2025-04-01 | F173: =VLOOKUP(Text!$F$130,'2026-27 Settlement data'!$B$9:$FG$30,$K173,FALSE) ->  | K173: 161
E174: 2025-05-01 | F174: =VLOOKUP(Text!$F$130,'2026-27 Settlement data'!$B$9:$FG$30,$K174,FALSE) ->  | K174: 162
A177: 27 | C177: =IF('iaith - language'!$K$1=2,VLOOKUP(A177,Text!$A$3:$C$339,2,0),VLOOKUP(A177,Text!$A$3:$C$339,3,0)) -> Yr Is-adran Polisi Cyllid Llywodraeth Leol a Chynaliadwyedd, Llywodraeth Cymru
A179: 28 | B179: 271 | C179: =IF('iaith - language'!$K$1=2,VLOOKUP(A179,Text!$A$3:$C$339,2,0),VLOOKUP(A179,Text!$A$3:$C$339,3,0)) -> I'w ddychwelyd drwy e-bost i: | D179: LGFPSettlement@gov.wales

Sheet 2026-27 Settlement data (hidden)
B1: 600 | C1: =IF('iaith - language'!$K$1=2,VLOOKUP(B1,Text!$A$1:$C$353,2,FALSE),VLOOKUP(B1,Text!$A$1:$C$353,3,FALSE)) -> Proses wirio data Cylch 1 - data i'w defnyddio ar gyfer Setliad 2026-27
D3: 51 | H3: 61 | I3: 62 | J3: 67 | K3: 68 | L3: 69 | M3: 70 | N3: 71 | O3: 72 | P3: 73 | Q3: 74 | R3: 75 | S3: 76 | T3: 77 | U3: 78 | V3: 79 | W3: 80 | X3: 81 | Y3: 82 | Z3: 83 | AA3: 84 | AB3: 86 | AC3: 90 | AD3: 91 | AE3: 92 | AF3: 145 | AG3: 147 | AH3: 143 | AI3: 149 | AJ3: 151 | AK3: 152 | AL3: 152.5 | AM3: 160 | AN3: 162 | AO3: 163 | AP3: 192 | BA3: 194 | BE3: 195 | BI3: 196 | BM3: 197 | BQ3: 198 | BU3: 199 | BY3: 200 | CC3: 201 | CG3: 202 | CK3: 203 | CO3: 204 | CS3: 205 | CW3: 206 | DA3: 271.5 | DB3: 53 | DC3: 55 | DD3: 57 | DE3: 54 | DF3: 56 | DG3: 58
D4: 601 | E4: =D4+1 -> 602 | F4: =E4+1 -> 603 | G4: =F4+1 -> 604 | H4: =G4+1 -> 605 | I4: 605 | AD4: 605 | AF4: 604 | AG4: 604 | AH4: 606 | AP4: 607 | AQ4: =AP4+1 -> 608 | AR4: =AQ4+1 -> 609 | AS4: =AR4+1 -> 610 | AT4: =AS4+1 -> 611 | AU4: 604 | AV4: 606 | AW4: 605 | AX4: 612 | AY4: =AX4+1 -> 613 | AZ4: =AY4+1 -> 614 | BA4: 615 | BB4: 616 | BC4: 608 | BD4: 611 | BE4: =BA4 -> 615 | BF4: 616 | BG4: 608 | BH4: 611 | BI4: 615 | BJ4: 616 | BK4: 608 | BL4: 611 | BM4: 615 | BN4: 616 | BO4: 608 | BP4: 611 | BQ4: 615 | BR4: 616 | BS4: 608 | BT4: 611 | BU4: 615 | BV4: 616 | BW4: 608 | BX4: 611 | BY4: 615 | BZ4: 616 | CA4: 608 | CB4: 611 | CC4: 615 | CD4: 616 | CE4: 608 | CF4: 611 | CG4: 615 | CH4: 616 | CI4: 608 | CJ4: 611 | CK4: 615 | CL4: 616 | CM4: 608 | CN4: 611 | CO4: 615 | CP4: 616 | CQ4: 608 | CR4: 611 | CS4: 615 | CT4: 616 | CU4: 608 | CV4: 611 | CW4: 615 | CX4: 616 | CY4: 608 | CZ4: 611 | DA4: =G4 -> 604 | DB4: 604 | DC4: 604 | DD4: 604 | DE4: 604 | DF4: 604 | DG4: 604
D6: =IF('iaith - language'!$K$1=2,VLOOKUP(D3,Text!$A$3:$C$353,2,FALSE),VLOOKUP(D3,Text!$A$3:$C$353,3,FALSE)) -> Ceisiadau Cynllunio a Gafwyd | H6: =IF('iaith - language'!$K$1=2,VLOOKUP(H3,Text!$A$3:$C$353,2,FALSE),VLOOKUP(H3,Text!$A$3:$C$353,3,FALSE)) -> Stoc anheddau'r sector preifat | I6: =IF('iaith - language'!$K$1=2,VLOOKUP(I3,Text!$A$3:$C$353,2,FALSE),VLOOKUP(I3,Text!$A$3:$C$353,3,FALSE)) -> Arwynebedd tir (hectarau) | J6: =IF('iaith - language'!$K$1=2,VLOOKUP(J3,Text!$A$3:$C$353,2,FALSE),VLOOKUP(J3,Text!$A$3:$C$353,3,FALSE)) -> Cyfanswm y boblogaeth | K6: =IF('iaith - language'!$K$1=2,VLOOKUP(K3,Text!$A$3:$C$353,2,FALSE),VLOOKUP(K3,Text!$A$3:$C$353,3,FALSE)) -> Poblogaeth 3 oed | L6: =IF('iaith - language'!$K$1=2,VLOOKUP(L3,Text!$A$3:$C$353,2,FALSE),VLOOKUP(L3,Text!$A$3:$C$353,3,FALSE)) -> Poblogaeth 3 i 11 oed | M6: =IF('iaith - language'!$K$1=2,VLOOKUP(M3,Text!$A$3:$C$353,2,FALSE),VLOOKUP(M3,Text!$A$3:$C$353,3,FALSE)) -> Poblogaeth 3 i 16 oed | N6: =IF('iaith - language'!$K$1=2,VLOOKUP(N3,Text!$A$3:$C$353,2,FALSE),VLOOKUP(N3,Text!$A$3:$C$353,3,FALSE)) -> Poblogaeth 11 i 15 oed | O6: =IF('iaith - language'!$K$1=2,VLOOKUP(O3,Text!$A$3:$C$353,2,FALSE),VLOOKUP(O3,Text!$A$3:$C$353,3,FALSE)) -> Poblogaeth 11 i 20 oed | P6: =IF('iaith - language'!$K$1=2,VLOOKUP(P3,Text!$A$3:$C$353,2,FALSE),VLOOKUP(P3,Text!$A$3:$C$353,3,FALSE)) -> Poblogaeth 16 oed a throsodd | Q6: =IF('iaith - language'!$K$1=2,VLOOKUP(Q3,Text!$A$3:$C$353,2,FALSE),VLOOKUP(Q3,Text!$A$3:$C$353,3,FALSE)) -> Poblogaeth 16 i 18 oed | R6: =IF('iaith - language'!$K$1=2,VLOOKUP(R3,Text!$A$3:$C$353,2,FALSE),VLOOKUP(R3,Text!$A$3:$C$353,3,FALSE)) -> Poblogaeth 0 i 17 oed | S6: =IF('iaith - language'!$K$1=2,VLOOKUP(S3,Text!$A$3:$C$353,2,FALSE),VLOOKUP(S3,Text!$A$3:$C$353,3,FALSE)) -> Poblogaeth 18 i 64 oed | T6: =IF('iaith - language'!$K$1=2,VLOOKUP(T3,Text!$A$3:$C$353,2,FALSE),VLOOKUP(T3,Text!$A$3:$C$353,3,FALSE)) -> Poblogaeth 18 oed a throsodd | U6: =IF('iaith - language'!$K$1=2,VLOOKUP(U3,Text!$A$3:$C$353,2,FALSE),VLOOKUP(U3,Text!$A$3:$C$353,3,FALSE)) -> Poblogaeth o dan 60 oed | V6: =IF('iaith - language'!$K$1=2,VLOOKUP(V3,Text!$A$3:$C$353,2,FALSE),VLOOKUP(V3,Text!$A$3:$C$353,3,FALSE)) -> Poblogaeth 60 oed a throsodd | W6: =IF('iaith - language'!$K$1=2,VLOOKUP(W3,Text!$A$3:$C$353,2,FALSE),VLOOKUP(W3,Text!$A$3:$C$353,3,FALSE)) -> Poblogaeth 85 oed a throsodd | X6: =IF('iaith - language'!$K$1=2,VLOOKUP(X3,Text!$A$3:$C$353,2,FALSE),VLOOKUP(X3,Text!$A$3:$C$353,3,FALSE)) -> Poblogaeth oedran gweithio (16-65G/B) | Y6: =IF('iaith - language'!$K$1=2,VLOOKUP(Y3,Text!$A$3:$C$353,2,FALSE),VLOOKUP(Y3,Text!$A$3:$C$353,3,FALSE)) -> Amcangyfrifon Poblogaeth Ganol Blwyddyn, pob oed | Z6: =IF('iaith - language'!$K$1=2,VLOOKUP(Z3,Text!$A$3:$C$353,2,FALSE),VLOOKUP(Z3,Text!$A$3:$C$353,3,FALSE)) -> Amcangyfrifon Poblogaeth Ganol Blwyddyn, 18 oed a throsodd | AA6: =IF('iaith - language'!$K$1=2,VLOOKUP(AA3,Text!$A$3:$C$353,2,FALSE),VLOOKUP(AA3,Text!$A$3:$C$353,3,FALSE)) -> Amcangyfrifon Poblogaeth Ganol Blwyddyn, 65 oed a throsodd | AB6: =IF('iaith - language'!$K$1=2,VLOOKUP(AB3,Text!$A$3:$C$353,2,FALSE),VLOOKUP(AB3,Text!$A$3:$C$353,3,FALSE)) -> Swm a wariwyd ar grantiau cyfleusterau i'r anabl wedi'u cwblhau (£s) | AC6: =IF('iaith - language'!$K$1=2,VLOOKUP(AC3,Text!$A$3:$C$353,2,FALSE),VLOOKUP(AC3,Text!$A$3:$C$353,3,FALSE)) -> Praeseptau Draenio Tir | AD6: =IF('iaith - language'!$K$1=2,VLOOKUP(AD3,Text!$A$3:$C$353,2,FALSE),VLOOKUP(AD3,Text!$A$3:$C$353,3,FALSE)) -> Hyd yr arfordir a warchodir | AE6: =IF('iaith - language'!$K$1=2,VLOOKUP(AE3,Text!$A$3:$C$353,2,FALSE),VLOOKUP(AE3,Text!$A$3:$C$353,3,FALSE)) -> Nifer y Ffermydd | AF6: =IF('iaith - language'!$K$1=2,VLOOKUP(AF3,Text!$A$3:$C$353,2,FALSE),VLOOKUP(AF3,Text!$A$3:$C$353,3,FALSE)) -> Nifer yr Eiddo Masnachu | AG6: =IF('iaith - language'!$K$1=2,VLOOKUP(AG3,Text!$A$3:$C$353,2,FALSE),VLOOKUP(AG3,Text!$A$3:$C$353,3,FALSE)) -> Nifer yr Eiddo Bwyd | AH6: =IF('iaith - language'!$K$1=2,VLOOKUP(AH3,Text!$A$3:$C$353,2,FALSE),VLOOKUP(AH3,Text!$A$3:$C$353,3,FALSE)) -> Cyfanswm yr unedau goleuadau stryd | AI6: =IF('iaith - language'!$K$1=2,VLOOKUP(AI3,Text!$A$3:$C$353,2,FALSE),VLOOKUP(AI3,Text!$A$3:$C$353,3,FALSE)) -> Nifer y marwolaethau wedi'u cofrestru | AJ6: =IF('iaith - language'!$K$1=2,VLOOKUP(AJ3,Text!$A$3:$C$353,2,FALSE),VLOOKUP(AJ3,Text!$A$3:$C$353,3,FALSE)) -> Llwyth achosion Cynlluniau Gostyngiadau'r Dreth Gyngor | AK6: =IF('iaith - language'!$K$1=2,VLOOKUP(AK3,Text!$A$3:$C$353,2,FALSE),VLOOKUP(AK3,Text!$A$3:$C$353,3,FALSE)) -> Gwariant Cynlluniau Gostyngiadau'r Dreth Gyngor | AL6: =IF('iaith - language'!$K$1=2,VLOOKUP(AL3,Text!$A$3:$C$353,2,FALSE),VLOOKUP(AL3,Text!$A$3:$C$353,3,FALSE)) -> Cefnogaeth CTRS Covid-19 | AM6: =IF('iaith - language'!$K$1=2,VLOOKUP(AM3,Text!$A$3:$C$353,2,FALSE),VLOOKUP(AM3,Text!$A$3:$C$353,3,FALSE)) -> Nifer y llongau sy'n cyrraedd porthladdoedd | AN6: =IF('iaith - language'!$K$1=2,VLOOKUP(AN3,Text!$A$3:$C$353,2,FALSE),VLOOKUP(AN3,Text!$A$3:$C$353,3,FALSE)) -> Nosweithiau twristiaid (miloedd) gan gynnwys AirBnb | AO6: =IF('iaith - language'!$K$1=2,VLOOKUP(AO3,Text!$A$3:$C$353,2,FALSE),VLOOKUP(AO3,Text!$A$3:$C$353,3,FALSE)) -> Diwrnodau twristiaid (miloedd) | AP6: =IF('iaith - language'!$K$1=2,VLOOKUP(AP3,Text!$A$3:$C$353,2,FALSE),VLOOKUP(AP3,Text!$A$3:$C$353,3,FALSE)) -> Data Hawlwyr Budd-dal | BA6: =IF('iaith - language'!$K$1=2,VLOOKUP(BA3,Text!$A$3:$C$353,2,FALSE),VLOOKUP(BA3,Text!$A$3:$C$353,3,FALSE)) -> Nifer yr Hawlwyr Cymhorthdal Incwm, 18-64 oed | BE6: =IF('iaith - language'!$K$1=2,VLOOKUP(BE3,Text!$A$3:$C$353,2,FALSE),VLOOKUP(BE3,Text!$A$3:$C$353,3,FALSE)) -> Nifer y Derbynwyr Lwfans Ceisio Swydd ar Sail Incwm, 18-64 oed | BI6: =IF('iaith - language'!$K$1=2,VLOOKUP(BI3,Text!$A$3:$C$353,2,FALSE),VLOOKUP(BI3,Text!$A$3:$C$353,3,FALSE)) -> Nifer yr hawlwyr Credyd Pensiwn, 18-64 oed | BM6: =IF('iaith - language'!$K$1=2,VLOOKUP(BM3,Text!$A$3:$C$353,2,FALSE),VLOOKUP(BM3,Text!$A$3:$C$353,3,FALSE)) -> Nifer y rhai sydd yn derbyn Credyd Cynhwysol (ddim mewn cyflogaeth) 18-64 oed | BQ6: =IF('iaith - language'!$K$1=2,VLOOKUP(BQ3,Text!$A$3:$C$353,2,FALSE),VLOOKUP(BQ3,Text!$A$3:$C$353,3,FALSE)) -> Cyfanswm yr Hawlwyr Cymhorthdal Incwm | BU6: =IF('iaith - language'!$K$1=2,VLOOKUP(BU3,Text!$A$3:$C$353,2,FALSE),VLOOKUP(BU3,Text!$A$3:$C$353,3,FALSE)) -> Cyfanswm y Derbynwyr Lwfans Ceisio Swydd ar Sail Incwm | BY6: =IF('iaith - language'!$K$1=2,VLOOKUP(BY3,Text!$A$3:$C$353,2,FALSE),VLOOKUP(BY3,Text!$A$3:$C$353,3,FALSE)) -> Cyfanswm Hawlwyr Credyd Pensiwn | CC6: =IF('iaith - language'!$K$1=2,VLOOKUP(CC3,Text!$A$3:$C$353,2,FALSE),VLOOKUP(CC3,Text!$A$3:$C$353,3,FALSE)) -> Cyfanswm y rhai sy’n derbyn Credyd Cynhwysol (ddim mewn cyflogaeth) | CG6: =IF('iaith - language'!$K$1=2,VLOOKUP(CG3,Text!$A$3:$C$353,2,FALSE),VLOOKUP(CG3,Text!$A$3:$C$353,3,FALSE)) -> Nifer yr Hawlwyr Lwfans Anabledd Difrifol, 18-64 oed | CK6: =IF('iaith - language'!$K$1=2,VLOOKUP(CK3,Text!$A$3:$C$353,2,FALSE),VLOOKUP(CK3,Text!$A$3:$C$353,3,FALSE)) -> Nifer yr Hawlwyr Lwfans Byw i'r Anabl, 18-64 oed | CO6: =IF('iaith - language'!$K$1=2,VLOOKUP(CO3,Text!$A$3:$C$353,2,FALSE),VLOOKUP(CO3,Text!$A$3:$C$353,3,FALSE)) -> Nifer yr Hawlwyr Taliad Annibyniaeth Bersonol sydd yn 18-64 oed | CS6: =IF('iaith - language'!$K$1=2,VLOOKUP(CS3,Text!$A$3:$C$353,2,FALSE),VLOOKUP(CS3,Text!$A$3:$C$353,3,FALSE)) -> Hawlwyr Credyd Pensiwn, 65 oed a hŷn | CW6: =IF('iaith - language'!$K$1=2,VLOOKUP(CW3,Text!$A$3:$C$353,2,FALSE),VLOOKUP(CW3,Text!$A$3:$C$353,3,FALSE)) -> Cyfanswn yr hawlwyr Cymhorthdal Incwm, Lwfans Ceisio Gwaith, a Chredyd Pensiwn | DA6: =IF('iaith - language'!$K$1=2,VLOOKUP(DA3,Text!$A$3:$C$353,2,FALSE),VLOOKUP(DA3,Text!$A$3:$C$353,3,FALSE)) -> Stoc eiddo treth cyngor | DB6: =IF('iaith - language'!$K$1=2,VLOOKUP(DB3,Text!$A$3:$C$353,2,FALSE),VLOOKUP(DB3,Text!$A$3:$C$353,3,FALSE)) -> Hyd ffyrdd A y sir (km) | DC6: =IF('iaith - language'!$K$1=2,VLOOKUP(DC3,Text!$A$3:$C$353,2,FALSE),VLOOKUP(DC3,Text!$A$3:$C$353,3,FALSE)) -> Hyd ffyrdd B ac C (km) | DD6: =IF('iaith - language'!$K$1=2,VLOOKUP(DD3,Text!$A$3:$C$353,2,FALSE),VLOOKUP(DD3,Text!$A$3:$C$353,3,FALSE)) -> Hyd is-ffyrdd â wyneb caled (km) | DE6: =IF('iaith - language'!$K$1=2,VLOOKUP(DE3,Text!$A$3:$C$353,2,FALSE),VLOOKUP(DE3,Text!$A$3:$C$353,3,FALSE)) -> Hyd ffyrdd A y sir, adeiledig (km) | DF6: =IF('iaith - language'!$K$1=2,VLOOKUP(DF3,Text!$A$3:$C$353,2,FALSE),VLOOKUP(DF3,Text!$A$3:$C$353,3,FALSE)) -> Hyd ffyrdd B ac C, adeiledig (km) | DG6: =IF('iaith - language'!$K$1=2,VLOOKUP(DG3,Text!$A$3:$C$353,2,FALSE),VLOOKUP(DG3,Text!$A$3:$C$353,3,FALSE)) -> Hyd is-ffyrdd â wyneb caled, adeiledig (km) | DH6: Prevention of Homelessness by Area and Measure (Section 66) | DI6: Number of outcomes - Eligible, homeless, subject to duty to help to secure (Section 73) | DJ6: Total number of households on Universal Credit (with housing entitlement and receiving payment) | EI6: Total number of households receiving housing benefit
B7: 0 | D7: 45444 | E7: 45536 | F7: 45627 | G7: 45717 | H7: 44986 | I7: 45413 | J7: 2024 | K7: 2024 | L7: 2024 | M7: 2024 | N7: 2024 | O7: 2024 | P7: 2024 | Q7: 2024 | R7: 2024 | S7: 2024 | T7: 2024 | U7: 2024 | V7: 2024 | W7: 2024 | X7: 2024 | Y7: 2020 | Z7: 2020 | AA7: 2020 | AB7: 2018-19 | AC7: 2024-25 | AD7: =IF('iaith - language'!$K$1=2,VLOOKUP(AD$4,Text!$A$1:$C$458,2,FALSE),VLOOKUP(AD$4,Text!$A$1:$C$458,3,FALSE)) -> Mai 2022 | AE7: 2021 | AF7: 45352 | AG7: 45352 | AH7: 45748 | AI7: 2024 | AJ7: 2023-24 | AK7: 2023-24 | AL7: 2021-22 | AM7: 2024 | AN7: 2019 | AO7: 2019 | AP7: 45566 | AQ7: 45597 | AR7: 45627 | AS7: 45658 | AT7: 45689 | AU7: 45717 | AV7: 45748 | AW7: 45778 | AX7: 45809 | AY7: 45839 | AZ7: 45870 | BA7: 45413 | BB7: 45505 | BC7: 45597 | BD7: 45689 | BE7: 45413 | BF7: 45505 | BG7: 45597 | BH7: 45689 | BI7: 45413 | BJ7: 45505 | BK7: 45597 | BL7: 45689 | BM7: 45413 | BN7: 45505 | BO7: 45597 | BP7: 45689 | BQ7: 45413 | BR7: 45505 | BS7: 45597 | BT7: 45689 | BU7: 45413 | BV7: 45505 | BW7: 45597 | BX7: 45689 | BY7: 45413 | BZ7: 45505 | CA7: 45597 | CB7: 45689 | CC7: 45413 | CD7: 45505 | CE7: 45597 | CF7: 45689 | CG7: 45413 | CH7: 45505 | CI7: 45597 | CJ7: 45689 | CK7: 45413 | CL7: 45505 | CM7: 45597 | CN7: 45689 | CO7: 45413 | CP7: 45505 | CQ7: 45597 | CR7: 45689 | CS7: 45413 | CT7: 45505 | CU7: 45597 | CV7: 45689 | CW7: 45413 | CX7: 45505 | CY7: 45597 | CZ7: 45689 | DA7: 45717 | DB7: 45383 | DC7: 45383 | DD7: 45383 | DE7: 45383 | DF7: 45383 | DG7: 45383 | DH7: 2024-25 | DI7: 2024-25 | DJ7: 45047 | DK7: 45078 | DL7: 45108 | DM7: 45139 | DN7: 45170 | DO7: 45200 | DP7: 45231 | DQ7: 45261 | DR7: 45292 | DS7: 45323 | DT7: 45352 | DU7: 45383 | DV7: 45413 | DW7: 45444 | DX7: 45474 | DY7: 45505 | DZ7: 45536 | EA7: 45566 | EB7: 45597 | EC7: 45627 | ED7: 45658 | EE7: 45689 | EF7: 45717 | EG7: 45748 | EH7: 45778 | EI7: 45047 | EJ7: 45078 | EK7: 45108 | EL7: 45139 | EM7: 45170 | EN7: 45200 | EO7: 45231 | EP7: 45261 | EQ7: 45292 | ER7: 45323 | ES7: 45352 | ET7: 45383 | EU7: 45413 | EV7: 45444 | EW7: 45474 | EX7: 45505 | EY7: 45536 | EZ7: 45566 | FA7: 45597 | FB7: 45627 | FC7: 45658 | FD7: 45689 | FE7: 45717 | FF7: 45748 | FG7: 45778
A9: 117 | B9: 2 | C9: =IF('iaith - language'!$K$1=2,VLOOKUP(A9,Text!$A$3:$C$353,2,FALSE),VLOOKUP(A9,Text!$A$3:$C$353,3,FALSE)) -> Sir Ynys Môn | D9: 181 | E9: 187 | F9: 171 | G9: 205 | H9: N/A | I9: 71519.941 | J9: 69097 | K9: 595 | L9: 6423 | M9: 10553 | N9: 4174 | O9: 7408 | P9: 57709 | Q9: 2236 | R9: 12927 | S9: 37221 | T9: 56170 | U9: 44624 | V9: 24473 | W9: 2455 | X9: 39817 | Y9: 70440 | Z9: 57101 | AA9: 18639 | AC9: 4280.9 | AD9: 7.9 | AE9: 935 | AF9: 3510 | AG9: 1020 | AH9: 9984 | AI9: 934 | AJ9: 5554 | AK9: 6029938 | AL9: N/A | AM9: 2661 | AN9: 5514.022396 | AO9: 707.4918436 | AP9: 1450 | AQ9: 1455 | AR9: 1475 | AS9: 1480 | AT9: 1500 | AU9: 1455 | AV9: 1410 | AW9: 1360 | AX9: 1340 | AY9: 1330 | AZ9: 1335 | BA9: 132 | BB9: 52 | BC9: 19 | BD9: 8 | BE9: 88 | BF9: 100 | BG9: 78 | BH9: 55 | BI9: 0 | BJ9: 0 | BK9: 0 | BL9: 0 | BM9: 3968 | BN9: 4102 | BO9: 4398 | BP9: 4715 | BQ9: 131 | BR9: 55 | BS9: 19 | BT9: 13 | BU9: 92 | BV9: 100 | BW9: 77 | BX9: 61 | BY9: 2002 | BZ9: 2008 | CA9: 2035 | CB9: 2036 | CC9: 4033 | CD9: 4175 | CE9: 4475 | CF9: 4801 | CG9: 0 | CH9: 0 | CI9: 0 | CJ9: 0 | CK9: 63 | CL9: 65 | CM9: 61 | CN9: 60 | CO9: 3639 | CP9: 3730 | CQ9: 3819 | CR9: 3861 | CS9: 2002 | CT9: 2008 | CU9: 2035 | CV9: 2036 | CW9: 2225 | CX9: 2163 | CY9: 2131 | CZ9: 2110 | DA9: 36210 | DB9: 145.6 | DC9: 484.5 | DD9: 559.1 | DE9: 28.1 | DF9: 59.6 | DG9: 181.5 | DH9: 84 | DI9: 240 | DJ9: 2805 | DK9: 2812 | DL9: 2843 | DM9: 2883 | DN9: 2920 | DO9: 2957 | DP9: 2982 | DQ9: 2988 | DR9: 3002 | DS9: 3070 | DT9: 3120 | DU9: 3139 | DV9: 3208 | DW9: 3221 | DX9: 3289 | DY9: 3342 | DZ9: 3402 | EA9: 3438 | EB9: 3494 | EC9: 3586 | ED9: 3640 | EE9: 3707 | EF9: 3717 | EG9: 3787 | EH9: 3831 | EI9: 2696 | EJ9: 2653 | EK9: 2629 | EL9: 2605 | EM9: 2594 | EN9: 2579 | EO9: 2540 | EP9: 2552 | EQ9: 2566 | ER9: 2545 | ES9: 2509 | ET9: 2504 | EU9: 2495 | EV9: 2455 | EW9: 2425 | EX9: 2391 | EY9: 2352 | EZ9: 2303 | FA9: 2251 | FB9: 2225 | FC9: 2208 | FD9: 2150 | FE9: 2116 | FF9: 2103 | FG9: 2076
A10: 118 | B10: 3 | C10: =IF('iaith - language'!$K$1=2,VLOOKUP(A10,Text!$A$3:$C$353,2,FALSE),VLOOKUP(A10,Text!$A$3:$C$353,3,FALSE)) -> Gwynedd | D10: 238 | E10: 231 | F10: 287 | G10: 225 | H10: N/A | I10: 254857.431 | J10: 120813 | K10: 1026 | L10: 10534 | M10: 17218 | N10: 6697 | O10: 14648 | P10: 101819 | Q10: 4093 | R10: 21618 | S10: 70968 | T10: 99195 | U10: 83867 | V10: 36946 | W10: 3840 | X10: 75130 | Y10: 125171 | Z10: 101957 | AA10: 28562 | AC10: 124710.76 | AD10: 20.14 | AE10: 1822 | AF10: 8480 | AG10: 2500 | AH10: 13256 | AI10: 1420 | AJ10: 8105 | AK10: 9552887 | AL10: N/A | AM10: 1 | AN10: 20095.71004 | AO10: 3836.383672 | AP10: 2005 | AQ10: 2045 | AR10: 2055 | AS10: 2145 | AT10: 2335 | AU10: 2230 | AV10: 2115 | AW10: 1980 | AX10: 1905 | AY10: 1850 | AZ10: 1930 | BA10: 182 | BB10: 70 | BC10: 16 | BD10: 7 | BE10: 105 | BF10: 100 | BG10: 98 | BH10: 93 | BI10: 0 | BJ10: 0 | BK10: 0 | BL10: 0 | BM10: 5703 | BN10: 6003 | BO10: 6292 | BP10: 6945 | BQ10: 193 | BR10: 77 | BS10: 18 | BT10: 13 | BU10: 105 | BV10: 100 | BW10: 100 | BX10: 93 | BY10: 3318 | BZ10: 3310 | CA10: 3384 | CB10: 3373 | CC10: 5771 | CD10: 6068 | CE10: 6377 | CF10: 7075 | CG10: 0 | CH10: 0 | CI10: 0 | CJ10: 0 | CK10: 85 | CL10: 84 | CM10: 83 | CN10: 84 | CO10: 5298 | CP10: 5446 | CQ10: 5611 | CR10: 5699 | CS10: 3318 | CT10: 3310 | CU10: 3384 | CV10: 3373 | CW10: 3616 | CX10: 3487 | CY10: 3502 | CZ10: 3479 | DA10: 62730 | DB10: 341.6 | DC10: 1064.9 | DD10: 1323.3 | DE10: 74.6 | DF10: 104.3 | DG10: 346.9 | DH10: 51 | DI10: 339 | DJ10: 4394 | DK10: 4392 | DL10: 4413 | DM10: 4381 | DN10: 4418 | DO10: 4438 | DP10: 4455 | DQ10: 4524 | DR10: 4576 | DS10: 4629 | DT10: 4631 | DU10: 4686 | DV10: 4830 | DW10: 4911 | DX10: 4935 | DY10: 4995 | DZ10: 5070 | EA10: 5145 | EB10: 5235 | EC10: 5343 | ED10: 5457 | EE10: 5603 | EF10: 5656 | EG10: 5707 | EH10: 5782 | EI10: 4272 | EJ10: 4267 | EK10: 4223 | EL10: 4209 | EM10: 4175 | EN10: 4155 | EO10: 4141 | EP10: 4119 | EQ10: 4102 | ER10: 4100 | ES10: 4025 | ET10: 4018 | EU10: 4027 | EV10: 4004 | EW10: 3960 | EX10: 3861 | EY10: 3781 | EZ10: 3669 | FA10: 3581 | FB10: 3520 | FC10: 3496 | FD10: 3442 | FE10: 3390 | FF10: 3265 | FG10: 3212
A11: 119 | B11: 4 | C11: =IF('iaith - language'!$K$1=2,VLOOKUP(A11,Text!$A$3:$C$353,2,FALSE),VLOOKUP(A11,Text!$A$3:$C$353,3,FALSE)) -> Conwy | D11: 207 | E11: 167 | F11: 187 | G11: 178 | H11: N/A | I11: 113017.935 | J11: 114891 | K11: 974 | L11: 9937 | M11: 16353 | N11: 6407 | O11: 11707 | P11: 97038 | Q11: 3645 | R11: 20348 | S11: 61992 | T11: 94543 | U11: 73024 | V11: 41867 | W11: 4428 | X11: 66362 | Y11: 118184 | Z11: 97000 | AA11: 32938 | AC11: 44565.61 | AD11: 23.59 | AE11: 931 | AF11: 5470 | AG11: 2210 | AH11: 16754 | AI11: 1597 | AJ11: 9607 | AK11: 11719670 | AL11: N/A | AM11: 31 | AN11: 11135.43669 | AO11: 7219.65943 | AP11: 2500 | AQ11: 2480 | AR11: 2460 | AS11: 2515 | AT11: 2585 | AU11: 2565 | AV11: 2440 | AW11: 2380 | AX11: 2345 | AY11: 2260 | AZ11: 2275 | BA11: 229 | BB11: 86 | BC11: 28 | BD11: 13 | BE11: 144 | BF11: 124 | BG11: 114 | BH11: 119 | BI11: 0 | BJ11: 0 | BK11: 0 | BL11: 0 | BM11: 6745 | BN11: 6992 | BO11: 7453 | BP11: 8191 | BQ11: 229 | BR11: 82 | BS11: 29 | BT11: 13 | BU11: 151 | BV11: 130 | BW11: 118 | BX11: 120 | BY11: 3613 | BZ11: 3610 | CA11: 3682 | CB11: 3717 | CC11: 6820 | CD11: 7059 | CE11: 7533 | CF11: 8288 | CG11: 0 | CH11: 0 | CI11: 0 | CJ11: 0 | CK11: 110 | CL11: 99 | CM11: 98 | CN11: 93 | CO11: 6567 | CP11: 6712 | CQ11: 6823 | CR11: 6914 | CS11: 3613 | CT11: 3610 | CU11: 3682 | CV11: 3717 | CW11: 3993 | CX11: 3822 | CY11: 3829 | CZ11: 3850 | DA11: 58460 | DB11: 117.5 | DC11: 666.9 | DD11: 897.3 | DE11: 51.6 | DF11: 102.9 | DG11: 419.6 | DH11: 294 | DI11: 537 | DJ11: 4655 | DK11: 4672 | DL11: 4706 | DM11: 4722 | DN11: 4785 | DO11: 4812 | DP11: 4850 | DQ11: 4880 | DR11: 4911 | DS11: 4987 | DT11: 5024 | DU11: 5044 | DV11: 5175 | DW11: 5180 | DX11: 5274 | DY11: 5400 | DZ11: 5485 | EA11: 5589 | EB11: 5685 | EC11: 5763 | ED11: 5815 | EE11: 5961 | EF11: 6021 | EG11: 6035 | EH11: 6166 | EI11: 4827 | EJ11: 4786 | EK11: 4748 | EL11: 4724 | EM11: 4711 | EN11: 4709 | EO11: 4653 | EP11: 4606 | EQ11: 4594 | ER11: 4585 | ES11: 4560 | ET11: 4553 | EU11: 4566 | EV11: 4502 | EW11: 4412 | EX11: 4339 | EY11: 4234 | EZ11: 4145 | FA11: 4056 | FB11: 4000 | FC11: 3986 | FD11: 3887 | FE11: 3820 | FF11: 3714 | FG11: 3651
A12: 120 | B12: 5 | C12: =IF('iaith - language'!$K$1=2,VLOOKUP(A12,Text!$A$3:$C$353,2,FALSE),VLOOKUP(A12,Text!$A$3:$C$353,3,FALSE)) -> Sir Ddinbych | D12: - | E12: - | F12: - | G12: - | H12: N/A | I12: 83871.492 | J12: 98202 | K12: 954 | L12: 9615 | M12: 15647 | N12: 5930 | O12: 11006 | P12: 81174 | Q12: 3478 | R12: 19403 | S12: 54156 | T12: 78799 | U12: 66057 | V12: 32145 | W12: 3162 | X12: 57848 | Y12: 96664 | Z12: 77165 | AA12: 23517 | AD12: 9.4 | AE12: 761 | AF12: 4010 | AG12: 1630 | AH12: 11759 | AI12: 1313 | AJ12: 8830 | AK12: 10841284 | AL12: N/A | AM12: 0 | AN12: 7466.735468 | AO12: 4400.806285 | AP12: 2085 | AQ12: 2105 | AR12: 2075 | AS12: 2110 | AT12: 2205 | AU12: 2170 | AV12: 2105 | AW12: 2035 | AX12: 1975 | AY12: 1980 | AZ12: 1935 | BA12: 242 | BB12: 89 | BC12: 31 | BD12: 14 | BE12: 107 | BF12: 113 | BG12: 108 | BH12: 87 | BI12: 0 | BJ12: 0 | BK12: 0 | BL12: 0 | BM12: 6491 | BN12: 6760 | BO12: 7206 | BP12: 7834 | BQ12: 241 | BR12: 94 | BS12: 29 | BT12: 16 | BU12: 118 | BV12: 117 | BW12: 113 | BX12: 93 | BY12: 3013 | BZ12: 3030 | CA12: 3073 | CB12: 3071 | CC12: 6583 | CD12: 6862 | CE12: 7297 | CF12: 7929 | CG12: 0 | CH12: 0 | CI12: 0 | CJ12: 0 | CK12: 117 | CL12: 113 | CM12: 104 | CN12: 105 | CO12: 6692 | CP12: 6844 | CQ12: 6987 | CR12: 7047 | CS12: 3013 | CT12: 3030 | CU12: 3073 | CV12: 3071 | CW12: 3372 | CX12: 3241 | CY12: 3215 | CZ12: 3180 | DA12: 46760 | DB12: 139.8 | DC12: 655.3 | DD12: 623.4 | DE12: 29.7 | DF12: 49.9 | DG12: 222.2 | DH12: 84 | DI12: 354 | DJ12: 4450 | DK12: 4432 | DL12: 4472 | DM12: 4515 | DN12: 4529 | DO12: 4559 | DP12: 4550 | DQ12: 4618 | DR12: 4638 | DS12: 4693 | DT12: 4698 | DU12: 4715 | DV12: 4822 | DW12: 4916 | DX12: 4966 | DY12: 5042 | DZ12: 5117 | EA12: 5203 | EB12: 5291 | EC12: 5389 | ED12: 5483 | EE12: 5617 | EF12: 5685 | EG12: 5742 | EH12: 5836 | EI12: 4299 | EJ12: 4297 | EK12: 4262 | EL12: 4262 | EM12: 4245 | EN12: 4240 | EO12: 4224 | EP12: 4174 | EQ12: 4162 | ER12: 4157 | ES12: 4145 | ET12: 4125 | EU12: 4120 | EV12: 4073 | EW12: 4025 | EX12: 3960 | EY12: 3773 | EZ12: 3702 | FA12: 3636 | FB12: 3572 | FC12: 3521 | FD12: 3428 | FE12: 3343 | FF12: 3227 | FG12: 3164
A13: 121 | B13: 6 | C13: =IF('iaith - language'!$K$1=2,VLOOKUP(A13,Text!$A$3:$C$353,2,FALSE),VLOOKUP(A13,Text!$A$3:$C$353,3,FALSE)) -> Sir y Fflint | D13: 209 | E13: 211 | F13: 206 | G13: 211 | H13: N/A | I13: 43983.084 | J13: 155867 | K13: 1555 | L13: 14981 | M13: 24557 | N13: 9409 | O13: 17657 | P13: 129034 | Q13: 5648 | R13: 30746 | S13: 90669 | T13: 125121 | U13: 110348 | V13: 45519 | W13: 4151 | X13: 96615 | Y13: 156847 | Z13: 124648 | AA13: 33294 | AD13: 2.76 | AE13: 519 | AF13: 5190 | AG13: 1680 | AH13: 21364 | AI13: 1650 | AJ13: 10215 | AK13: 12297950 | AL13: N/A | AM13: 1 | AN13: 3924.198329 | AO13: 2929.608572 | AP13: 2705 | AQ13: 2690 | AR13: 2545 | AS13: 2640 | AT13: 2720 | AU13: 2750 | AV13: 2730 | AW13: 2645 | AX13: 2680 | AY13: 2700 | AZ13: 2765 | BA13: 193 | BB13: 73 | BC13: 19 | BD13: 7 | BE13: 164 | BF13: 160 | BG13: 163 | BH13: 176 | BI13: 0 | BJ13: 0 | BK13: 0 | BL13: 0 | BM13: 8633 | BN13: 8990 | BO13: 9245 | BP13: 9798 | BQ13: 203 | BR13: 81 | BS13: 22 | BT13: 11 | BU13: 167 | BV13: 168 | BW13: 170 | BX13: 182 | BY13: 3424 | BZ13: 3406 | CA13: 3491 | CB13: 3484 | CC13: 8675 | CD13: 9035 | CE13: 9305 | CF13: 9844 | CG13: 0 | CH13: 0 | CI13: 0 | CJ13: 0 | CK13: 100 | CL13: 92 | CM13: 89 | CN13: 94 | CO13: 8142 | CP13: 8393 | CQ13: 8587 | CR13: 8702 | CS13: 3424 | CT13: 3406 | CU13: 3491 | CV13: 3484 | CW13: 3794 | CX13: 3655 | CY13: 3683 | CZ13: 3677 | DA13: 71710 | DB13: 157.4 | DC13: 340.5 | DD13: 690.6 | DE13: 64.1 | DF13: 111.2 | DG13: 435.9 | DH13: 456 | DI13: 633 | DJ13: 6302 | DK13: 6303 | DL13: 6303 | DM13: 6325 | DN13: 6359 | DO13: 6423 | DP13: 6444 | DQ13: 6478 | DR13: 6543 | DS13: 6607 | DT13: 6640 | DU13: 6694 | DV13: 6828 | DW13: 6874 | DX13: 6919 | DY13: 7009 | DZ13: 7094 | EA13: 7170 | EB13: 7238 | EC13: 7330 | ED13: 7434 | EE13: 7567 | EF13: 7653 | EG13: 7690 | EH13: 7800 | EI13: 4622 | EJ13: 4588 | EK13: 4573 | EL13: 4563 | EM13: 4442 | EN13: 4505 | EO13: 4402 | EP13: 4437 | EQ13: 4448 | ER13: 4452 | ES13: 4423 | ET13: 4412 | EU13: 4400 | EV13: 4377 | EW13: 4301 | EX13: 4199 | EY13: 4104 | EZ13: 4027 | FA13: 3901 | FB13: 3832 | FC13: 3869 | FD13: 3782 | FE13: 3791 | FF13: 3730 | FG13: 3649
A14: 122 | B14: 7 | C14: =IF('iaith - language'!$K$1=2,VLOOKUP(A14,Text!$A$3:$C$353,2,FALSE),VLOOKUP(A14,Text!$A$3:$C$353,3,FALSE)) -> Wrecsam | D14: 203 | E14: 230 | F14: 193 | G14: 259 | H14: N/A | I14: 50377.064 | J14: 138245 | K14: 1335 | L14: 13860 | M14: 22487 | N14: 8651 | O14: 16235 | P14: 113592 | Q14: 4936 | R14: 28008 | S14: 81507 | T14: 110237 | U14: 100471 | V14: 37774 | W14: 3576 | X14: 86402 | Y14: 136055 | Z14: 107142 | AA14: 27749 | AD14: 0 | AE14: 459 | AF14: 4040 | AG14: 1430 | AH14: 13194 | AI14: 1501 | AJ14: 11064 | AK14: 12365432 | AL14: N/A | AM14: 0 | AN14: 1197.976693 | AO14: 1544.219013 | AP14: 2725 | AQ14: 2650 | AR14: 2495 | AS14: 2540 | AT14: 2595 | AU14: 2535 | AV14: 2515 | AW14: 2450 | AX14: 2475 | AY14: 2490 | AZ14: 2495 | BA14: 268 | BB14: 81 | BC14: 30 | BD14: 14 | BE14: 124 | BF14: 118 | BG14: 106 | BH14: 126 | BI14: 0 | BJ14: 0 | BK14: 0 | BL14: 0 | BM14: 8775 | BN14: 9152 | BO14: 9579 | BP14: 10149 | BQ14: 269 | BR14: 87 | BS14: 31 | BT14: 16 | BU14: 124 | BV14: 121 | BW14: 106 | BX14: 132 | BY14: 3294 | BZ14: 3288 | CA14: 3357 | CB14: 3347 | CC14: 8796 | CD14: 9178 | CE14: 9575 | CF14: 10182 | CG14: 0 | CH14: 0 | CI14: 0 | CJ14: 0 | CK14: 123 | CL14: 122 | CM14: 118 | CN14: 116 | CO14: 8249 | CP14: 8505 | CQ14: 8755 | CR14: 8909 | CS14: 3294 | CT14: 3288 | CU14: 3357 | CV14: 3347 | CW14: 3687 | CX14: 3496 | CY14: 3494 | CZ14: 3495 | DA14: 62070 | DB14: 115.4 | DC14: 513 | DD14: 520.1 | DE14: 30.7 | DF14: 126.4 | DG14: 298.4 | DH14: 180 | DI14: 333 | DJ14: 7100 | DK14: 7064 | DL14: 7153 | DM14: 7154 | DN14: 7196 | DO14: 7244 | DP14: 7247 | DQ14: 7346 | DR14: 7341 | DS14: 7437 | DT14: 7466 | DU14: 7578 | DV14: 7743 | DW14: 7796 | DX14: 7902 | DY14: 8060 | DZ14: 8139 | EA14: 8236 | EB14: 8339 | EC14: 8423 | ED14: 8525 | EE14: 8692 | EF14: 8795 | EG14: 8881 | EH14: 8986 | EI14: 5231 | EJ14: 5261 | EK14: 5198 | EL14: 5194 | EM14: 5126 | EN14: 5157 | EO14: 5149 | EP14: 5118 | EQ14: 5080 | ER14: 5070 | ES14: 5049 | ET14: 5028 | EU14: 5015 | EV14: 4969 | EW14: 4890 | EX14: 4761 | EY14: 4634 | EZ14: 4513 | FA14: 4398 | FB14: 4335 | FC14: 4340 | FD14: 4214 | FE14: 4154 | FF14: 4043 | FG14: 3987
A15: 123 | B15: 8 | C15: =IF('iaith - language'!$K$1=2,VLOOKUP(A15,Text!$A$3:$C$353,2,FALSE),VLOOKUP(A15,Text!$A$3:$C$353,3,FALSE)) -> Powys | D15: 309 | E15: 345 | F15: 321 | G15: 328 | H15: N/A | I15: 519531.004 | J15: 135059 | K15: 1112 | L15: 11611 | M15: 18824 | N15: 7109 | O15: 13359 | P15: 114718 | Q15: 4301 | R15: 23306 | S15: 72782 | T15: 111753 | U15: 84912 | V15: 50147 | W15: 5039 | X15: 77936 | Y15: 133030 | Z15: 109186 | AA15: 36801 | AC15: 53365.62 | AD15: 0 | AE15: 3913 | AF15: 6820 | AG15: 2510 | AH15: 15563 | AI15: 1648 | AJ15: 9083 | AK15: 11106773 | AL15: N/A | AM15: 0 | AN15: 9102.609557 | AO15: 3010.782741 | AP15: 2035 | AQ15: 2040 | AR15: 2025 | AS15: 2030 | AT15: 2100 | AU15: 2100 | AV15: 2045 | AW15: 1990 | AX15: 1895 | AY15: 1885 | AZ15: 1915 | BA15: 163 | BB15: 52 | BC15: 22 | BD15: 10 | BE15: 103 | BF15: 104 | BG15: 96 | BH15: 121 | BI15: 0 | BJ15: 0 | BK15: 0 | BL15: 0 | BM15: 5962 | BN15: 6361 | BO15: 6721 | BP15: 7138 | BQ15: 169 | BR15: 55 | BS15: 21 | BT15: 11 | BU15: 106 | BV15: 106 | BW15: 100 | BX15: 125 | BY15: 3304 | BZ15: 3329 | CA15: 3411 | CB15: 3428 | CC15: 6011 | CD15: 6427 | CE15: 6796 | CF15: 7238 | CG15: 0 | CH15: 0 | CI15: 0 | CJ15: 0 | CK15: 88 | CL15: 85 | CM15: 85 | CN15: 78 | CO15: 6109 | CP15: 6273 | CQ15: 6412 | CR15: 6455 | CS15: 3304 | CT15: 3329 | CU15: 3411 | CV15: 3428 | CW15: 3579 | CX15: 3490 | CY15: 3532 | CZ15: 3564 | DA15: 67070 | DB15: 242.6 | DC15: 2708.2 | DD15: 2129.1 | DE15: 34.4 | DF15: 114.3 | DG15: 220.6 | DH15: 426 | DI15: 399 | DJ15: 4216 | DK15: 4199 | DL15: 4218 | DM15: 4259 | DN15: 4259 | DO15: 4302 | DP15: 4347 | DQ15: 4390 | DR15: 4420 | DS15: 4500 | DT15: 4565 | DU15: 4618 | DV15: 4746 | DW15: 4825 | DX15: 4897 | DY15: 4960 | DZ15: 5046 | EA15: 5099 | EB15: 5156 | EC15: 5221 | ED15: 5320 | EE15: 5464 | EF15: 5523 | EG15: 5592 | EH15: 5696 | EI15: 4353 | EJ15: 4336 | EK15: 4312 | EL15: 4288 | EM15: 4257 | EN15: 4240 | EO15: 4220 | EP15: 4189 | EQ15: 4183 | ER15: 4175 | ES15: 4175 | ET15: 4190 | EU15: 4158 | EV15: 4116 | EW15: 4062 | EX15: 4005 | EY15: 3929 | EZ15: 3861 | FA15: 3785 | FB15: 3745 | FC15: 3722 | FD15: 3619 | FE15: 3552 | FF15: 3463 | FG15: 3396
A16: 124 | B16: 9 | C16: =IF('iaith - language'!$K$1=2,VLOOKUP(A16,Text!$A$3:$C$353,2,FALSE),VLOOKUP(A16,Text!$A$3:$C$353,3,FALSE)) -> Sir Ceredigion | D16: 245 | E16: 195 | F16: 227 | G16: 202 | H16: N/A | I16: 178836.622 | J16: 72599 | K16: 538 | L16: 5644 | M16: 9168 | N16: 3530 | O16: 9610 | P16: 62546 | Q16: 2232 | R16: 11396 | S16: 42044 | T16: 61203 | U16: 47791 | V16: 24808 | W16: 2331 | X16: 44470 | Y16: 72895 | Z16: 60661 | AA16: 18668 | AC16: 12037.39 | AD16: 12.92 | AE16: 1961 | AF16: 3900 | AG16: 1390 | AH16: 6843 | AI16: 881 | AJ16: 5163 | AK16: 6476459 | AL16: N/A | AM16: 0 | AN16: 7196.841815 | AO16: 1576.273821 | AP16: 1230 | AQ16: 1260 | AR16: 1235 | AS16: 1225 | AT16: 1205 | AU16: 1215 | AV16: 1135 | AW16: 1115 | AX16: 1100 | AY16: 1065 | AZ16: 1035 | BA16: 84 | BB16: 25 | BC16: 6 | BD16: 6 | BE16: 51 | BF16: 48 | BG16: 63 | BH16: 63 | BI16: 0 | BJ16: 0 | BK16: 0 | BL16: 0 | BM16: 3594 | BN16: 3681 | BO16: 3920 | BP16: 4241 | BQ16: 84 | BR16: 25 | BS16: 9 | BT16: 6 | BU16: 55 | BV16: 47 | BW16: 63 | BX16: 62 | BY16: 1801 | BZ16: 1808 | CA16: 1856 | CB16: 1873 | CC16: 3655 | CD16: 3743 | CE16: 3981 | CF16: 4319 | CG16: 0 | CH16: 0 | CI16: 0 | CJ16: 0 | CK16: 31 | CL16: 31 | CM16: 28 | CN16: 26 | CO16: 3313 | CP16: 3369 | CQ16: 3436 | CR16: 3449 | CS16: 1801 | CT16: 1808 | CU16: 1856 | CV16: 1873 | CW16: 1940 | CX16: 1880 | CY16: 1928 | CZ16: 1941 | DA16: 36360 | DB16: 158.3 | DC16: 1166.6 | DD16: 828.3 | DE16: 34.4 | DF16: 100.8 | DG16: 126.7 | DH16: 144 | DI16: 177 | DJ16: 2282 | DK16: 2277 | DL16: 2297 | DM16: 2314 | DN16: 2322 | DO16: 2366 | DP16: 2389 | DQ16: 2454 | DR16: 2475 | DS16: 2546 | DT16: 2579 | DU16: 2618 | DV16: 2648 | DW16: 2647 | DX16: 2679 | DY16: 2723 | DZ16: 2783 | EA16: 2848 | EB16: 2917 | EC16: 2956 | ED16: 3011 | EE16: 3118 | EF16: 3148 | EG16: 3213 | EH16: 3263 | EI16: 2497 | EJ16: 2495 | EK16: 2480 | EL16: 2472 | EM16: 2442 | EN16: 2425 | EO16: 2402 | EP16: 2399 | EQ16: 2395 | ER16: 2378 | ES16: 2335 | ET16: 2338 | EU16: 2340 | EV16: 2305 | EW16: 2289 | EX16: 2245 | EY16: 2182 | EZ16: 2138 | FA16: 2042 | FB16: 1999 | FC16: 1973 | FD16: 1924 | FE16: 1863 | FF16: 1796 | FG16: 1725
A17: 125 | B17: 10 | C17: =IF('iaith - language'!$K$1=2,VLOOKUP(A17,Text!$A$3:$C$353,2,FALSE),VLOOKUP(A17,Text!$A$3:$C$353,3,FALSE)) -> Sir Benfro | D17: 269 | E17: 257 | F17: 214 | G17: 234 | H17: N/A | I17: 161827.986 | J17: 125761 | K17: 1081 | L17: 11464 | M17: 18844 | N17: 7290 | O17: 13636 | P17: 105310 | Q17: 4255 | R17: 23329 | S17: 68476 | T17: 102432 | U17: 81779 | V17: 43982 | W17: 4279 | X17: 73265 | Y17: 126751 | Z17: 102744 | AA17: 33169 | AD17: 12.3 | AE17: 1761 | AF17: 7350 | AG17: 2220 | AH17: 15730 | AI17: 1552 | AJ17: 8999 | AK17: 9849864 | AL17: N/A | AM17: 2455 | AN17: 14583.46203 | AO17: 2051.66045 | AP17: 2365 | AQ17: 2415 | AR17: 2400 | AS17: 2490 | AT17: 2495 | AU17: 2440 | AV17: 2335 | AW17: 2285 | AX17: 2310 | AY17: 2255 | AZ17: 2265 | BA17: 242 | BB17: 81 | BC17: 23 | BD17: 6 | BE17: 139 | BF17: 152 | BG17: 138 | BH17: 114 | BI17: 0 | BJ17: 0 | BK17: 0 | BL17: 0 | BM17: 7221 | BN17: 7348 | BO17: 7862 | BP17: 8592 | BQ17: 246 | BR17: 86 | BS17: 23 | BT17: 6 | BU17: 145 | BV17: 155 | BW17: 142 | BX17: 116 | BY17: 3474 | BZ17: 3478 | CA17: 3560 | CB17: 3550 | CC17: 7323 | CD17: 7449 | CE17: 7967 | CF17: 8710 | CG17: 0 | CH17: 0 | CI17: 0 | CJ17: 0 | CK17: 47 | CL17: 46 | CM17: 40 | CN17: 40 | CO17: 7129 | CP17: 7283 | CQ17: 7392 | CR17: 7467 | CS17: 3474 | CT17: 3478 | CU17: 3560 | CV17: 3550 | CW17: 3865 | CX17: 3719 | CY17: 3725 | CZ17: 3672 | DA17: 63820 | DB17: 160.5 | DC17: 1220.4 | DD17: 1111.9 | DE17: 56.3 | DF17: 172.9 | DG17: 337.8 | DH17: 189 | DI17: 408 | DJ17: 5232 | DK17: 5224 | DL17: 5224 | DM17: 5253 | DN17: 5274 | DO17: 5349 | DP17: 5438 | DQ17: 5543 | DR17: 5656 | DS17: 5737 | DT17: 5786 | DU17: 5831 | DV17: 5843 | DW17: 5873 | DX17: 5967 | DY17: 6054 | DZ17: 6152 | EA17: 6247 | EB17: 6399 | EC17: 6488 | ED17: 6603 | EE17: 6763 | EF17: 6852 | EG17: 6881 | EH17: 6997 | EI17: 4590 | EJ17: 4562 | EK17: 4517 | EL17: 4489 | EM17: 4431 | EN17: 4393 | EO17: 4382 | EP17: 4351 | EQ17: 4356 | ER17: 4340 | ES17: 4272 | ET17: 4272 | EU17: 4261 | EV17: 4207 | EW17: 4148 | EX17: 4039 | EY17: 3919 | EZ17: 3816 | FA17: 3696 | FB17: 3644 | FC17: 3604 | FD17: 3494 | FE17: 3422 | FF17: 3298 | FG17: 3226
A18: 126 | B18: 11 | C18: =IF('iaith - language'!$K$1=2,VLOOKUP(A18,Text!$A$3:$C$353,2,FALSE),VLOOKUP(A18,Text!$A$3:$C$353,3,FALSE)) -> Sir Gaerfyrddin | D18: 335 | E18: 296 | F18: 305 | G18: 314 | H18: N/A | I18: 237112.063 | J18: 190800 | K18: 1708 | L18: 17919 | M18: 29300 | N18: 11244 | O18: 21254 | P18: 158946 | Q18: 6696 | R18: 36437 | S18: 106472 | T18: 154363 | U18: 128500 | V18: 62300 | W18: 5927 | X18: 113751 | Y18: 190073 | Z18: 152810 | AA18: 45693 | AD18: 9.06 | AE18: 3071 | AF18: 6980 | AG18: 2670 | AH18: 20638 | AI18: 2454 | AJ18: 15284 | AK18: 18137721 | AL18: N/A | AM18: 0 | AN18: 4708.469985 | AO18: 2314.523216 | AP18: 3565 | AQ18: 3515 | AR18: 3395 | AS18: 3405 | AT18: 3380 | AU18: 3260 | AV18: 3230 | AW18: 3150 | AX18: 3170 | AY18: 3155 | AZ18: 3165 | BA18: 359 | BB18: 120 | BC18: 37 | BD18: 16 | BE18: 170 | BF18: 208 | BG18: 167 | BH18: 153 | BI18: 0 | BJ18: 0 | BK18: 0 | BL18: 0 | BM18: 11508 | BN18: 11994 | BO18: 12812 | BP18: 13768 | BQ18: 365 | BR18: 124 | BS18: 41 | BT18: 19 | BU18: 177 | BV18: 209 | BW18: 171 | BX18: 159 | BY18: 5203 | BZ18: 5194 | CA18: 5303 | CB18: 5291 | CC18: 11631 | CD18: 12120 | CE18: 12941 | CF18: 13929 | CG18: 0 | CH18: 0 | CI18: 0 | CJ18: 0 | CK18: 104 | CL18: 102 | CM18: 99 | CN18: 103 | CO18: 12533 | CP18: 12910 | CQ18: 13158 | CR18: 13312 | CS18: 5203 | CT18: 5194 | CU18: 5303 | CV18: 5291 | CW18: 5745 | CX18: 5527 | CY18: 5515 | CZ18: 5469 | DA18: 90510 | DB18: 251.4 | DC18: 1615.6 | DD18: 1671.7 | DE18: 93.3 | DF18: 197.5 | DG18: 411.5 | DH18: 243 | DI18: 1041 | DJ18: 7431 | DK18: 7392 | DL18: 7458 | DM18: 7518 | DN18: 7579 | DO18: 7680 | DP18: 7725 | DQ18: 7862 | DR18: 7998 | DS18: 8175 | DT18: 8291 | DU18: 8341 | DV18: 8418 | DW18: 8500 | DX18: 8635 | DY18: 8782 | DZ18: 8924 | EA18: 9103 | EB18: 9212 | EC18: 9379 | ED18: 9522 | EE18: 9803 | EF18: 9979 | EG18: 10123 | EH18: 10312 | EI18: 6983 | EJ18: 6955 | EK18: 6910 | EL18: 6929 | EM18: 6867 | EN18: 6808 | EO18: 6752 | EP18: 6703 | EQ18: 6694 | ER18: 6684 | ES18: 6611 | ET18: 6584 | EU18: 6528 | EV18: 6470 | EW18: 6394 | EX18: 6258 | EY18: 6055 | EZ18: 5941 | FA18: 5734 | FB18: 5625 | FC18: 5532 | FD18: 5330 | FE18: 5207 | FF18: 4993 | FG18: 4832
A19: 127 | B19: 12 | C19: =IF('iaith - language'!$K$1=2,VLOOKUP(A19,Text!$A$3:$C$353,2,FALSE),VLOOKUP(A19,Text!$A$3:$C$353,3,FALSE)) -> Abertawe | D19: 424 | E19: 421 | F19: 413 | G19: 464 | H19: N/A | I19: 37764.363 | J19: 251304 | K19: 2284 | L19: 23858 | M19: 38474 | N19: 14397 | O19: 31508 | P19: 209302 | Q19: 8724 | R19: 47839 | S19: 152498 | T19: 203465 | U19: 185101 | V19: 66203 | W19: 6948 | X19: 161170 | Y19: 246563 | Z19: 199723 | AA19: 48958 | AD19: 7.9 | AE19: 381 | AF19: 7780 | AG19: 2920 | AH19: 29386 | AI19: 2669 | AJ19: 21102 | AK19: 24153460 | AL19: N/A | AM19: 120 | AN19: 5424.424153 | AO19: 3124.818429 | AP19: 5380 | AQ19: 5320 | AR19: 5260 | AS19: 5125 | AT19: 5285 | AU19: 5240 | AV19: 5260 | AW19: 5215 | AX19: 5180 | AY19: 5075 | AZ19: 5155 | BA19: 527 | BB19: 168 | BC19: 61 | BD19: 27 | BE19: 309 | BF19: 325 | BG19: 270 | BH19: 257 | BI19: 0 | BJ19: 0 | BK19: 0 | BL19: 0 | BM19: 17596 | BN19: 18188 | BO19: 19040 | BP19: 20442 | BQ19: 541 | BR19: 179 | BS19: 66 | BT19: 27 | BU19: 317 | BV19: 327 | BW19: 276 | BX19: 258 | BY19: 6549 | BZ19: 6588 | CA19: 6706 | CB19: 6690 | CC19: 17620 | CD19: 18211 | CE19: 19022 | CF19: 20452 | CG19: 0 | CH19: 0 | CI19: 0 | CJ19: 0 | CK19: 108 | CL19: 111 | CM19: 103 | CN19: 105 | CO19: 16714 | CP19: 17096 | CQ19: 17417 | CR19: 17533 | CS19: 6549 | CT19: 6588 | CU19: 6706 | CV19: 6690 | CW19: 7407 | CX19: 7094 | CY19: 7048 | CZ19: 6975 | DA19: 115920 | DB19: 120.2 | DC19: 231.2 | DD19: 782 | DE19: 70.7 | DF19: 138.9 | DG19: 653.5 | DH19: 1119 | DI19: 990 | DJ19: 12920 | DK19: 12929 | DL19: 12979 | DM19: 13046 | DN19: 13150 | DO19: 13254 | DP19: 13301 | DQ19: 13458 | DR19: 13622 | DS19: 13842 | DT19: 14043 | DU19: 14086 | DV19: 14222 | DW19: 14360 | DX19: 14545 | DY19: 14755 | DZ19: 14913 | EA19: 15110 | EB19: 15317 | EC19: 15468 | ED19: 15769 | EE19: 16180 | EF19: 16390 | EG19: 16670 | EH19: 16994 | EI19: 10694 | EJ19: 10633 | EK19: 10596 | EL19: 10561 | EM19: 10483 | EN19: 10438 | EO19: 10405 | EP19: 10371 | EQ19: 10326 | ER19: 10299 | ES19: 10222 | ET19: 10205 | EU19: 10151 | EV19: 10013 | EW19: 9847 | EX19: 9639 | EY19: 9405 | EZ19: 9248 | FA19: 8995 | FB19: 8832 | FC19: 8732 | FD19: 8399 | FE19: 8149 | FF19: 7877 | FG19: 7660
A20: 128 | B20: 13 | C20: =IF('iaith - language'!$K$1=2,VLOOKUP(A20,Text!$A$3:$C$353,2,FALSE),VLOOKUP(A20,Text!$A$3:$C$353,3,FALSE)) -> Castell-nedd Port Talbot | D20: 146 | E20: 121 | F20: 140 | G20: 140 | H20: N/A | I20: 44227.401 | J20: 143249 | K20: 1302 | L20: 13637 | M20: 22304 | N20: 8520 | O20: 18155 | P20: 118819 | Q20: 5206 | R20: 27823 | S20: 84190 | T20: 115426 | U20: 101930 | V20: 41319 | W20: 3784 | X20: 89470 | Y20: 144386 | Z20: 116296 | AA20: 30254 | AD20: 2.9 | AE20: 224 | AF20: 4090 | AG20: 1810 | AH20: 19668 | AI20: 1624 | AJ20: 15461 | AK20: 18973967 | AL20: N/A | AM20: 85 | AN20: 921.7262739 | AO20: 1145.531016 | AP20: 2840 | AQ20: 2895 | AR20: 2840 | AS20: 2885 | AT20: 2935 | AU20: 2915 | AV20: 2805 | AW20: 2805 | AX20: 2810 | AY20: 2760 | AZ20: 2745 | BA20: 454 | BB20: 156 | BC20: 53 | BD20: 33 | BE20: 144 | BF20: 151 | BG20: 194 | BH20: 233 | BI20: 0 | BJ20: 0 | BK20: 0 | BL20: 0 | BM20: 11092 | BN20: 11633 | BO20: 12440 | BP20: 13376 | BQ20: 459 | BR20: 164 | BS20: 57 | BT20: 34 | BU20: 153 | BV20: 157 | BW20: 202 | BX20: 238 | BY20: 4241 | BZ20: 4221 | CA20: 4293 | CB20: 4307 | CC20: 11142 | CD20: 11670 | CE20: 12467 | CF20: 13420 | CG20: 0 | CH20: 0 | CI20: 0 | CJ20: 0 | CK20: 89 | CL20: 89 | CM20: 85 | CN20: 82 | CO20: 11953 | CP20: 12234 | CQ20: 12475 | CR20: 12607 | CS20: 4241 | CT20: 4221 | CU20: 4293 | CV20: 4307 | CW20: 4853 | CX20: 4542 | CY20: 4552 | CZ20: 4579 | DA20: 67300 | DB20: 118 | DC20: 116.1 | DD20: 599.4 | DE20: 66.3 | DF20: 68.8 | DG20: 479.5 | DH20: 168 | DI20: 582 | DJ20: 7442 | DK20: 7461 | DL20: 7470 | DM20: 7535 | DN20: 7621 | DO20: 7618 | DP20: 7634 | DQ20: 7727 | DR20: 7839 | DS20: 7942 | DT20: 7976 | DU20: 7988 | DV20: 8104 | DW20: 8166 | DX20: 8314 | DY20: 8524 | DZ20: 8640 | EA20: 8770 | EB20: 8957 | EC20: 9055 | ED20: 9214 | EE20: 9484 | EF20: 9639 | EG20: 9799 | EH20: 9987 | EI20: 6914 | EJ20: 6925 | EK20: 6880 | EL20: 6833 | EM20: 6805 | EN20: 6789 | EO20: 6759 | EP20: 6684 | EQ20: 6698 | ER20: 6683 | ES20: 6663 | ET20: 6623 | EU20: 6605 | EV20: 6510 | EW20: 6369 | EX20: 6201 | EY20: 6029 | EZ20: 5902 | FA20: 5739 | FB20: 5628 | FC20: 5583 | FD20: 5367 | FE20: 5200 | FF20: 4993 | FG20: 4837
A21: 129 | B21: 14 | C21: =IF('iaith - language'!$K$1=2,VLOOKUP(A21,Text!$A$3:$C$353,2,FALSE),VLOOKUP(A21,Text!$A$3:$C$353,3,FALSE)) -> Pen-y-bont ar Ogwr | D21: 162 | E21: 200 | F21: 181 | G21: 164 | H21: N/A | I21: 25078.531 | J21: 147530 | K21: 1420 | L21: 14245 | M21: 23104 | N21: 8845 | O21: 16431 | P21: 122161 | Q21: 4972 | R21: 28785 | S21: 86998 | T21: 118745 | U21: 105525 | V21: 42005 | W21: 4055 | X21: 92253 | Y21: 147539 | Z21: 118204 | AA21: 30168 | AD21: 2.35 | AE21: 197 | AF21: 5110 | AG21: 1780 | AH21: 19666 | AI21: 1716 | AJ21: 12437 | AK21: 15566192 | AL21: N/A | AM21: 0 | AN21: 2664.300693 | AO21: 3061.249452 | AP21: 2670 | AQ21: 2615 | AR21: 2610 | AS21: 2570 | AT21: 2655 | AU21: 2665 | AV21: 2540 | AW21: 2495 | AX21: 2490 | AY21: 2510 | AZ21: 2570 | BA21: 388 | BB21: 126 | BC21: 44 | BD21: 25 | BE21: 136 | BF21: 143 | BG21: 160 | BH21: 182 | BI21: 0 | BJ21: 0 | BK21: 0 | BL21: 0 | BM21: 9520 | BN21: 9959 | BO21: 10573 | BP21: 11279 | BQ21: 391 | BR21: 131 | BS21: 50 | BT21: 28 | BU21: 138 | BV21: 144 | BW21: 164 | BX21: 187 | BY21: 3523 | BZ21: 3512 | CA21: 3627 | CB21: 3637 | CC21: 9607 | CD21: 10024 | CE21: 10623 | CF21: 11338 | CG21: 0 | CH21: 0 | CI21: 0 | CJ21: 0 | CK21: 103 | CL21: 98 | CM21: 97 | CN21: 93 | CO21: 10061 | CP21: 10370 | CQ21: 10547 | CR21: 10635 | CS21: 3523 | CT21: 3512 | CU21: 3627 | CV21: 3637 | CW21: 4052 | CX21: 3787 | CY21: 3841 | CZ21: 3852 | DA21: 66300 | DB21: 104 | DC21: 139 | DD21: 548.3 | DE21: 52.3 | DF21: 83.3 | DG21: 445.9 | DH21: 288 | DI21: 813 | DJ21: 6674 | DK21: 6722 | DL21: 6766 | DM21: 6759 | DN21: 6808 | DO21: 6848 | DP21: 6811 | DQ21: 6900 | DR21: 7042 | DS21: 7093 | DT21: 7126 | DU21: 7160 | DV21: 7260 | DW21: 7323 | DX21: 7440 | DY21: 7524 | DZ21: 7681 | EA21: 7803 | EB21: 7905 | EC21: 8004 | ED21: 8089 | EE21: 8329 | EF21: 8448 | EG21: 8579 | EH21: 8778 | EI21: 5557 | EJ21: 5539 | EK21: 5593 | EL21: 5582 | EM21: 5512 | EN21: 5476 | EO21: 5469 | EP21: 5432 | EQ21: 5438 | ER21: 5403 | ES21: 5363 | ET21: 5335 | EU21: 5322 | EV21: 5240 | EW21: 5170 | EX21: 5004 | EY21: 4857 | EZ21: 4758 | FA21: 4564 | FB21: 4513 | FC21: 4490 | FD21: 4299 | FE21: 4177 | FF21: 4037 | FG21: 3878
A22: 130 | B22: 15 | C22: =IF('iaith - language'!$K$1=2,VLOOKUP(A22,Text!$A$3:$C$353,2,FALSE),VLOOKUP(A22,Text!$A$3:$C$353,3,FALSE)) -> Bro Morgannwg | D22: 291 | E22: 281 | F22: 317 | G22: 299 | H22: N/A | I22: 33126.14 | J22: 135743 | K22: 1346 | L22: 13978 | M22: 22797 | N22: 8660 | O22: 15729 | P22: 111152 | Q22: 5022 | R22: 28172 | S22: 76717 | T22: 107571 | U22: 95544 | V22: 40199 | W22: 3943 | X22: 82043 | Y22: 135295 | Z22: 107403 | AA22: 28838 | AD22: 4 | AE22: 289 | AF22: 3630 | AG22: 1560 | AH22: 16088 | AI22: 1379 | AJ22: 8990 | AK22: 11535215 | AL22: N/A | AM22: 32 | AN22: 2239.696563 | AO22: 3669.029082 | AP22: 2590 | AQ22: 2565 | AR22: 2485 | AS22: 2535 | AT22: 2590 | AU22: 2525 | AV22: 2470 | AW22: 2445 | AX22: 2480 | AY22: 2460 | AZ22: 2500 | BA22: 239 | BB22: 67 | BC22: 16 | BD22: 9 | BE22: 141 | BF22: 156 | BG22: 140 | BH22: 168 | BI22: 0 | BJ22: 0 | BK22: 0 | BL22: 0 | BM22: 7153 | BN22: 7461 | BO22: 7857 | BP22: 8474 | BQ22: 241 | BR22: 70 | BS22: 17 | BT22: 7 | BU22: 144 | BV22: 159 | BW22: 147 | BX22: 172 | BY22: 2740 | BZ22: 2748 | CA22: 2793 | CB22: 2782 | CC22: 7186 | CD22: 7485 | CE22: 7893 | CF22: 8501 | CG22: 0 | CH22: 0 | CI22: 0 | CJ22: 0 | CK22: 59 | CL22: 58 | CM22: 53 | CN22: 54 | CO22: 6861 | CP22: 7081 | CQ22: 7221 | CR22: 7340 | CS22: 2740 | CT22: 2748 | CU22: 2793 | CV22: 2782 | CW22: 3125 | CX22: 2977 | CY22: 2957 | CZ22: 2961 | DA22: 62490 | DB22: 75.3 | DC22: 371.1 | DD22: 595.9 | DE22: 21.4 | DF22: 53.5 | DG22: 377.5 | DH22: 234 | DI22: 405 | DJ22: 5145 | DK22: 5154 | DL22: 5186 | DM22: 5212 | DN22: 5242 | DO22: 5271 | DP22: 5310 | DQ22: 5331 | DR22: 5451 | DS22: 5579 | DT22: 5604 | DU22: 5619 | DV22: 5735 | DW22: 5835 | DX22: 5955 | DY22: 6092 | DZ22: 6189 | EA22: 6286 | EB22: 6359 | EC22: 6475 | ED22: 6567 | EE22: 6763 | EF22: 6871 | EG22: 6944 | EH22: 7049 | EI22: 4682 | EJ22: 4663 | EK22: 4651 | EL22: 4629 | EM22: 4611 | EN22: 4600 | EO22: 4581 | EP22: 4547 | EQ22: 4506 | ER22: 4490 | ES22: 4473 | ET22: 4457 | EU22: 4428 | EV22: 4372 | EW22: 4303 | EX22: 4146 | EY22: 3996 | EZ22: 3923 | FA22: 3832 | FB22: 3737 | FC22: 3713 | FD22: 3583 | FE22: 3478 | FF22: 3369 | FG22: 3260
A23: 131 | B23: 16 | C23: =IF('iaith - language'!$K$1=2,VLOOKUP(A23,Text!$A$3:$C$353,2,FALSE),VLOOKUP(A23,Text!$A$3:$C$353,3,FALSE)) -> Rhondda Cynon Taf | D23: 361 | E23: 244 | F23: 254 | G23: 292 | H23: N/A | I23: 42415.235 | J23: 242844 | K23: 2338 | L23: 24256 | M23: 39141 | N23: 14872 | O23: 28456 | P23: 199852 | Q23: 8425 | R23: 48698 | S23: 145584 | T23: 194146 | U23: 178698 | V23: 64146 | W23: 5657 | X23: 154163 | Y23: 241873 | Z23: 191775 | AA23: 46755 | AD23: 0 | AE23: 265 | AF23: 7430 | AG23: 3000 | AH23: 30018 | AI23: 2811 | AJ23: 23453 | AK23: 25655786 | AL23: N/A | AM23: 0 | AN23: 1282.9151 | AO23: 1575.144551 | AP23: 4860 | AQ23: 4790 | AR23: 4700 | AS23: 4705 | AT23: 4780 | AU23: 4720 | AV23: 4620 | AW23: 4640 | AX23: 4615 | AY23: 4615 | AZ23: 4650 | BA23: 701 | BB23: 272 | BC23: 73 | BD23: 39 | BE23: 285 | BF23: 283 | BG23: 246 | BH23: 258 | BI23: 0 | BJ23: 0 | BK23: 0 | BL23: 0 | BM23: 17140 | BN23: 17865 | BO23: 19237 | BP23: 20769 | BQ23: 720 | BR23: 291 | BS23: 79 | BT23: 46 | BU23: 296 | BV23: 286 | BW23: 249 | BX23: 264 | BY23: 6550 | BZ23: 6556 | CA23: 6694 | CB23: 6636 | CC23: 17227 | CD23: 17933 | CE23: 19283 | CF23: 20834 | CG23: 0 | CH23: 0 | CI23: 0 | CJ23: 0 | CK23: 147 | CL23: 139 | CM23: 140 | CN23: 134 | CO23: 18340 | CP23: 18844 | CQ23: 19199 | CR23: 19364 | CS23: 6550 | CT23: 6556 | CU23: 6694 | CV23: 6636 | CW23: 7566 | CX23: 7133 | CY23: 7022 | CZ23: 6946 | DA23: 111950 | DB23: 171 | DC23: 199.7 | DD23: 933.1 | DE23: 76.1 | DF23: 127.8 | DG23: 797.3 | DH23: 426 | DI23: 675 | DJ23: 11089 | DK23: 11122 | DL23: 11217 | DM23: 11276 | DN23: 11320 | DO23: 11470 | DP23: 11557 | DQ23: 11641 | DR23: 11838 | DS23: 12036 | DT23: 12154 | DU23: 12205 | DV23: 12322 | DW23: 12459 | DX23: 12685 | DY23: 12903 | DZ23: 13177 | EA23: 13440 | EB23: 13774 | EC23: 13915 | ED23: 14244 | EE23: 14640 | EF23: 14942 | EG23: 15231 | EH23: 15610 | EI23: 10007 | EJ23: 9918 | EK23: 9868 | EL23: 9832 | EM23: 9726 | EN23: 9665 | EO23: 9618 | EP23: 9492 | EQ23: 9458 | ER23: 9438 | ES23: 9319 | ET23: 9250 | EU23: 9269 | EV23: 9178 | EW23: 8940 | EX23: 8735 | EY23: 8486 | EZ23: 8254 | FA23: 7912 | FB23: 7757 | FC23: 7667 | FD23: 7253 | FE23: 6996 | FF23: 6653 | FG23: 6405
A24: 132 | B24: 17 | C24: =IF('iaith - language'!$K$1=2,VLOOKUP(A24,Text!$A$3:$C$353,2,FALSE),VLOOKUP(A24,Text!$A$3:$C$353,3,FALSE)) -> Merthyr Tudful | D24: 81 | E24: 74 | F24: 66 | G24: 91 | H24: N/A | I24: 11195.628 | J24: 58972 | K24: 636 | L24: 6379 | M24: 10052 | N24: 3657 | O24: 6826 | P24: 47880 | Q24: 2091 | R24: 12551 | S24: 34859 | T24: 46421 | U24: 43361 | V24: 15611 | W24: 1321 | X24: 37061 | Y24: 60424 | Z24: 47544 | AA24: 11394 | AD24: 0 | AE24: 51 | AF24: 1800 | AG24: 770 | AH24: 9963 | AI24: 718 | AJ24: 5792 | AK24: 6801574 | AL24: N/A | AM24: 0 | AN24: 552.4434859 | AO24: 1159.66621 | AP24: 1200 | AQ24: 1220 | AR24: 1175 | AS24: 1175 | AT24: 1200 | AU24: 1195 | AV24: 1145 | AW24: 1160 | AX24: 1200 | AY24: 1145 | AZ24: 1150 | BA24: 199 | BB24: 63 | BC24: 26 | BD24: 12 | BE24: 84 | BF24: 77 | BG24: 61 | BH24: 60 | BI24: 0 | BJ24: 0 | BK24: 0 | BL24: 0 | BM24: 4835 | BN24: 4978 | BO24: 5302 | BP24: 5715 | BQ24: 203 | BR24: 71 | BS24: 29 | BT24: 14 | BU24: 87 | BV24: 75 | BW24: 65 | BX24: 61 | BY24: 1749 | BZ24: 1740 | CA24: 1761 | CB24: 1766 | CC24: 4847 | CD24: 4993 | CE24: 5309 | CF24: 5697 | CG24: 0 | CH24: 0 | CI24: 0 | CJ24: 0 | CK24: 53 | CL24: 53 | CM24: 53 | CN24: 48 | CO24: 5141 | CP24: 5241 | CQ24: 5333 | CR24: 5376 | CS24: 1749 | CT24: 1740 | CU24: 1761 | CV24: 1766 | CW24: 2039 | CX24: 1886 | CY24: 1855 | CZ24: 1841 | DA24: 27610 | DB24: 29.4 | DC24: 52.8 | DD24: 223.5 | DE24: 22.2 | DF24: 40.7 | DG24: 193 | DH24: 147 | DI24: 312 | DJ24: 3412 | DK24: 3401 | DL24: 3425 | DM24: 3428 | DN24: 3460 | DO24: 3510 | DP24: 3518 | DQ24: 3570 | DR24: 3605 | DS24: 3694 | DT24: 3731 | DU24: 3758 | DV24: 3792 | DW24: 3824 | DX24: 3868 | DY24: 3950 | DZ24: 4004 | EA24: 4093 | EB24: 4168 | EC24: 4224 | ED24: 4289 | EE24: 4413 | EF24: 4474 | EG24: 4542 | EH24: 4651 | EI24: 2640 | EJ24: 2713 | EK24: 2713 | EL24: 2677 | EM24: 2655 | EN24: 2647 | EO24: 2630 | EP24: 2622 | EQ24: 2626 | ER24: 2624 | ES24: 2590 | ET24: 2585 | EU24: 2563 | EV24: 2543 | EW24: 2496 | EX24: 2437 | EY24: 2364 | EZ24: 2320 | FA24: 2215 | FB24: 2172 | FC24: 2146 | FD24: 2061 | FE24: 2027 | FF24: 1943 | FG24: 1900
A25: 133 | B25: 18 | C25: =IF('iaith - language'!$K$1=2,VLOOKUP(A25,Text!$A$3:$C$353,2,FALSE),VLOOKUP(A25,Text!$A$3:$C$353,3,FALSE)) -> Caerffili | D25: 222 | E25: 194 | F25: 178 | G25: 172 | H25: N/A | I25: 27738.629 | J25: 176865 | K25: 1652 | L25: 17856 | M25: 28854 | N25: 10928 | O25: 20620 | P25: 145375 | Q25: 6331 | R25: 35817 | S25: 104394 | T25: 141048 | U25: 128328 | V25: 48537 | W25: 4070 | X25: 110822 | Y25: 181731 | Z25: 144061 | AA25: 35672 | AD25: 0 | AE25: 238 | AF25: 5060 | AG25: 2000 | AH25: 27426 | AI25: 1948 | AJ25: 16048 | AK25: 16632359 | AL25: N/A | AM25: 0 | AN25: 932.6935815 | AO25: 1421.469793 | AP25: 3745 | AQ25: 3720 | AR25: 3685 | AS25: 3695 | AT25: 3765 | AU25: 3710 | AV25: 3620 | AW25: 3625 | AX25: 3655 | AY25: 3600 | AZ25: 3590 | BA25: 475 | BB25: 149 | BC25: 46 | BD25: 22 | BE25: 245 | BF25: 248 | BG25: 237 | BH25: 213 | BI25: 0 | BJ25: 0 | BK25: 0 | BL25: 0 | BM25: 13157 | BN25: 13740 | BO25: 14721 | BP25: 15847 | BQ25: 491 | BR25: 162 | BS25: 55 | BT25: 25 | BU25: 252 | BV25: 253 | BW25: 241 | BX25: 219 | BY25: 5096 | BZ25: 5129 | CA25: 5242 | CB25: 5259 | CC25: 13188 | CD25: 13757 | CE25: 14738 | CF25: 15863 | CG25: 0 | CH25: 0 | CI25: 0 | CJ25: 0 | CK25: 87 | CL25: 85 | CM25: 81 | CN25: 83 | CO25: 14286 | CP25: 14652 | CQ25: 14985 | CR25: 15141 | CS25: 5096 | CT25: 5129 | CU25: 5242 | CV25: 5259 | CW25: 5839 | CX25: 5544 | CY25: 5538 | CZ25: 5503 | DA25: 81310 | DB25: 98.9 | DC25: 217.3 | DD25: 861 | DE25: 30.4 | DF25: 130 | DG25: 699.3 | DH25: 291 | DI25: 705 | DJ25: 8251 | DK25: 8244 | DL25: 8342 | DM25: 8372 | DN25: 8435 | DO25: 8501 | DP25: 8547 | DQ25: 8590 | DR25: 8734 | DS25: 8841 | DT25: 8952 | DU25: 8993 | DV25: 9085 | DW25: 9178 | DX25: 9324 | DY25: 9486 | DZ25: 9660 | EA25: 9880 | EB25: 10089 | EC25: 10212 | ED25: 10354 | EE25: 10625 | EF25: 10840 | EG25: 11041 | EH25: 11277 | EI25: 8261 | EJ25: 8241 | EK25: 8220 | EL25: 8184 | EM25: 8143 | EN25: 8132 | EO25: 8100 | EP25: 7984 | EQ25: 7971 | ER25: 7967 | ES25: 7898 | ET25: 7884 | EU25: 7890 | EV25: 7788 | EW25: 7684 | EX25: 7519 | EY25: 7341 | EZ25: 7153 | FA25: 6925 | FB25: 6796 | FC25: 6736 | FD25: 6486 | FE25: 6294 | FF25: 6090 | FG25: 5896
A26: 134 | B26: 19 | C26: =IF('iaith - language'!$K$1=2,VLOOKUP(A26,Text!$A$3:$C$353,2,FALSE),VLOOKUP(A26,Text!$A$3:$C$353,3,FALSE)) -> Blaenau Gwent | D26: 70 | E26: 78 | F26: 54 | G26: 88 | H26: N/A | I26: 10872.805 | J26: 67873 | K26: 667 | L26: 6692 | M26: 10674 | N26: 3981 | O26: 7382 | P26: 55946 | Q26: 2242 | R26: 13446 | S26: 40367 | T26: 54427 | U26: 49056 | V26: 18817 | W26: 1557 | X26: 42754 | Y26: 70020 | Z26: 56401 | AA26: 14177 | AD26: 0 | AE26: 72 | AF26: 2130 | AG26: 1050 | AH26: 12838 | AI26: 860 | AJ26: 8282 | AK26: 9703463 | AL26: N/A | AM26: 0 | AN26: 418.197306 | AO26: 574.3173998 | AP26: 1670 | AQ26: 1670 | AR26: 1695 | AS26: 1750 | AT26: 1735 | AU26: 1715 | AV26: 1645 | AW26: 1600 | AX26: 1630 | AY26: 1620 | AZ26: 1635 | BA26: 208 | BB26: 70 | BC26: 18 | BD26: 8 | BE26: 119 | BF26: 97 | BG26: 96 | BH26: 93 | BI26: 0 | BJ26: 0 | BK26: 0 | BL26: 0 | BM26: 6180 | BN26: 6386 | BO26: 6807 | BP26: 7326 | BQ26: 211 | BR26: 72 | BS26: 19 | BT26: 5 | BU26: 125 | BV26: 100 | BW26: 99 | BX26: 98 | BY26: 2228 | BZ26: 2234 | CA26: 2279 | CB26: 2285 | CC26: 6233 | CD26: 6439 | CE26: 6853 | CF26: 7345 | CG26: 0 | CH26: 0 | CI26: 0 | CJ26: 0 | CK26: 39 | CL26: 37 | CM26: 41 | CN26: 40 | CO26: 6215 | CP26: 6400 | CQ26: 6490 | CR26: 6545 | CS26: 2228 | CT26: 2234 | CU26: 2279 | CV26: 2285 | CW26: 2564 | CX26: 2406 | CY26: 2397 | CZ26: 2388 | DA26: 33250 | DB26: 51 | DC26: 67.7 | DD26: 389.7 | DE26: 20.2 | DF26: 47 | DG26: 387.8 | DH26: 222 | DI26: 159 | DJ26: 4054 | DK26: 4078 | DL26: 4077 | DM26: 4086 | DN26: 4119 | DO26: 4144 | DP26: 4175 | DQ26: 4215 | DR26: 4292 | DS26: 4350 | DT26: 4375 | DU26: 4409 | DV26: 4464 | DW26: 4490 | DX26: 4582 | DY26: 4646 | DZ26: 4707 | EA26: 4782 | EB26: 4891 | EC26: 4960 | ED26: 5060 | EE26: 5176 | EF26: 5292 | EG26: 5405 | EH26: 5529 | EI26: 3928 | EJ26: 3933 | EK26: 3877 | EL26: 3867 | EM26: 3828 | EN26: 3821 | EO26: 3818 | EP26: 3791 | EQ26: 3783 | ER26: 3761 | ES26: 3731 | ET26: 3726 | EU26: 3714 | EV26: 3688 | EW26: 3656 | EX26: 3562 | EY26: 3486 | EZ26: 3434 | FA26: 3309 | FB26: 3258 | FC26: 3227 | FD26: 3127 | FE26: 3045 | FF26: 2933 | FG26: 2844
A27: 135 | B27: 20 | C27: =IF('iaith - language'!$K$1=2,VLOOKUP(A27,Text!$A$3:$C$353,2,FALSE),VLOOKUP(A27,Text!$A$3:$C$353,3,FALSE)) -> Torfaen | D27: 133 | E27: 110 | F27: 90 | G27: 147 | H27: N/A | I27: 12624.098 | J27: 94119 | K27: 943 | L27: 9591 | M27: 15445 | N27: 5860 | O27: 10969 | P27: 76919 | Q27: 3344 | R27: 19409 | S27: 54782 | T27: 74710 | U27: 67797 | V27: 26322 | W27: 2527 | X27: 58127 | Y27: 94832 | Z27: 75369 | AA27: 19543 | AD27: 0 | AE27: 117 | AF27: 2920 | AG27: 1190 | AH27: 13688 | AI27: 1052 | AJ27: 9506 | AK27: 10256444 | AL27: N/A | AM27: 0 | AN27: 495.0979782 | AO27: 864.3695556 | AP27: 2170 | AQ27: 2175 | AR27: 2130 | AS27: 2120 | AT27: 2165 | AU27: 2125 | AV27: 2100 | AW27: 2065 | AX27: 2065 | AY27: 2030 | AZ27: 2080 | BA27: 217 | BB27: 80 | BC27: 31 | BD27: 20 | BE27: 113 | BF27: 112 | BG27: 110 | BH27: 135 | BI27: 0 | BJ27: 0 | BK27: 0 | BL27: 0 | BM27: 7369 | BN27: 7657 | BO27: 8031 | BP27: 8603 | BQ27: 217 | BR27: 81 | BS27: 33 | BT27: 21 | BU27: 114 | BV27: 114 | BW27: 111 | BX27: 138 | BY27: 2562 | BZ27: 2560 | CA27: 2610 | CB27: 2632 | CC27: 7385 | CD27: 7693 | CE27: 8057 | CF27: 8635 | CG27: 0 | CH27: 0 | CI27: 0 | CJ27: 0 | CK27: 35 | CL27: 39 | CM27: 39 | CN27: 39 | CO27: 7088 | CP27: 7277 | CQ27: 7439 | CR27: 7515 | CS27: 2562 | CT27: 2560 | CU27: 2610 | CV27: 2632 | CW27: 2893 | CX27: 2755 | CY27: 2754 | CZ27: 2791 | DA27: 43400 | DB27: 30.5 | DC27: 101.6 | DD27: 326.2 | DE27: 16.2 | DF27: 70.8 | DG27: 292.9 | DH27: 354 | DI27: 429 | DJ27: 5330 | DK27: 5350 | DL27: 5367 | DM27: 5405 | DN27: 5422 | DO27: 5454 | DP27: 5517 | DQ27: 5528 | DR27: 5598 | DS27: 5655 | DT27: 5696 | DU27: 5736 | DV27: 5762 | DW27: 5827 | DX27: 5943 | DY27: 6037 | DZ27: 6154 | EA27: 6248 | EB27: 6326 | EC27: 6337 | ED27: 6464 | EE27: 6613 | EF27: 6731 | EG27: 6857 | EH27: 6956 | EI27: 4393 | EJ27: 4372 | EK27: 4327 | EL27: 4303 | EM27: 4272 | EN27: 4242 | EO27: 4225 | EP27: 4213 | EQ27: 4244 | ER27: 4212 | ES27: 4171 | ET27: 4161 | EU27: 4151 | EV27: 4116 | EW27: 4054 | EX27: 3945 | EY27: 3858 | EZ27: 3758 | FA27: 3656 | FB27: 3597 | FC27: 3584 | FD27: 3438 | FE27: 3324 | FF27: 3191 | FG27: 3131
A28: 136 | B28: 21 | C28: =IF('iaith - language'!$K$1=2,VLOOKUP(A28,Text!$A$3:$C$353,2,FALSE),VLOOKUP(A28,Text!$A$3:$C$353,3,FALSE)) -> Sir Fynwy | D28: 252 | E28: 208 | F28: 185 | G28: 234 | H28: N/A | I28: 85031.291 | J28: 94930 | K28: 857 | L28: 8275 | M28: 13677 | N28: 5289 | O28: 9642 | P28: 80089 | Q28: 3185 | R28: 17083 | S28: 52624 | T28: 77847 | U28: 62179 | V28: 32751 | W28: 3483 | X28: 56159 | Y28: 95164 | Z28: 77843 | AA28: 24340 | AC28: 108559.39 | AD28: 0 | AE28: 1017 | AF28: 3230 | AG28: 1210 | AH28: 11492 | AI28: 1089 | AJ28: 5500 | AK28: 7403264 | AL28: N/A | AM28: 0 | AN28: 1540.240429 | AO28: 1724.716971 | AP28: 1355 | AQ28: 1350 | AR28: 1300 | AS28: 1330 | AT28: 1370 | AU28: 1345 | AV28: 1320 | AW28: 1305 | AX28: 1270 | AY28: 1250 | AZ28: 1250 | BA28: 98 | BB28: 29 | BC28: 8 | BD28: 0 | BE28: 138 | BF28: 146 | BG28: 143 | BH28: 146 | BI28: 0 | BJ28: 0 | BK28: 0 | BL28: 0 | BM28: 3869 | BN28: 3937 | BO28: 4192 | BP28: 4452 | BQ28: 104 | BR28: 35 | BS28: 11 | BT28: 0 | BU28: 142 | BV28: 152 | BW28: 152 | BX28: 155 | BY28: 1818 | BZ28: 1828 | CA28: 1869 | CB28: 1869 | CC28: 3923 | CD28: 3991 | CE28: 4242 | CF28: 4521 | CG28: 0 | CH28: 0 | CI28: 0 | CJ28: 0 | CK28: 48 | CL28: 52 | CM28: 48 | CN28: 45 | CO28: 4032 | CP28: 4130 | CQ28: 4189 | CR28: 4238 | CS28: 1818 | CT28: 1828 | CU28: 1869 | CV28: 1869 | CW28: 2064 | CX28: 2015 | CY28: 2032 | CZ28: 2024 | DA28: 44430 | DB28: 58.7 | DC28: 617.1 | DD28: 839.6 | DE28: 14.9 | DF28: 71.3 | DG28: 190.5 | DH28: 129 | DI28: 282 | DJ28: 2692 | DK28: 2704 | DL28: 2741 | DM28: 2750 | DN28: 2760 | DO28: 2807 | DP28: 2824 | DQ28: 2860 | DR28: 2907 | DS28: 2977 | DT28: 3004 | DU28: 3042 | DV28: 3094 | DW28: 3083 | DX28: 3142 | DY28: 3238 | DZ28: 3282 | EA28: 3336 | EB28: 3396 | EC28: 3418 | ED28: 3505 | EE28: 3604 | EF28: 3622 | EG28: 3697 | EH28: 3783 | EI28: 2806 | EJ28: 2781 | EK28: 2774 | EL28: 2780 | EM28: 2721 | EN28: 2711 | EO28: 2710 | EP28: 2692 | EQ28: 2699 | ER28: 2671 | ES28: 2656 | ET28: 2691 | EU28: 2686 | EV28: 2614 | EW28: 2589 | EX28: 2558 | EY28: 2467 | EZ28: 2408 | FA28: 2355 | FB28: 2315 | FC28: 2310 | FD28: 2253 | FE28: 2195 | FF28: 2149 | FG28: 2097
A29: 137 | B29: 22 | C29: =IF('iaith - language'!$K$1=2,VLOOKUP(A29,Text!$A$3:$C$353,2,FALSE),VLOOKUP(A29,Text!$A$3:$C$353,3,FALSE)) -> Casnewydd | D29: 219 | E29: 200 | F29: 200 | G29: 209 | H29: N/A | I29: 19043.8 | J29: 167899 | K29: 2012 | L29: 19419 | M29: 30239 | N29: 10785 | O29: 19921 | P29: 133921 | Q29: 6037 | R29: 38126 | S29: 101525 | T29: 129773 | U29: 129888 | V29: 38011 | W29: 3589 | X29: 107510 | Y29: 156447 | Z29: 120851 | AA29: 26654 | AC29: 903106.06 | AD29: 0 | AE29: 149 | AF29: 4640 | AG29: 1790 | AH29: 20708 | AI29: 1502 | AJ29: 12151 | AK29: 13299708 | AL29: N/A | AM29: 409 | AN29: 1698.038146 | AO29: 3879.959938 | AP29: 4915 | AQ29: 4805 | AR29: 4660 | AS29: 4715 | AT29: 4840 | AU29: 4800 | AV29: 4755 | AW29: 4655 | AX29: 4600 | AY29: 4515 | AZ29: 4465 | BA29: 333 | BB29: 112 | BC29: 29 | BD29: 18 | BE29: 281 | BF29: 277 | BG29: 214 | BH29: 195 | BI29: 0 | BJ29: 0 | BK29: 0 | BL29: 0 | BM29: 12949 | BN29: 13191 | BO29: 13728 | BP29: 14618 | BQ29: 341 | BR29: 119 | BS29: 33 | BT29: 22 | BU29: 287 | BV29: 284 | BW29: 212 | BX29: 203 | BY29: 3728 | BZ29: 3726 | CA29: 3838 | CB29: 3829 | CC29: 12907 | CD29: 13150 | CE29: 13673 | CF29: 14577 | CG29: 0 | CH29: 0 | CI29: 0 | CJ29: 0 | CK29: 61 | CL29: 59 | CM29: 54 | CN29: 54 | CO29: 10296 | CP29: 10569 | CQ29: 10806 | CR29: 10929 | CS29: 3728 | CT29: 3726 | CU29: 3838 | CV29: 3829 | CW29: 4356 | CX29: 4129 | CY29: 4083 | CZ29: 4054 | DA29: 72180 | DB29: 50.6 | DC29: 196 | DD29: 462.8 | DE29: 21.4 | DF29: 77.9 | DG29: 462.5 | DH29: 819 | DI29: 1284 | DJ29: 8782 | DK29: 8727 | DL29: 8771 | DM29: 8798 | DN29: 8805 | DO29: 8907 | DP29: 8960 | DQ29: 9002 | DR29: 9108 | DS29: 9243 | DT29: 9310 | DU29: 9357 | DV29: 9466 | DW29: 9523 | DX29: 9703 | DY29: 9873 | DZ29: 10042 | EA29: 10188 | EB29: 10343 | EC29: 10466 | ED29: 10600 | EE29: 10814 | EF29: 10984 | EG29: 11150 | EH29: 11325 | EI29: 6592 | EJ29: 6598 | EK29: 6559 | EL29: 6539 | EM29: 6479 | EN29: 6454 | EO29: 6400 | EP29: 6364 | EQ29: 6382 | ER29: 6378 | ES29: 6312 | ET29: 6290 | EU29: 6292 | EV29: 6194 | EW29: 6065 | EX29: 5959 | EY29: 5784 | EZ29: 5601 | FA29: 5458 | FB29: 5369 | FC29: 5299 | FD29: 5173 | FE29: 5033 | FF29: 4882 | FG29: 4753
A30: 138 | B30: 23 | C30: =IF('iaith - language'!$K$1=2,VLOOKUP(A30,Text!$A$3:$C$353,2,FALSE),VLOOKUP(A30,Text!$A$3:$C$353,3,FALSE)) -> Caerdydd | D30: 582 | E30: 534 | F30: 530 | G30: 596 | H30: N/A | I30: 14230.399 | J30: 383919 | K30: 3755 | L30: 37872 | M30: 60398 | N30: 22509 | O30: 55723 | P30: 316918 | Q30: 13845 | R30: 75752 | S30: 252233 | T30: 308167 | U30: 309073 | V30: 74846 | W30: 7471 | X30: 264500 | Y30: 369202 | Z30: 293830 | AA30: 52807 | AC30: 166742.54 | AD30: 2.4 | AE30: 62 | AF30: 12860 | AG30: 4090 | AH30: 43031 | AI30: 3086 | AJ30: 28554 | AK30: 34516047 | AL30: N/A | AM30: 241 | AN30: 4804.700709 | AO30: 19296.17766 | AP30: 10295 | AQ30: 10195 | AR30: 10115 | AS30: 10110 | AT30: 10315 | AU30: 10265 | AV30: 10180 | AW30: 10145 | AX30: 10000 | AY30: 9670 | AZ30: 9715 | BA30: 789 | BB30: 255 | BC30: 76 | BD30: 34 | BE30: 447 | BF30: 458 | BG30: 352 | BH30: 366 | BI30: 0 | BJ30: 0 | BK30: 0 | BL30: 0 | BM30: 26490 | BN30: 27290 | BO30: 28979 | BP30: 30843 | BQ30: 795 | BR30: 263 | BS30: 79 | BT30: 34 | BU30: 461 | BV30: 480 | BW30: 366 | BX30: 371 | BY30: 7311 | BZ30: 7324 | CA30: 7475 | CB30: 7486 | CC30: 26462 | CD30: 27254 | CE30: 28925 | CF30: 30759 | CG30: 0 | CH30: 0 | CI30: 0 | CJ30: 0 | CK30: 147 | CL30: 141 | CM30: 139 | CN30: 130 | CO30: 20296 | CP30: 20747 | CQ30: 21101 | CR30: 21359 | CS30: 7311 | CT30: 7324 | CU30: 7475 | CV30: 7486 | CW30: 8567 | CX30: 8067 | CY30: 7920 | CZ30: 7891 | DA30: 167360 | DB30: 106.9 | DC30: 138.3 | DD30: 890.9 | DE30: 58.5 | DF30: 97.9 | DG30: 880 | DH30: 1569 | DI30: 2196 | DJ30: 18688 | DK30: 18682 | DL30: 18697 | DM30: 18820 | DN30: 18861 | DO30: 19048 | DP30: 19103 | DQ30: 19079 | DR30: 19366 | DS30: 19598 | DT30: 19844 | DU30: 19996 | DV30: 20267 | DW30: 20479 | DX30: 20884 | DY30: 21327 | DZ30: 21737 | EA30: 22095 | EB30: 22437 | EC30: 22745 | ED30: 23132 | EE30: 23597 | EF30: 23998 | EG30: 24387 | EH30: 24861 | EI30: 15410 | EJ30: 15357 | EK30: 15197 | EL30: 15137 | EM30: 14995 | EN30: 14960 | EO30: 14850 | EP30: 14755 | EQ30: 14780 | ER30: 14807 | ES30: 14652 | ET30: 14591 | EU30: 14513 | EV30: 14338 | EW30: 13926 | EX30: 13480 | EY30: 13105 | EZ30: 12786 | FA30: 12331 | FB30: 12155 | FC30: 12026 | FD30: 11585 | FE30: 11349 | FF30: 10966 | FG30: 10692
A32: 139 | C32: =IF('iaith - language'!$K$1=2,VLOOKUP(A32,Text!$A$3:$C$353,2,FALSE),VLOOKUP(A32,Text!$A$3:$C$353,3,FALSE)) -> Cyfanswm AU | D32: =SUM(D9:D31) -> 5139 | E32: =SUM(E9:E31) -> 4784 | F32: =SUM(F9:F31) -> 4719 | G32: =SUM(G9:G31) -> 5052 | H32: =SUM(H9:H30) -> 0 | I32: =SUM(I9:I31) -> 2078282.942 | J32: =SUM(J9:J30) -> 3186581 | K32: 30090 | L32: 308046 | M32: 498110 | N32: 188744 | O32: 377882 | P32: 2640220 | Q32: 110944 | R32: 621019 | S32: 1873058 | T32: 2565562 | U32: 2277853 | V32: 908728 | W32: 87593 | X32: 1987628 | Y32: 3169586 | Z32: 2539714 | AA32: 668590 | AB32: 0 | AC32: 1417368.27 | AD32: 117.62 | AE32: =SUM(AE9:AE30) -> 19195 | AF32: =SUM(AF9:AF30) -> 116430 | AG32: =SUM(AG9:AG30) -> 42430 | AH32: =SUM(AH9:AH30) -> 399057 | AI32: 35404 | AJ32: 259180 | AK32: 302875457 | AL32: =SUM(AL9:AL30) -> 0 | AM32: 6036 | AN32: 107899.9374 | AO32: 71087.8591 | AP32: 66355 | AQ32: 65975 | AR32: 64815 | AS32: 65295 | AT32: 66755 | AU32: 65940 | AV32: 64520 | AW32: 63545 | AX32: 63190 | AY32: =SUM(AY9:AY30) -> 62220 | AZ32: =SUM(AZ9:AZ30) -> 62620 | BA32: 6722 | BB32: 2276 | BC32: 712 | BD32: 348 | BE32: 3637 | BF32: 3700 | BG32: 3354 | BH32: 3413 | BI32: 0 | BJ32: 0 | BK32: 0 | BL32: 0 | BM32: 205950 | BN32: 213668 | BO32: 226395 | BP32: 243115 | BQ32: 6844 | BR32: 2404 | BS32: 770 | BT32: 387 | BU32: 3756 | BV32: 3784 | BW32: 3444 | BX32: 3507 | BY32: 80541 | BZ32: 80627 | CA32: 82339 | CB32: 82348 | CC32: 207025 | CD32: 214716 | CE32: 227332 | CF32: 244257 | CG32: 0 | CH32: 0 | CI32: 0 | CJ32: 0 | CK32: 1844 | CL32: 1800 | CM32: 1738 | CN32: 1706 | CO32: 198954 | CP32: 204106 | CQ32: 208182 | CR32: =SUM(CR9:CR30) -> 210397 | CS32: 80541 | CT32: 80627 | CU32: =SUM(CU9:CU30) -> 82339 | CV32: 82348 | CW32: 91141 | CX32: 86815 | CY32: 86553 | CZ32: 86242 | DA32: =SUM(DA9:DA30) -> 1489200 | DB32: 2844.6 | DC32: 12883.8 | DD32: 17807.2 | DE32: 967.8 | DF32: 2147.7 | DG32: 8860.8 | DH32: =SUM(DH9:DH30) -> 7917 | DI32: =SUM(DI9:DI30) -> 13293 | DJ32: =SUM(DJ9:DJ30) -> 143346 | DK32: 143341 | DL32: 144125 | DM32: 144811 | DN32: 145644 | DO32: 146962 | DP32: 147684 | DQ32: 148984 | DR32: 150962 | DS32: 153231 | DT32: 154615 | DU32: 155613 | DV32: 157834 | DW32: 159290 | DX32: 161848 | DY32: 164722 | DZ32: 167398 | EA32: 170109 | EB32: 172928 | EC32: 175157 | ED32: 178097 | EE32: 182533 | EF32: 185260 | EG32: 187953 | EH32: 191469 | EI32: 126254 | EJ32: 125873 | EK32: 125107 | EL32: 124659 | EM32: 123520 | EN32: 123146 | EO32: 122430 | EP32: 121595 | EQ32: 121491 | ER32: 121219 | ES32: 120154 | ET32: 119822 | EU32: 119494 | EV32: 118072 | EW32: 116005 | EX32: 113243 | EY32: 110141 | EZ32: 107660 | FA32: 104371 | FB32: 102626 | FC32: 101764 | FD32: 98294 | FE32: 95925 | FF32: 92715 | FG32: 90271
B35: 27 | D35: =IF('iaith - language'!K1=2,VLOOKUP(B35,Text!$A$3:$C$353,2),VLOOKUP(B35,Text!$A$3:$C$353,3)) -> Yr Is-adran Polisi Cyllid Llywodraeth Leol a Chynaliadwyedd, Llywodraeth Cymru
B36: 30 | D36: =IF('iaith - language'!K1=2,VLOOKUP(B36,Text!$A$3:$C$353,2),VLOOKUP(B36,Text!$A$3:$C$353,3)) -> Os oes gennych ymholiadau, cysylltwch â:
B37: 29 | D37: LGFPSettlement@Gov.Wales
B39: 33 | D39: =IF('iaith - language'!K1=2,VLOOKUP(B39,Text!$A$3:$C$353,2),VLOOKUP(B39,Text!$A$3:$C$353,3)) -> Nodiadau:
B40: 34 | D40: =IF('iaith - language'!K1=2,VLOOKUP(B40,Text!$A$3:$C$353,2),VLOOKUP(B40,Text!$A$3:$C$353,3)) -> 1 Caiff y set ddata hon ei chymryd fel cyfartaledd 3 blynedd yn y setliad.
B41: 273
